Ref No,Fund Type,Dept,Cost Centre Description    ,Description    ,Creditor Name    ,GL Code Net Amount,Payment date        
2,Revenue,CCHD,Bed purchasing - Under 65s PWLD - North,Residential Homes,.,6873.04, 04-Sep-2012
3,Revenue,CCHD,Bed purchasing - Phys Dis - North,Nursing Homes,26 Severn Road,7692.28, 04-Sep-2012
4,Revenue,CCHD,Home Care - Elderly - North,Other Small Contracts,3 Trees Community Support Ltd,157.6, 11-Sep-2012
5,Revenue,CCHD,Day Care - North,Private & Voluntary Day Care,3 Trees Community Support Ltd,90.62, 11-Sep-2012
6,Revenue,CCHD,PWLD Home Care - Under 65 - KH,Private & Voluntary Home Care,3 Trees Community Support Ltd,267.92, 11-Sep-2012
7,Revenue,CCHD,Home Care - Elderly - North,Other Small Contracts,3 Trees Community Support Ltd,157.6, 19-Sep-2012
8,Revenue,CCHD,Day Care - North,Private & Voluntary Day Care,3 Trees Community Support Ltd,86.68, 19-Sep-2012
9,Revenue,CCHD,Home Care - LD Under 65 - South,Private & Voluntary Home Care,3 Trees Community Support Ltd,110.32, 19-Sep-2012
10,Revenue,CCHD,PWLD Home Care - Under 65 - KH,Private & Voluntary Home Care,3 Trees Community Support Ltd,263.98, 19-Sep-2012
11,Revenue,CCHD,Supported Living - PS,Private & Voluntary Home Care,3 Trees Community Support Ltd,1618.26, 03-Sep-2012
12,Revenue,CCHD,Supported Living (S28a) North,Private & Voluntary Home Care,3 Trees Community Support Ltd,7734.75, 13-Sep-2012
13,Revenue,CCHD,Supported Living - PS,Private & Voluntary Home Care,3 Trees Community Support Ltd,2002.8, 03-Sep-2012
14,Revenue,CCHD,Purchase of Non-Res Care - KD,Private & Voluntary Day Care,3 Trees Community Support Ltd,4844.82, 26-Sep-2012
15,Revenue,CCHD,Supported Living - KD,Private & Voluntary Home Care,3 Trees Community Support Ltd,2336.2, 26-Sep-2012
16,Revenue,CCHD,Purchase of Non-Res Care - KD,Private & Voluntary Day Care,3 Trees Community Support Ltd,1936.63, 26-Sep-2012
17,Revenue,CCHD,Purchase of Non-Res Care - KD,Private & Voluntary Day Care,3 Trees Community Support Ltd,2111.7, 26-Sep-2012
18,Revenue,CCHD,Purchase of Non-Res Care - KD,Private & Voluntary Day Care,3 Trees Community Support Ltd,1552.28, 26-Sep-2012
19,Revenue,CCHD,Purchase of Non-Res Care - KD,Private & Voluntary Day Care,3 Trees Community Support Ltd,6074.68, 26-Sep-2012
20,Revenue,CCHD,Supported Living - KD,Private & Voluntary Home Care,3 Trees Community Support Ltd,7862.9, 26-Sep-2012
21,Revenue,CCHD,Bed Purchasing - Elderly S117- North,Residential Homes,3Rd Floor Westbury House,1716, 04-Sep-2012
22,Revenue,CCHD,Alexandra Way,Prop.Serv. General Repairs,A E Horder (Contracting) Limited,523.93, 04-Sep-2012
23,Revenue,CCHD,Tenancy Start Up Scheme,Other Supplies & Services,A1 Properties & Lettings,650, 04-Sep-2012
24,Revenue,CCHD,Tenancy Start Up Scheme,Other Supplies & Services,A1 Properties & Lettings,1000, 14-Sep-2012
25,Revenue,CCHD,Direct Payments - Phys Dis - North,Grants to Voluntary Bodies,A4E Management Limited,22857.93, 21-Sep-2012
26,Revenue,CCHD,Direct Payments - Phys Dis - North,Grants to Voluntary Bodies,A4E Management Limited,22857.93, 20-Sep-2012
27,Revenue,CCHD,Day Care - North,Private & Voluntary Day Care,About Me Care and Support Limited,1164.95, 14-Sep-2012
28,Revenue,CCHD,Day Care - South,Private & Voluntary Day Care,About Me Care and Support Limited,1251.94, 07-Sep-2012
29,Revenue,CCHD,Day Care - South,Private & Voluntary Day Care,About Me Care and Support Limited,501.01, 07-Sep-2012
30,Revenue,CCHD,Day Care - South,Private & Voluntary Day Care,About Me Care and Support Limited,2020.94, 07-Sep-2012
31,Revenue,CCHD,Older People's Commissioned Se,Grants to Voluntary Bodies,Action for Blind People,19065, 28-Sep-2012
32,Revenue,CCHD,Day Care - North,Private & Voluntary Day Care,Age UK South Gloucestershire,1533.24, 17-Sep-2012
33,Revenue,CCHD,Day Care - North,Private & Voluntary Day Care,Age UK South Gloucestershire,851.8, 14-Sep-2012
34,Revenue,CCHD,Day Care - South,Private & Voluntary Day Care,Age UK South Gloucestershire,578.7, 18-Sep-2012
35,Revenue,CCHD,Elderly MH Day Care South,Private & Voluntary Day Care,Age UK South Gloucestershire,979.57, 14-Sep-2012
36,Revenue,CCHD,Day Care - South,Private & Voluntary Day Care,Age UK South Gloucestershire,1598.24, 14-Sep-2012
37,Revenue,CCHD,Home Care - Elderly - South,Other Small Contracts,Agincare Chippenham,1211.31, 04-Sep-2012
38,Revenue,CCHD,Home Care - Elderly - South,Other Small Contracts,Agincare Chippenham,1238.4, 04-Sep-2012
39,Revenue,CCHD,Home Care - Elderly - South,Other Small Contracts,Agincare Chippenham,1400.94, 04-Sep-2012
40,Revenue,CCHD,Home Care - Elderly - South,Other Small Contracts,Agincare Chippenham,1161, 13-Sep-2012
41,Revenue,CCHD,Home Care - Elderly - South,Other Small Contracts,Agincare Chippenham,684.99, 13-Sep-2012
42,Revenue,CCHD,Home Care - Elderly - South,Other Small Contracts,Agincare Chippenham,715.95, 20-Sep-2012
43,Revenue,CCHD,Home Care - Elderly - South,Other Small Contracts,Agincare UK Limited,855.27, 04-Sep-2012
44,Revenue,CCHD,Home Care - Elderly - North,Other Small Contracts,Agincare UK Limited,58.05, 04-Sep-2012
45,Revenue,CCHD,Day Care - South,Private & Voluntary Day Care,Agincare UK Limited,166.41, 04-Sep-2012
46,Revenue,CCHD,Elderly MH Day Care North,Private & Voluntary Day Care,Agincare UK Limited,108.36, 04-Sep-2012
47,Revenue,CCHD,Home Care - Elderly - South,Other Small Contracts,Agincare UK Limited,824.31, 10-Sep-2012
48,Revenue,CCHD,Home Care - Elderly - North,Other Small Contracts,Agincare UK Limited,54.18, 10-Sep-2012
49,Revenue,CCHD,Day Care - South,Private & Voluntary Day Care,Agincare UK Limited,228.33, 10-Sep-2012
50,Revenue,CCHD,Elderly MH Day Care North,Private & Voluntary Day Care,Agincare UK Limited,108.36, 10-Sep-2012
51,Revenue,CCHD,Home Care - Elderly - South,Other Small Contracts,Agincare UK Limited,952.02, 13-Sep-2012
52,Revenue,CCHD,Home Care - Elderly - North,Other Small Contracts,Agincare UK Limited,54.18, 13-Sep-2012
53,Revenue,CCHD,Day Care - South,Private & Voluntary Day Care,Agincare UK Limited,181.89, 13-Sep-2012
54,Revenue,CCHD,Elderly MH Day Care North,Private & Voluntary Day Care,Agincare UK Limited,108.36, 13-Sep-2012
55,Revenue,CCHD,Home Care - Elderly - South,Other Small Contracts,Agincare UK Limited,886.23, 10-Sep-2012
56,Revenue,CCHD,Home Care - Elderly - North,Other Small Contracts,Agincare UK Limited,54.18, 10-Sep-2012
57,Revenue,CCHD,Day Care - South,Private & Voluntary Day Care,Agincare UK Limited,174.15, 10-Sep-2012
58,Revenue,CCHD,Elderly MH Day Care North,Private & Voluntary Day Care,Agincare UK Limited,108.36, 10-Sep-2012
59,Revenue,CCHD,Home Care - Elderly - South,Other Small Contracts,Allied Healthcare Group,407.67, 07-Sep-2012
60,Revenue,CCHD,Home Care - Elderly - North,Other Small Contracts,Allied Healthcare Group,1870.4, 07-Sep-2012
61,Revenue,CCHD,Day Care - North,Private & Voluntary Day Care,Allied Healthcare Group,45.72, 07-Sep-2012
62,Revenue,CCHD,Home Care - Elderly - South,Other Small Contracts,Allied Healthcare Group,601.98, 07-Sep-2012
63,Revenue,CCHD,Home Care - Elderly - North,Other Small Contracts,Allied Healthcare Group,1958.04, 07-Sep-2012
64,Revenue,CCHD,Day Care - North,Private & Voluntary Day Care,Allied Healthcare Group,22.86, 07-Sep-2012
65,Revenue,CCHD,Home Care - Elderly - South,Other Small Contracts,Allied Healthcare Group,563.88, 07-Sep-2012
66,Revenue,CCHD,Home Care - Elderly - North,Other Small Contracts,Allied Healthcare Group,2003.76, 07-Sep-2012
67,Revenue,CCHD,Day Care - North,Private & Voluntary Day Care,Allied Healthcare Group,45.72, 07-Sep-2012
68,Revenue,CCHD,Home Care - Elderly - South,Other Small Contracts,Allied Healthcare Group,594.36, 07-Sep-2012
69,Revenue,CCHD,Home Care - Elderly - North,Other Small Contracts,Allied Healthcare Group,1923.75, 07-Sep-2012
70,Revenue,CCHD,Day Care - North,Private & Voluntary Day Care,Allied Healthcare Group,45.72, 07-Sep-2012
71,Revenue,CCHD,Home Care - Elderly - South,Other Small Contracts,Allied Healthcare Group,571.5, 07-Sep-2012
72,Revenue,CCHD,Home Care - Elderly - North,Other Small Contracts,Allied Healthcare Group,1317.59, 07-Sep-2012
73,Revenue,CCHD,Day Care - North,Private & Voluntary Day Care,Allied Healthcare Group,45.72, 07-Sep-2012
74,Revenue,CCHD,Elderly MH Day Care North,Private & Voluntary Day Care,Alzheimer`s Society Bristol,572.16, 28-Sep-2012
75,Revenue,CCHD,Elderly MH Day Care North,Private & Voluntary Day Care,Alzheimer`s Society Bristol,643.68, 28-Sep-2012
76,Revenue,CCHD,Elderly MH Day Care North,Private & Voluntary Day Care,Alzheimer`s Society Bristol,929.76, 28-Sep-2012
77,Revenue,CCHD,Elderly MH Day Care South,Private & Voluntary Day Care,Alzheimer`s Society Bristol,643.68, 28-Sep-2012
78,Revenue,CCHD,Bed Purchasing - Elderly S117- North,Private & Voluntary Day Care,Alzheimer`s Society Bristol,715.2, 28-Sep-2012
79,Revenue,CCHD,Southmead Hospital Purchasing,Nursing Homes,Ambleside Nusing Ho!,1416.41, 04-Sep-2012
80,Revenue,CCHD,Frenchay Hospital Purchasing,Residential Homes,Anbridge Care Home,828.88, 04-Sep-2012
81,Revenue,CCHD,Alexandra Way,Maintenance by Contractor,Aquarius Waste Management Ltd,495, 10-Sep-2012
82,Revenue,CCHD,Bed purchasing - Under 65s PWLD - North,Residential Homes,Ark Care Homes Ltd,10505.24, 04-Sep-2012
83,Revenue,CCHD,Bed Purchasing - Elderly - South,Residential Homes,Ashbourne House Care Home Limited,1102.96, 04-Sep-2012
84,Revenue,CCHD,Bed and Breakfast,Bed & Breakfast,Ashley Guest Houses Ltd,528, 21-Sep-2012
85,Revenue,CCHD,Bed and Breakfast,Bed & Breakfast,Ashley Guest Houses Ltd,504, 28-Sep-2012
86,Revenue,CCHD,Bed and Breakfast,Bed & Breakfast,Ashley Guest Houses Ltd,672, 10-Sep-2012
87,Revenue,CCHD,Bed and Breakfast,Bed & Breakfast,Ashley Guest Houses Ltd,672, 18-Sep-2012
88,Revenue,CCHD,Bed Purchasing - S28A - Over 65- North,Residential Homes,Aspects &  Milestones Trust,3882.32, 04-Sep-2012
89,Revenue,CCHD,Bed Purchasing - Elderly - South,Residential Homes,Aspects &  Milestones Trust,1398.4, 04-Sep-2012
90,Revenue,CCHD,Bed Purchasing - Under 65s PWLD - South,Residential Homes,Aspects &  Milestones Trust,6090.6, 04-Sep-2012
91,Revenue,CCHD,Bed Purchasing - Elderly S117- North,Residential Homes,Aspects &  Milestones Trust,1325.92, 04-Sep-2012
92,Revenue,CCHD,Bed Purchasing - Elderly S117- North,Nursing Homes,Aspects &  Milestones Trust,1944.08, 04-Sep-2012
93,Revenue,CCHD,Bed purchasing - Elderly MH - North,Nursing Homes,Aspects &  Milestones Trust,2318.24, 04-Sep-2012
94,Revenue,CCHD,Bed Purchasing - Elderly - South,Residential Homes,Aspects &  Milestones Trust,705.8, 04-Sep-2012
95,Revenue,CCHD,Bed purchasing - Elderly PWLD - North,Residential Homes,Aspects &  Milestones Trust,3554.88, 04-Sep-2012
96,Revenue,CCHD,Bed Purchasing - Under 65s PWLD - South,Residential Homes,Aspects &  Milestones Trust,5227.12, 04-Sep-2012
97,Revenue,CCHD,Bed Purchasing - Under 65s PWLD - South,Residential Homes,Aspects &  Milestones Trust,5683.72, 04-Sep-2012
98,Revenue,CCHD,Bed Purchasing - Under 65s PWLD - South,Nursing Homes,Aspects &  Milestones Trust,2766.32, 04-Sep-2012
99,Revenue,CCHD,Bed Purchasing - Elderly S117- North,Nursing Homes,Aspects &  Milestones Trust,1944, 04-Sep-2012
100,Revenue,CCHD,Bed purchasing - Elderly MH - North,Nursing Homes,Aspects &  Milestones Trust,1430.08, 04-Sep-2012
101,Revenue,CCHD,Bed purchasing - Elderly MH - North,Nursing Homes,Aspects &  Milestones Trust,1475.2, 04-Sep-2012
102,Revenue,CCHD,South Glos Users in South Glos Homes,Nursing Homes,Aspects &  Milestones Trust,2189.53, 04-Sep-2012
103,Revenue,CCHD,Section 117 Placements MH Younger,Nursing Homes,Aspects &  Milestones Trust,1416, 04-Sep-2012
104,Revenue,CCHD,Bed purchasing - Elderly PWLD - South,Residential Homes,Aspects &  Milestones Trust,3199.56, 04-Sep-2012
105,Revenue,CCHD,Bed purchasing - Elderly PWLD - South,Residential Homes,Aspects &  Milestones Trust,4357.8, 04-Sep-2012
106,Revenue,CCHD,Bed purchasing -S28A  Under 65 - North,Nursing Homes,Aspects &  Milestones Trust,5800.72, 04-Sep-2012
107,Revenue,CCHD,Bed purchasing -S28A  Under 65 - North,Residential Homes,Aspects &  Milestones Trust,5183.96, 04-Sep-2012
108,Revenue,CCHD,Bed Purchasing - Under 65s PWLD - South,Residential Homes,Aspects &  Milestones Trust,3495.32, 04-Sep-2012
109,Revenue,CCHD,Bed purchasing - S28A Under 65 - South,Residential Homes,Aspects &  Milestones Trust,5327.8, 04-Sep-2012
110,Revenue,CCHD,Bed Purchasing - Under 65s PWLD - South,Residential Homes,Aspects &  Milestones Trust,5721.6, 04-Sep-2012
111,Revenue,CCHD,Bed purchasing - Under 65s PWLD - North,Residential Homes,Aspects &  Milestones Trust,3843.72, 04-Sep-2012
112,Revenue,CCHD,Bed purchasing - S28A Under 65 - South,Nursing Homes,Aspects &  Milestones Trust,7576.08, 04-Sep-2012
113,Revenue,CCHD,MH Purchasing - Younger,Residential Homes,Aspects &  Milestones Trust,847.2, 04-Sep-2012
114,Revenue,CCHD,Bed purchasing - Elderly PWLD - South,Residential Homes,Aspects &  Milestones Trust,5276.32, 04-Sep-2012
115,Revenue,CCHD,Bed purchasing - Elderly PWLD - South,Residential Homes,Aspects &  Milestones Trust,3791.92, 04-Sep-2012
116,Revenue,CCHD,Bed purchasing - Elderly PWLD - North,Residential Homes,Aspects &  Milestones Trust,4732.52, 04-Sep-2012
117,Revenue,CCHD,Bed purchasing -S28A  Under 65 - North,Residential Homes,Aspects &  Milestones Trust,5268.68, 04-Sep-2012
118,Revenue,CCHD,Bed purchasing -S28A  Under 65 - North,Residential Homes,Aspects &  Milestones Trust,6125.96, 04-Sep-2012
119,Revenue,CCHD,Bed purchasing -S28A  Under 65 - North,Nursing Homes,Aspects &  Milestones Trust,6213.88, 04-Sep-2012
120,Revenue,CCHD,Bed Purchasing - Under 65s PWLD - South,Residential Homes,Aspects &  Milestones Trust,3699.6, 04-Sep-2012
121,Revenue,CCHD,Bed purchasing -S28A  Under 65 - North,Residential Homes,Aspects &  Milestones Trust,6125.96, 04-Sep-2012
122,Revenue,CCHD,Bed purchasing - S28A Under 65 - South,Residential Homes,Aspects &  Milestones Trust,4856.92, 04-Sep-2012
123,Revenue,CCHD,Bed Purchasing - S28A - Over 65- North,Residential Homes,Aspects &  Milestones Trust,4732.76, 04-Sep-2012
124,Revenue,CCHD,Bed Purchasing - LD S28A- Over 65- South,Residential Homes,Aspects &  Milestones Trust,4015.52, 04-Sep-2012
125,Revenue,CCHD,Bed purchasing -S28A  Under 65 - North,Residential Homes,Aspects &  Milestones Trust,6125.96, 04-Sep-2012
126,Revenue,CCHD,Bed Purchasing - S28A - Over 65- North,Residential Homes,Aspects &  Milestones Trust,4239.2, 04-Sep-2012
127,Revenue,CCHD,Bed purchasing -S28A  Under 65 - North,Residential Homes,Aspects &  Milestones Trust,6125.96, 04-Sep-2012
128,Revenue,CCHD,Bed Purchasing - LD S28A- Over 65- South,Residential Homes,Aspects &  Milestones Trust,3905.44, 04-Sep-2012
129,Revenue,CCHD,Bed purchasing - S28A Under 65 - South,Residential Homes,Aspects &  Milestones Trust,5052.2, 04-Sep-2012
130,Revenue,CCHD,Bed purchasing - S28A Under 65 - South,Residential Homes,Aspects &  Milestones Trust,6626.28, 04-Sep-2012
131,Revenue,CCHD,Bed purchasing - S28A Under 65 - South,Residential Homes,Aspects &  Milestones Trust,4047.8, 04-Sep-2012
132,Revenue,CCHD,Bed Purchasing - LD S28A- Over 65- South,Residential Homes,Aspects &  Milestones Trust,5824.28, 04-Sep-2012
133,Revenue,CCHD,Bed Purchasing - S28A - Over 65- North,Residential Homes,Aspects &  Milestones Trust,3397.72, 04-Sep-2012
134,Revenue,CCHD,Bed Purchasing - LD S28A- Over 65- South,Residential Homes,Aspects &  Milestones Trust,4760.52, 04-Sep-2012
135,Revenue,CCHD,Bed Purchasing - LD S28A- Over 65- South,Residential Homes,Aspects &  Milestones Trust,4908.2, 04-Sep-2012
136,Revenue,CCHD,Bed Purchasing - LD S28A- Over 65- South,Residential Homes,Aspects &  Milestones Trust,4622.6, 04-Sep-2012
137,Revenue,CCHD,Bed Purchasing - LD S28A- Over 65- South,Residential Homes,Aspects &  Milestones Trust,5383.48, 04-Sep-2012
138,Revenue,CCHD,Bed purchasing -S28A  Under 65 - North,Residential Homes,Aspects &  Milestones Trust,7309.52, 04-Sep-2012
139,Revenue,CCHD,Bed purchasing -S28A  Under 65 - North,Nursing Homes,Aspects &  Milestones Trust,6296.44, 04-Sep-2012
140,Revenue,CCHD,Bed Purchasing - LD S28A- Over 65- South,Residential Homes,Aspects &  Milestones Trust,3492.92, 04-Sep-2012
141,Revenue,CCHD,Bed Purchasing - LD S28A- Over 65- South,Residential Homes,Aspects &  Milestones Trust,3251.48, 04-Sep-2012
142,Revenue,CCHD,Bed Purchasing - S28A - Over 65- North,Residential Homes,Aspects &  Milestones Trust,3308.72, 04-Sep-2012
143,Revenue,CCHD,Bed Purchasing - LD S28A- Over 65- South,Residential Homes,Aspects &  Milestones Trust,4720.44, 04-Sep-2012
144,Revenue,CCHD,Section 117 Placements MH Younger,Residential Homes,Aspects &  Milestones Trust,1324, 04-Sep-2012
145,Revenue,CCHD,Bed purchasing - Elderly MH - North,Residential Homes,Aspects &  Milestones Trust,849.48, 04-Sep-2012
146,Revenue,CCHD,Bed purchasing - S28A Under 65 - South,Residential Homes,Aspects &  Milestones Trust,4790.96, 04-Sep-2012
147,Revenue,CCHD,Bed purchasing - Elderly PWLD - North,Residential Homes,Aspects &  Milestones Trust,5424.04, 04-Sep-2012
148,Revenue,CCHD,Bed purchasing - Under 65s PWLD - North,Residential Homes,Aspects &  Milestones Trust,5511.12, 04-Sep-2012
149,Revenue,CCHD,Bed purchasing - Elderly MH - North,Nursing Homes,Aspects &  Milestones Trust,1096.68, 04-Sep-2012
150,Revenue,CCHD,Bed Purchasing - Under 65s PWLD - South,Residential Homes,Aspects &  Milestones Trust,3849.4, 04-Sep-2012
151,Revenue,CCHD,Bed purchasing -S28A  Under 65 - North,Residential Homes,Aspects &  Milestones Trust,5771.6, 04-Sep-2012
152,Revenue,CCHD,Bed Purchasing - S28A - Over 65- North,Residential Homes,Aspects &  Milestones Trust,3271.48, 04-Sep-2012
153,Revenue,CCHD,Section 117 Placements MH Younger,Residential Homes,Aspects &  Milestones Trust,1716, 04-Sep-2012
154,Revenue,CCHD,MH Purchasing - Younger,Residential Homes,Aspects &  Milestones Trust,1012.6, 04-Sep-2012
155,Revenue,CCHD,Bed Purchasing - S28A - Over 65- North,Residential Homes,Aspects &  Milestones Trust,3511.28, 04-Sep-2012
156,Revenue,CCHD,Bed purchasing - S28A Under 65 - South,Residential Homes,Aspects &  Milestones Trust,3563.92, 04-Sep-2012
157,Revenue,CCHD,Bed purchasing - S28A Under 65 - South,Residential Homes,Aspects &  Milestones Trust,5052.2, 04-Sep-2012
158,Revenue,CCHD,Bed purchasing - S28A Under 65 - South,Residential Homes,Aspects &  Milestones Trust,6024.64, 04-Sep-2012
159,Revenue,CCHD,Bed Purchasing - LD S28A- Over 65- South,Residential Homes,Aspects &  Milestones Trust,5898.16, 04-Sep-2012
160,Revenue,CCHD,Bed Purchasing - LD S28A- Over 65- South,Residential Homes,Aspects &  Milestones Trust,4164.96, 04-Sep-2012
161,Revenue,CCHD,Bed Purchasing - LD S28A- Over 65- South,Residential Homes,Aspects &  Milestones Trust,4720.44, 04-Sep-2012
162,Revenue,CCHD,Bed Purchasing - S28A - Over 65- North,Residential Homes,Aspects &  Milestones Trust,4762.64, 04-Sep-2012
163,Revenue,CCHD,Bed Purchasing - LD S28A- Over 65- South,Residential Homes,Aspects &  Milestones Trust,5607.6, 04-Sep-2012
164,Revenue,CCHD,Bed purchasing - S28A Under 65 - South,Residential Homes,Aspects &  Milestones Trust,7738.32, 04-Sep-2012
165,Revenue,CCHD,Bed Purchasing - LD S28A- Over 65- South,Residential Homes,Aspects &  Milestones Trust,4902.32, 04-Sep-2012
166,Revenue,CCHD,Bed purchasing -S28A  Under 65 - North,Residential Homes,Aspects &  Milestones Trust,4743.92, 04-Sep-2012
167,Revenue,CCHD,Bed Purchasing - S28A - Over 65- North,Residential Homes,Aspects &  Milestones Trust,4885.4, 04-Sep-2012
168,Revenue,CCHD,Bed Purchasing - S28A - Over 65- North,Residential Homes,Aspects &  Milestones Trust,5473.64, 04-Sep-2012
169,Revenue,CCHD,Bed purchasing - S28A Under 65 - South,Residential Homes,Aspects &  Milestones Trust,4611.44, 04-Sep-2012
170,Revenue,CCHD,Bed Purchasing - S28A - Over 65- North,Residential Homes,Aspects &  Milestones Trust,4885.4, 04-Sep-2012
171,Revenue,CCHD,Bed Purchasing - S28A - Over 65- North,Residential Homes,Aspects &  Milestones Trust,5277.28, 04-Sep-2012
172,Revenue,CCHD,Bed Purchasing - LD S28A- Over 65- South,Residential Homes,Aspects &  Milestones Trust,4908.2, 04-Sep-2012
173,Revenue,CCHD,Bed purchasing - S28A Under 65 - South,Residential Homes,Aspects &  Milestones Trust,4734.4, 04-Sep-2012
174,Revenue,CCHD,Bed purchasing -S28A  Under 65 - North,Residential Homes,Aspects &  Milestones Trust,6125.96, 04-Sep-2012
175,Revenue,CCHD,Bed Purchasing - S28A - Over 65- North,Residential Homes,Aspects &  Milestones Trust,5621.68, 04-Sep-2012
176,Revenue,CCHD,Bed purchasing -S28A  Under 65 - North,Residential Homes,Aspects &  Milestones Trust,3468.84, 04-Sep-2012
177,Revenue,CCHD,Bed Purchasing - S28A - Over 65- North,Residential Homes,Aspects &  Milestones Trust,3275.16, 04-Sep-2012
178,Revenue,CCHD,Bed Purchasing - S28A - Over 65- North,Residential Homes,Aspects &  Milestones Trust,3412.88, 04-Sep-2012
179,Revenue,CCHD,Bed Purchasing - LD S28A- Over 65- South,Residential Homes,Aspects &  Milestones Trust,3204.2, 04-Sep-2012
180,Revenue,CCHD,Bed purchasing - Elderly S117 - South,Nursing Homes,Aspects &  Milestones Trust,1945.16, 04-Sep-2012
181,Revenue,CCHD,Bed Purchasing - Elderly - South,Nursing Homes,Aspects &  Milestones Trust,16128.92, 04-Sep-2012
182,Revenue,CCHD,Bed Purchasing - Elderly - South,Nursing Homes,Aspects &  Milestones Trust,2592.64, 04-Sep-2012
183,Revenue,CCHD,Bed purchasing - Under 65s PWLD - North,Residential Homes,Aspects &  Milestones Trust,6125.96, 04-Sep-2012
184,Revenue,CCHD,MH Purchasing - Younger,Nursing Homes,Aspects &  Milestones Trust,920.56, 04-Sep-2012
185,Revenue,CCHD,MH Purchasing - Younger,Nursing Homes,Aspects &  Milestones Trust,939.2, 04-Sep-2012
186,Revenue,CCHD,MH Purchasing - Younger,Residential Homes,Aspects &  Milestones Trust,1012.6, 04-Sep-2012
187,Revenue,CCHD,Bed purchasing - Elderly PWLD - South,Residential Homes,Aspects &  Milestones Trust,3399.76, 04-Sep-2012
188,Revenue,CCHD,Bed purchasing - S28A Under 65 - South,Residential Homes,Aspects &  Milestones Trust,7168.2, 04-Sep-2012
189,Revenue,CCHD,Bed purchasing - S28A Under 65 - South,Residential Homes,Aspects &  Milestones Trust,4866.72, 04-Sep-2012
190,Revenue,CCHD,Bed Purchasing - LD S28A- Over 65- South,Residential Homes,Aspects &  Milestones Trust,4628.68, 04-Sep-2012
191,Revenue,CCHD,Bed Purchasing - Under 65s PWLD - South,Residential Homes,Aspects &  Milestones Trust,4173.08, 04-Sep-2012
192,Revenue,CCHD,Bed Purchasing - LD S28A- Over 65- South,Residential Homes,Aspects &  Milestones Trust,3801.96, 04-Sep-2012
193,Revenue,CCHD,Bed Purchasing - LD S28A- Over 65- South,Residential Homes,Aspects &  Milestones Trust,5898.16, 04-Sep-2012
194,Revenue,CCHD,Bed Purchasing - LD S28A- Over 65- South,Residential Homes,Aspects &  Milestones Trust,3973.08, 04-Sep-2012
195,Revenue,CCHD,Bed Purchasing - LD S28A- Over 65- South,Residential Homes,Aspects &  Milestones Trust,4406.8, 04-Sep-2012
196,Revenue,CCHD,Bed Purchasing - LD S28A- Over 65- South,Residential Homes,Aspects &  Milestones Trust,5155.88, 04-Sep-2012
197,Revenue,CCHD,Bed Purchasing - Elderly MH - South,Residential Homes,Aspects &  Milestones Trust,1206.56, 04-Sep-2012
198,Revenue,CCHD,Bed Purchasing - S28A - Over 65- North,Residential Homes,Aspects &  Milestones Trust,4762.64, 04-Sep-2012
199,Revenue,CCHD,Bed Purchasing - Elderly S117- North,Nursing Homes,Aspects &  Milestones Trust,1944, 04-Sep-2012
200,Revenue,CCHD,Bed Purchasing - Elderly S117- North,Nursing Homes,Aspects &  Milestones Trust,1944, 04-Sep-2012
201,Revenue,CCHD,Bed Purchasing - Elderly S117- North,Residential Homes,Aspects &  Milestones Trust,1324, 04-Sep-2012
202,Revenue,CCHD,Bed purchasing - Under 65s PWLD - North,Residential Homes,Aspects & Milestones Trust,8841.64, 04-Sep-2012
203,Revenue,CCHD,Supported Living - PS,Private & Voluntary Home Care,Aspirations Support Bristol Limited,4947.66, 10-Sep-2012
204,Revenue,CCHD,Bed Purchasing - Under 65s PWLD - South,Residential Homes,Autism Specialised Care Homes,5515.04, 04-Sep-2012
205,Revenue,CCHD,Younger Adult Mental Health,Management Contract - Unisys,Avon & Wiltshire Mental Health,5000, 20-Sep-2012
206,Revenue,CCHD,Purchase of Non-Res Care - KD,Private & Voluntary Day Care,Avon Autistic Foundation Limited,2849.7, 07-Sep-2012
207,Revenue,CCHD,Purchase of Non-Res Care - KD,Private & Voluntary Day Care,Avon Autistic Foundation Limited,4182.4, 07-Sep-2012
208,Revenue,CCHD,Better Support for Older People,Other Supplies & Services,Barberry,575, 03-Sep-2012
209,Revenue,CCHD,Frenchay Hospital Purchasing,Residential Homes,Beaufort House,661.44, 04-Sep-2012
210,Revenue,CCHD,Bed purchasing - Elderly MH - North,Residential Homes,Beaufort House,1418.36, 04-Sep-2012
211,Revenue,CCHD,Southmead Hospital Purchasing,Residential Homes,Beaufort House,1723.2, 04-Sep-2012
212,Revenue,CCHD,Southmead Hospital Purchasing,Residential Homes,Beaufort House,1600.12, 04-Sep-2012
213,Revenue,CCHD,Frenchay Hospital Purchasing,Residential Homes,Beaufort House,1276.24, 04-Sep-2012
214,Revenue,CCHD,Bed purchasing - Elderly MH - North,Residential Homes,Beaufort House,1318.88, 04-Sep-2012
215,Revenue,CCHD,Bed Purchasing - Elderly - North,Residential Homes,Beaufort House,1697.4, 04-Sep-2012
216,Revenue,CCHD,Bed purchasing - Elderly MH - North,Residential Homes,Beaufort House,875.84, 04-Sep-2012
217,Revenue,CCHD,Bed purchasing - Elderly MH - North,Residential Homes,Beaufort House,1011.32, 04-Sep-2012
218,Revenue,CCHD,Bed purchasing - Elderly MH - North,Residential Homes,Beaufort House,1672.68, 04-Sep-2012
219,Revenue,CCHD,Bed Purchasing - Elderly - North,Residential Homes,Beaufort House,864.29, 04-Sep-2012
220,Revenue,CCHD,Bed purchasing - Elderly PWLD - South,Residential Homes,Bedrock Lodge,2858.6, 04-Sep-2012
221,Revenue,CCHD,Section 117 Placements MH Younger,Residential Homes,Bedrock Lodge,1820.2, 04-Sep-2012
222,Revenue,CCHD,Bed Purchasing - Elderly - South,Nursing Homes,Beech House,1124.71, 04-Sep-2012
223,Revenue,CCHD,Bed Purchasing - Elderly - South,Nursing Homes,Beech House,899.77, 04-Sep-2012
224,Revenue,CCHD,Bed Purchasing - Elderly - North,Nursing Homes,Beech House,1948.96, 04-Sep-2012
225,Revenue,CCHD,Bed Purchasing - Elderly - North,Residential Homes,Beech House,1100, 04-Sep-2012
226,Revenue,CCHD,South Glos Users in South Glos Homes,Nursing Homes,Beech House,1087, 04-Sep-2012
227,Revenue,CCHD,Bed Purchasing - Elderly - North,Nursing Homes,Beech House,2202.92, 04-Sep-2012
228,Revenue,CCHD,Bed purchasing - Under 65s PWLD - North,Residential Homes,Beechwood Residential College,50637.05, 04-Sep-2012
229,Revenue,CCHD,South Glos Users in South Glos Homes,Nursing Homes,Blossom Field,869.6, 04-Sep-2012
230,Revenue,CCHD,South Glos Users in South Glos Homes,Nursing Homes,Blossom Field,869.6, 04-Sep-2012
231,Revenue,CCHD,South Glos Users in South Glos Homes,Nursing Homes,Blossom Field,1475.21, 04-Sep-2012
232,Revenue,CCHD,South Glos Users in South Glos Homes,Nursing Homes,Blossom Field,869.6, 04-Sep-2012
233,Revenue,CCHD,South Glos Users in South Glos Homes,Nursing Homes,Blossom Field,869.6, 04-Sep-2012
234,Revenue,CCHD,South Glos Users in South Glos Homes,Nursing Homes,Blossom Field,869.6, 04-Sep-2012
235,Revenue,CCHD,South Glos Users in South Glos Homes,Nursing Homes,Blossom Field,869.6, 04-Sep-2012
236,Revenue,CCHD,South Glos Users in South Glos Homes,Nursing Homes,Blossom Field,869.6, 04-Sep-2012
237,Revenue,CCHD,South Glos Users in South Glos Homes,Nursing Homes,Blossom Field,869.6, 04-Sep-2012
238,Revenue,CCHD,South Glos Users in South Glos Homes,Nursing Homes,Blossom Field,869.6, 04-Sep-2012
239,Revenue,CCHD,South Glos Users in South Glos Homes,Nursing Homes,Blossom Field,869.6, 04-Sep-2012
240,Revenue,CCHD,South Glos Users in South Glos Homes,Nursing Homes,Blossom Field,729.84, 04-Sep-2012
241,Revenue,CCHD,South Glos Users in South Glos Homes,Nursing Homes,Blossom Field,869.6, 04-Sep-2012
242,Revenue,CCHD,South Glos Users in South Glos Homes,Nursing Homes,Blossom Field,527.97, 04-Sep-2012
243,Revenue,CCHD,South Glos Users in South Glos Homes,Nursing Homes,Blossom Field,869.6, 04-Sep-2012
244,Revenue,CCHD,Bed Purchasing - Elderly S117- North,Nursing Homes,Blossom Field,1588.5, 04-Sep-2012
245,Revenue,CCHD,Bed Purchasing - Elderly - North,Nursing Homes,Blossom Field,679.83, 04-Sep-2012
246,Revenue,CCHD,Southmead Hospital Purchasing,Nursing Homes,Blossom Field,4291.72, 04-Sep-2012
247,Revenue,CCHD,South Glos Users in South Glos Homes,Nursing Homes,Blossom Field,962.77, 04-Sep-2012
248,Revenue,CCHD,Southmead Hospital Purchasing,Nursing Homes,Blossom Field,895, 04-Sep-2012
249,Revenue,CCHD,South Glos Users in South Glos Homes,Nursing Homes,Blossom Field,869.6, 04-Sep-2012
250,Revenue,CCHD,South Glos Users in South Glos Homes,Nursing Homes,Blossom Field,1754.73, 04-Sep-2012
251,Revenue,CCHD,South Glos Users in South Glos Homes,Nursing Homes,Blossom Field,869.6, 04-Sep-2012
252,Revenue,CCHD,Bed purchasing - Elderly MH - North,Nursing Homes,Blossom Field,2782.32, 04-Sep-2012
253,Revenue,CCHD,South Glos Users in South Glos Homes,Nursing Homes,Blossom Field,869.6, 04-Sep-2012
254,Revenue,CCHD,South Glos Users in South Glos Homes,Nursing Homes,Blossom Field,869.6, 04-Sep-2012
255,Revenue,CCHD,South Glos Users in South Glos Homes,Nursing Homes,Blossom Field,1832.37, 04-Sep-2012
256,Revenue,CCHD,South Glos Users in South Glos Homes,Nursing Homes,Blossom Field,1754.73, 04-Sep-2012
257,Revenue,CCHD,South Glos Users in South Glos Homes,Nursing Homes,Blossom Field,869.6, 04-Sep-2012
258,Revenue,CCHD,Bed Purchasing - Elderly - North,Nursing Homes,Blossom Field,2189.28, 04-Sep-2012
259,Revenue,CCHD,South Glos Users in South Glos Homes,Nursing Homes,Blossom Field,869.6, 04-Sep-2012
260,Revenue,CCHD,South Glos Users in South Glos Homes,Nursing Homes,Blossom Field,869.6, 04-Sep-2012
261,Revenue,CCHD,Bed Purchasing - Elderly - South,Nursing Homes,Blossom Field,17283, 04-Sep-2012
262,Revenue,CCHD,Bed Purchasing - Elderly - South,Nursing Homes,Blossom Field,3734.4, 04-Sep-2012
263,Revenue,CCHD,South Glos Users in South Glos Homes,Nursing Homes,Blossom Field,869.6, 04-Sep-2012
264,Revenue,CCHD,Bed Purchasing - Elderly - South,Nursing Homes,Blossom Fields,2961.76, 04-Sep-2012
265,Revenue,CCHD,Bed Purchasing - Elderly - North,Nursing Homes,Blossom Fields,7538.85, 04-Sep-2012
266,Revenue,CCHD,South Glos Users in South Glos Homes,Nursing Homes,Blossom Fields,869.6, 04-Sep-2012
267,Revenue,CCHD,Bed purchasing - Elderly MH - North,Nursing Homes,Blossom Fields,1536.23, 04-Sep-2012
268,Revenue,CCHD,Tenancy Start Up Scheme,Other Supplies & Services,Individual,1514.23, 14-Sep-2012
269,Revenue,CCHD,Training - Adult Services,Training Expenses,Bob Dawson,1675, 25-Sep-2012
270,Revenue,CCHD,Training - Adult Services,Training Expenses,Bournemouth University,1300, 21-Sep-2012
271,Revenue,CCHD,Training - Adult Services,Training Expenses,Bournemouth University,666.67, 21-Sep-2012
272,Revenue,CCHD,Finance,Training Expenses,BPP Professional Education,1462.49, 03-Sep-2012
273,Revenue,CCHD,Frenchay Hospital Purchasing,Nursing Homes,Bradbury House,1366.76, 04-Sep-2012
274,Revenue,CCHD,Bed Purchasing - Elderly - North,Nursing Homes,Bradbury House,3902.17, 04-Sep-2012
275,Revenue,CCHD,Bed Purchasing - Elderly - North,Residential Homes,Bradley House,1239.2, 04-Sep-2012
276,Revenue,CCHD,Home Care - Elderly - South,Other Small Contracts,Bradley House Home Care Services,150.12, 07-Sep-2012
277,Revenue,CCHD,Home Care - Elderly - North,Other Small Contracts,Bradley House Home Care Services,1697.19, 07-Sep-2012
278,Revenue,CCHD,Day Care - South,Private & Voluntary Day Care,Bradley House Home Care Services,50.04, 07-Sep-2012
279,Revenue,CCHD,Day Care - North,Private & Voluntary Day Care,Bradley House Home Care Services,133.44, 07-Sep-2012
280,Revenue,CCHD,Younger MH non-res purchasing,Private & Voluntary Day Care,Bradley House Home Care Services,75.06, 07-Sep-2012
281,Revenue,CCHD,Home Care - Elderly - South,Other Small Contracts,Bradley House Home Care Services,162.63, 07-Sep-2012
282,Revenue,CCHD,Home Care - Elderly - North,Other Small Contracts,Bradley House Home Care Services,1747.23, 07-Sep-2012
283,Revenue,CCHD,Day Care - South,Private & Voluntary Day Care,Bradley House Home Care Services,33.36, 07-Sep-2012
284,Revenue,CCHD,Day Care - North,Private & Voluntary Day Care,Bradley House Home Care Services,129.27, 07-Sep-2012
285,Revenue,CCHD,Younger MH non-res purchasing,Private & Voluntary Day Care,Bradley House Home Care Services,75.06, 07-Sep-2012
286,Revenue,CCHD,Woodleaze,"Provisions (Food, etc)",Brake Bros,1331.41, 13-Sep-2012
287,Revenue,CCHD,Newton House,"Provisions (Food, etc)",Brake Bros,790.37, 04-Sep-2012
288,Revenue,CCHD,Alexandra Way,"Provisions (Food, etc)",Brake Bros,727.87, 04-Sep-2012
289,Revenue,CCHD,Alexandra Way,"Provisions (Food, etc)",Brake Bros,586.16, 24-Sep-2012
290,Revenue,CCHD,Tenancy Start Up Scheme,Other Supplies & Services,Individual,625, 11-Sep-2012
291,Revenue,CCHD,Bed Purchasing - Elderly - North,Residential Homes,Bridge House Care Home,1227.08, 04-Sep-2012
292,Revenue,CCHD,Bed Purchasing - Elderly - North,Residential Homes,Bridge House Care Home,1503.04, 04-Sep-2012
293,Revenue,CCHD,Bed Purchasing - Elderly - North,Residential Homes,Bridge House Care Home,1072.84, 04-Sep-2012
294,Revenue,CCHD,Bed Purchasing - Elderly - North,Residential Homes,Bridge House Care Home,1074, 04-Sep-2012
295,Revenue,CCHD,Bed Purchasing - Elderly - North,Residential Homes,Bridge House Care Home,1322.96, 04-Sep-2012
296,Revenue,CCHD,Bed Purchasing - Elderly MH - South,Residential Homes,Brightbow,2529, 04-Sep-2012
297,Revenue,CCHD,MH Purchasing - Younger,Residential Homes,Brightbow,922.36, 04-Sep-2012
298,Revenue,CCHD,Older People's Commissioned Se,Grants to Voluntary Bodies,Bristol Area Stroke Foundation,4575.5, 28-Sep-2012
299,Revenue,CCHD,Supporting People Programme,Grants to Voluntary Bodies,Bristol Care & Repair,9780.82, 18-Sep-2012
300,Revenue,CCHD,Supported Living - KD,Private & Voluntary Home Care,Bristol Houses UK Ltd,1290.56, 10-Sep-2012
301,Revenue,CCHD,Supported Living - KD,Private & Voluntary Home Care,Bristol Houses UK Ltd,1046.4, 10-Sep-2012
302,Revenue,CCHD,Supported Living - KD,Private & Voluntary Home Care,Bristol Houses UK Ltd,1569.6, 07-Sep-2012
303,Revenue,CCHD,Supported Living - KD,Private & Voluntary Home Care,Bristol Houses UK Ltd,924.32, 26-Sep-2012
304,Revenue,CCHD,Supported Living - KD,Private & Voluntary Home Care,Bristol Houses UK Ltd,806.25, 10-Sep-2012
305,Revenue,CCHD,Younger MH non-res purchasing,Private & Voluntary Day Care,Bristol Houses UK Ltd,1080, 21-Sep-2012
306,Revenue,CCHD,Supported Living - KD,Private & Voluntary Home Care,Bristol Houses UK Ltd,570, 10-Sep-2012
307,Revenue,CCHD,Supported Living - KD,Private & Voluntary Home Care,Bristol Houses UK Ltd,585, 10-Sep-2012
308,Revenue,CCHD,Supported Living - KD,Private & Voluntary Home Care,Bristol Houses UK Ltd,599.98, 07-Sep-2012
309,Revenue,CCHD,Bed and Breakfast,Bed & Breakfast,Bristol Housing & Support Limited,592, 03-Sep-2012
310,Revenue,CCHD,Bed and Breakfast,Bed & Breakfast,Bristol Housing & Support Limited,672, 19-Sep-2012
311,Revenue,CCHD,Bed and Breakfast,Bed & Breakfast,Bristol Housing & Support Limited,480, 20-Sep-2012
312,Revenue,CCHD,Bed and Breakfast,Bed & Breakfast,Bristol Housing & Support Limited,536, 24-Sep-2012
313,Revenue,CCHD,Kingswood Centre - Maples Suite,Water Charges,Bristol Wessex Billing Services Limited,824.53, 27-Sep-2012
314,Revenue,CCHD,Alexandra Way,Water Charges,Bristol Wessex Billing Services Limited,5205.59, 27-Sep-2012
315,Revenue,CCHD,Bed Purchasing - Elderly S117- North,Residential Homes,Brockley Court Care Home,1818.04, 04-Sep-2012
316,Revenue,CCHD,Bed Purchasing - Elderly - North,Residential Homes,Brook Lane Residential Home,877.36, 04-Sep-2012
317,Revenue,CCHD,Southmead Hospital Purchasing,Residential Homes,Brunel Care,1239.2, 04-Sep-2012
318,Revenue,CCHD,Southmead Hospital Purchasing,Residential Homes,Brunel Care,575.34, 04-Sep-2012
319,Revenue,CCHD,Bed Purchasing - Elderly - South,Residential Homes,Brunel Care,1173.6, 04-Sep-2012
320,Revenue,CCHD,Bed Purchasing - Elderly - South,Nursing Homes,Brunel Care,713.44, 04-Sep-2012
321,Revenue,CCHD,Southmead Hospital Purchasing,Residential Homes,Brunel Care,1239.36, 04-Sep-2012
322,Revenue,CCHD,Bed Purchasing - Elderly MH - South,Nursing Homes,Brunel Care,2029.8, 04-Sep-2012
323,Revenue,CCHD,Southmead Hospital Purchasing,Nursing Homes,Brunel Care,1267.64, 04-Sep-2012
324,Revenue,CCHD,Bed Purchasing - Elderly - South,Residential Homes,Brunel Care,1269.4, 04-Sep-2012
325,Revenue,CCHD,Home Care - Elderly - North,Private & Voluntary Home Care,Brunelcare,6720, 03-Sep-2012
326,Revenue,CCHD,Home Care - Elderly - North,Private & Voluntary Home Care,Brunelcare,6720, 10-Sep-2012
327,Revenue,CCHD,Home Care - Elderly - North,Private & Voluntary Home Care,Brunelcare,6720, 17-Sep-2012
328,Revenue,CCHD,Home Care - Elderly - North,Private & Voluntary Home Care,Brunelcare,6720, 24-Sep-2012
329,Revenue,CCHD,Elderly MH Day Care South,Private & Voluntary Day Care,Brunelcare,557.2, 14-Sep-2012
330,Revenue,CCHD,Home Care - Elderly - South,Other Small Contracts,Brunelcare,2554.02, 11-Sep-2012
331,Revenue,CCHD,Home Care - Elderly - North,Other Small Contracts,Brunelcare,4209.68, 11-Sep-2012
332,Revenue,CCHD,Day Care - South,Private & Voluntary Day Care,Brunelcare,141.4, 11-Sep-2012
333,Revenue,CCHD,Day Care - North,Private & Voluntary Day Care,Brunelcare,169.68, 11-Sep-2012
334,Revenue,CCHD,Under 65s -MH  Home Care Purch,Other Small Contracts,Brunelcare,189.88, 11-Sep-2012
335,Revenue,CCHD,Home care - Elderly MH - North,Other Small Contracts,Brunelcare,165.64, 11-Sep-2012
336,Revenue,CCHD,Elderly MH Day Care North,Private & Voluntary Day Care,Brunelcare,371.68, 11-Sep-2012
337,Revenue,CCHD,Home Care - Elderly - South,Other Small Contracts,Brunelcare,2687.32, 06-Sep-2012
338,Revenue,CCHD,Home Care - Elderly - North,Other Small Contracts,Brunelcare,4439.96, 06-Sep-2012
339,Revenue,CCHD,Day Care - South,Private & Voluntary Day Care,Brunelcare,137.36, 06-Sep-2012
340,Revenue,CCHD,Day Care - North,Private & Voluntary Day Care,Brunelcare,84.84, 06-Sep-2012
341,Revenue,CCHD,Under 65s -MH  Home Care Purch,Other Small Contracts,Brunelcare,226.24, 06-Sep-2012
342,Revenue,CCHD,Home care - Elderly MH - North,Other Small Contracts,Brunelcare,177.76, 06-Sep-2012
343,Revenue,CCHD,Elderly MH Day Care North,Private & Voluntary Day Care,Brunelcare,375.72, 06-Sep-2012
344,Revenue,CCHD,Home Care - Elderly - South,Other Small Contracts,Brunelcare,2570.18, 06-Sep-2012
345,Revenue,CCHD,Home Care - Elderly - North,Other Small Contracts,Brunelcare,4508.64, 06-Sep-2012
346,Revenue,CCHD,Day Care - South,Private & Voluntary Day Care,Brunelcare,145.44, 06-Sep-2012
347,Revenue,CCHD,Day Care - North,Private & Voluntary Day Care,Brunelcare,80.8, 06-Sep-2012
348,Revenue,CCHD,Under 65s -MH  Home Care Purch,Other Small Contracts,Brunelcare,218.16, 06-Sep-2012
349,Revenue,CCHD,Home care - Elderly MH - North,Other Small Contracts,Brunelcare,181.8, 06-Sep-2012
350,Revenue,CCHD,Elderly MH Day Care North,Private & Voluntary Day Care,Brunelcare,408.04, 06-Sep-2012
351,Revenue,CCHD,Information Systems - Software,Computer Equipment - Purchase,BT Global Services Solutions,9096.07, 14-Sep-2012
352,Revenue,CCHD,Bed purchasing - Elderly MH - North,Residential Homes,Bupa Care Services  Bridge House,6011.21, 04-Sep-2012
353,Revenue,CCHD,Supported Living - PS,Private & Voluntary Home Care,Camphill Communities Thornbury Limited,1736.4, 10-Sep-2012
354,Revenue,CCHD,Supported Living - KD,Private & Voluntary Home Care,Camphill Communities Thornbury Limited,2475, 26-Sep-2012
355,Revenue,CCHD,Supported Living - KD,Private & Voluntary Home Care,Camphill Communities Thornbury Limited,1686.39, 10-Sep-2012
356,Revenue,CCHD,Supported Living - KD,Private & Voluntary Home Care,Camphill Communities Thornbury Limited,2269.12, 14-Sep-2012
357,Revenue,CCHD,Supported Living - KD,Private & Voluntary Home Care,Camphill Communities Thornbury Limited,2030.28, 17-Sep-2012
358,Revenue,CCHD,Supported Living - KD,Private & Voluntary Home Care,Camphill Communities Thornbury Limited,1997.32, 17-Sep-2012
359,Revenue,CCHD,Supported Living - KD,Private & Voluntary Home Care,Camphill Communities Thornbury Limited,2112.64, 26-Sep-2012
360,Revenue,CCHD,Supported Living - KD,Private & Voluntary Home Care,Camphill Communities Thornbury Limited,2216.04, 26-Sep-2012
361,Revenue,CCHD,Supported Living - KD,Private & Voluntary Home Care,Camphill Communities Thornbury Limited,1775.92, 26-Sep-2012
362,Revenue,CCHD,Bed purchasing - Under 65s PWLD - North,Residential Homes,Camphill Devon Community,3185.24, 04-Sep-2012
363,Revenue,CCHD,Bed purchasing - Under 65s PWLD - North,Residential Homes,Camphill Devon Community,2234.08, 04-Sep-2012
364,Revenue,CCHD,Home Care - Elderly - South,Other Small Contracts,Care 1st Homecare,2555.55, 04-Sep-2012
365,Revenue,CCHD,Home Care - Elderly - North,Other Small Contracts,Care 1st Homecare,3231.9, 04-Sep-2012
366,Revenue,CCHD,Day Care - South,Private & Voluntary Day Care,Care 1st Homecare,162, 04-Sep-2012
367,Revenue,CCHD,Day Care - North,Private & Voluntary Day Care,Care 1st Homecare,275.4, 04-Sep-2012
368,Revenue,CCHD,Home care - Elderly MH - North,Other Small Contracts,Care 1st Homecare,157.95, 04-Sep-2012
369,Revenue,CCHD,Home Care - LD Under 65 - South,Private & Voluntary Home Care,Care 1st Homecare,64.8, 04-Sep-2012
370,Revenue,CCHD,PWLD Home Care - Under 65 - KH,Private & Voluntary Home Care,Care 1st Homecare,137.7, 04-Sep-2012
371,Revenue,CCHD,Home Care - Elderly - South,Other Small Contracts,Care 1st Homecare,2559.6, 11-Sep-2012
372,Revenue,CCHD,Home Care - Elderly - North,Other Small Contracts,Care 1st Homecare,3458.7, 11-Sep-2012
373,Revenue,CCHD,Day Care - South,Private & Voluntary Day Care,Care 1st Homecare,162, 11-Sep-2012
374,Revenue,CCHD,Day Care - North,Private & Voluntary Day Care,Care 1st Homecare,287.55, 11-Sep-2012
375,Revenue,CCHD,Home care - Elderly MH - North,Other Small Contracts,Care 1st Homecare,194.4, 11-Sep-2012
376,Revenue,CCHD,Home Care - LD Under 65 - South,Private & Voluntary Home Care,Care 1st Homecare,129.6, 11-Sep-2012
377,Revenue,CCHD,PWLD Home Care - Under 65 - KH,Private & Voluntary Home Care,Care 1st Homecare,170.1, 11-Sep-2012
378,Revenue,CCHD,Bed Purchasing - PWLD S 117 Placements,Residential Homes,Care Community Ltd,7464.72, 04-Sep-2012
379,Revenue,CCHD,Supported Living - PS,Private & Voluntary Home Care,Care Horizons Limited,2087.62, 03-Sep-2012
380,Revenue,CCHD,Supported Living - KD,Private & Voluntary Home Care,Care Horizons Limited,5322.68, 07-Sep-2012
381,Revenue,CCHD,Supported Living - KD,Private & Voluntary Home Care,Care Horizons Limited,5719.84, 26-Sep-2012
382,Revenue,CCHD,Purchase of Non-Res Care - KD,Private & Voluntary Day Care,Care Horizons Limited,1823.18, 26-Sep-2012
383,Revenue,CCHD,Purchase of Non-Res Care - KD,Private & Voluntary Day Care,Care Horizons Limited,1164.6, 26-Sep-2012
384,Revenue,CCHD,Purchase of Non-Res Care - KD,Private & Voluntary Day Care,Care Horizons Limited,1164.6, 26-Sep-2012
385,Revenue,CCHD,Purchase of Non-Res Care - KD,Private & Voluntary Day Care,Care Horizons Limited,1380.04, 26-Sep-2012
386,Revenue,CCHD,Day Care - South,Private & Voluntary Day Care,Care Horizons Limited,342.86, 19-Sep-2012
387,Revenue,CCHD,Day Care - North,Private & Voluntary Day Care,Care Horizons Limited,360.22, 19-Sep-2012
388,Revenue,CCHD,Day Care - South,Private & Voluntary Day Care,Care Horizons Limited,355.88, 19-Sep-2012
389,Revenue,CCHD,Day Care - North,Private & Voluntary Day Care,Care Horizons Limited,486.08, 19-Sep-2012
390,Revenue,CCHD,Day Care - South,Private & Voluntary Day Care,Care Horizons Limited,355.88, 19-Sep-2012
391,Revenue,CCHD,Day Care - North,Private & Voluntary Day Care,Care Horizons Limited,364.56, 19-Sep-2012
392,Revenue,CCHD,Electronic Home Care Monitoring,Other Supplies & Services,Care Monitoring 2000 Limited,5470, 20-Sep-2012
393,Revenue,CCHD,Home Care - General,Other Supplies & Services,Care Monitoring 2000 Limited,6917.1, 20-Sep-2012
394,Revenue,CCHD,Home Care - Elderly - South,Other Small Contracts,Care UK,7326.63, 13-Sep-2012
395,Revenue,CCHD,Home Care - Elderly - North,Other Small Contracts,Care UK,3999.54, 13-Sep-2012
396,Revenue,CCHD,Day Care - South,Private & Voluntary Day Care,Care UK,347.62, 13-Sep-2012
397,Revenue,CCHD,Day Care - North,Private & Voluntary Day Care,Care UK,901.52, 13-Sep-2012
398,Revenue,CCHD,Home care - Elderly MH - North,Other Small Contracts,Care UK,668.5, 13-Sep-2012
399,Revenue,CCHD,Elderly MH Day Care North,Private & Voluntary Day Care,Care UK,217.74, 13-Sep-2012
400,Revenue,CCHD,Home Care - Elderly - South,Other Small Contracts,Care UK,7269.31, 13-Sep-2012
401,Revenue,CCHD,Home Care - Elderly - North,Other Small Contracts,Care UK,4007.18, 13-Sep-2012
402,Revenue,CCHD,Day Care - South,Private & Voluntary Day Care,Care UK,382, 13-Sep-2012
403,Revenue,CCHD,Day Care - North,Private & Voluntary Day Care,Care UK,851.86, 13-Sep-2012
404,Revenue,CCHD,Home care - Elderly MH - North,Other Small Contracts,Care UK,733.44, 13-Sep-2012
405,Revenue,CCHD,Elderly MH Day Care North,Private & Voluntary Day Care,Care UK,267.4, 13-Sep-2012
406,Revenue,CCHD,Home Care - Elderly - South,Other Small Contracts,Care UK,7483.24, 10-Sep-2012
407,Revenue,CCHD,Home Care - Elderly - North,Other Small Contracts,Care UK,4232.56, 10-Sep-2012
408,Revenue,CCHD,Day Care - South,Private & Voluntary Day Care,Care UK,339.98, 10-Sep-2012
409,Revenue,CCHD,Day Care - North,Private & Voluntary Day Care,Care UK,890.06, 10-Sep-2012
410,Revenue,CCHD,Home care - Elderly MH - North,Other Small Contracts,Care UK,725.8, 10-Sep-2012
411,Revenue,CCHD,Elderly MH Day Care North,Private & Voluntary Day Care,Care UK,267.4, 10-Sep-2012
412,Revenue,CCHD,Home Care - Elderly - South,Other Small Contracts,Carewatch (Bristol),223.13, 06-Sep-2012
413,Revenue,CCHD,Home Care - Elderly - North,Other Small Contracts,Carewatch (Bristol),378.9, 06-Sep-2012
414,Revenue,CCHD,Day Care - North,Private & Voluntary Day Care,Carewatch (Bristol),96.83, 06-Sep-2012
415,Revenue,CCHD,Home Care - Elderly - South,Other Small Contracts,Carewatch (Bristol),648.34, 06-Sep-2012
416,Revenue,CCHD,Home Care - Elderly - North,Other Small Contracts,Carewatch (Bristol),484.15, 06-Sep-2012
417,Revenue,CCHD,Day Care - North,Private & Voluntary Day Care,Carewatch (Bristol),37.89, 06-Sep-2012
418,Revenue,CCHD,Home Care - Elderly - South,Other Small Contracts,Carewatch (Bristol),568.35, 06-Sep-2012
419,Revenue,CCHD,Home Care - Elderly - North,Other Small Contracts,Carewatch (Bristol),454.68, 06-Sep-2012
420,Revenue,CCHD,Day Care - North,Private & Voluntary Day Care,Carewatch (Bristol),50.52, 06-Sep-2012
421,Revenue,CCHD,Home Care - Elderly - South,Other Small Contracts,Carewatch (Bristol),618.87, 06-Sep-2012
422,Revenue,CCHD,Home Care - Elderly - North,Other Small Contracts,Carewatch (Bristol),282.07, 06-Sep-2012
423,Revenue,CCHD,Home Care - Elderly - South,Other Small Contracts,Carewatch (Bristol),231.55, 06-Sep-2012
424,Revenue,CCHD,Home Care - Elderly - North,Other Small Contracts,Carewatch (Bristol),576.77, 06-Sep-2012
425,Revenue,CCHD,Home Care - Elderly - South,Other Small Contracts,Carewatch (Bristol),172.61, 06-Sep-2012
426,Revenue,CCHD,Home Care - Elderly - North,Other Small Contracts,Carewatch (Bristol),492.57, 06-Sep-2012
427,Revenue,CCHD,Home Care - Elderly - South,Other Small Contracts,Cash Friday at Lloyds TSB,223.88, 06-Sep-2012
428,Revenue,CCHD,Home Care - Elderly - North,Other Small Contracts,Cash Friday at Lloyds TSB,1316.26, 06-Sep-2012
429,Revenue,CCHD,Day Care - North,Private & Voluntary Day Care,Cash Friday at Lloyds TSB,88.78, 06-Sep-2012
430,Revenue,CCHD,Home Care - Elderly - South,Other Small Contracts,Cash Friday at Lloyds TSB,212.3, 06-Sep-2012
431,Revenue,CCHD,Home Care - Elderly - North,Other Small Contracts,Cash Friday at Lloyds TSB,1196.6, 06-Sep-2012
432,Revenue,CCHD,Day Care - North,Private & Voluntary Day Care,Cash Friday at Lloyds TSB,27.02, 06-Sep-2012
433,Revenue,CCHD,Home Care - Elderly - South,Other Small Contracts,Cash Friday at Lloyds TSB,200.72, 06-Sep-2012
434,Revenue,CCHD,Home Care - Elderly - North,Other Small Contracts,Cash Friday at Lloyds TSB,1212.04, 06-Sep-2012
435,Revenue,CCHD,Day Care - North,Private & Voluntary Day Care,Cash Friday at Lloyds TSB,57.9, 06-Sep-2012
436,Revenue,CCHD,Home Care - Elderly - South,Other Small Contracts,Cash Friday at Lloyds TSB,212.3, 17-Sep-2012
437,Revenue,CCHD,Home Care - Elderly - North,Other Small Contracts,Cash Friday at Lloyds TSB,1185.02, 17-Sep-2012
438,Revenue,CCHD,Day Care - North,Private & Voluntary Day Care,Cash Friday at Lloyds TSB,92.64, 17-Sep-2012
439,Revenue,CCHD,Frenchay Hospital Purchasing,Nursing Homes,Cedar Care Homes Ltd,1041.52, 04-Sep-2012
440,Revenue,CCHD,Frenchay Hospital Purchasing,Residential Homes,Centenary Care Homes Ltd,1239.2, 04-Sep-2012
441,Revenue,CCHD,Home Energy Conservation Act Activities,Other Supplies & Services,Centre For Sustainable Energy,5000, 19-Sep-2012
442,Revenue,CCHD,Bed Purchasing - Elderly - South,Residential Homes,Cepen Lodge Care Home,2155.6, 04-Sep-2012
443,Revenue,CCHD,Southmead Hospital Purchasing,Residential Homes,Charlton House Residential Home,1372.96, 04-Sep-2012
444,Revenue,CCHD,Swift Dump Code,Residential Homes,Chatsworth House,16629.04, 04-Sep-2012
445,Revenue,CCHD,Home Care - Elderly - South,Other Small Contracts,Cherish Able Care Limited,2846.92, 12-Sep-2012
446,Revenue,CCHD,Home care - Elderly MH - North,Other Small Contracts,Cherish Able Care Limited,403.76, 12-Sep-2012
447,Revenue,CCHD,Home Care - Elderly - South,Other Small Contracts,Cherish Able Care Limited,2962.28, 12-Sep-2012
448,Revenue,CCHD,Home care - Elderly MH - North,Other Small Contracts,Cherish Able Care Limited,403.76, 12-Sep-2012
449,Revenue,CCHD,Home Care - Elderly - South,Other Small Contracts,Cherish Able Care Limited,2900.48, 14-Sep-2012
450,Revenue,CCHD,Home care - Elderly MH - North,Other Small Contracts,Cherish Able Care Limited,407.88, 14-Sep-2012
451,Revenue,CCHD,Home Care - Elderly - South,Other Small Contracts,Cherish Able Care Limited,2830.44, 21-Sep-2012
452,Revenue,CCHD,Home care - Elderly MH - North,Other Small Contracts,Cherish Able Care Limited,407.88, 21-Sep-2012
453,Revenue,CCHD,Home Care - Elderly - South,Other Small Contracts,Cherish Able Care Limited,2558.52, 28-Sep-2012
454,Revenue,CCHD,Home care - Elderly MH - North,Other Small Contracts,Cherish Able Care Limited,403.76, 28-Sep-2012
455,Revenue,CCHD,Bed purchasing -S28A  Under 65 - North,Residential Homes,Chescombe Lodge,8489.04, 04-Sep-2012
456,Revenue,CCHD,Bed Purchasing - Under 65s PWLD - South,Residential Homes,Chosen Court,6846.32, 04-Sep-2012
457,Revenue,CCHD,Bed Purchasing - PWLD S 117 Placements,Residential Homes,Chosen Court,7506.28, 04-Sep-2012
458,Revenue,CCHD,Bed Purchasing - Under 65s PWLD - South,Residential Homes,Chosen Court,5495.84, 04-Sep-2012
459,Revenue,CCHD,Training - Adult Services,Training Expenses,Chris Garnier,510, 25-Sep-2012
460,Revenue,CCHD,Supported Living - PS,Private & Voluntary Home Care,Cintre Community,591.15, 11-Sep-2012
461,Revenue,CCHD,Training - Adult Services,Training Expenses,City & Guilds,966, 21-Sep-2012
462,Revenue,CCHD,Bed Purchasing - Elderly - South,Residential Homes,Cleeve Lodge,1597.04, 04-Sep-2012
463,Revenue,CCHD,Bed Purchasing - Elderly - North,Residential Homes,Cleeve Lodge,1009.44, 04-Sep-2012
464,Revenue,CCHD,Southmead Hospital Purchasing,Residential Homes,Cleeve Lodge,1425.36, 04-Sep-2012
465,Revenue,CCHD,Bed Purchasing - Elderly - North,Residential Homes,Cleeve Lodge,1414.29, 04-Sep-2012
466,Revenue,CCHD,Bed Purchasing - Elderly - South,Residential Homes,Cleeve Lodge,1750.68, 04-Sep-2012
467,Revenue,CCHD,Bed Purchasing - Elderly - South,Residential Homes,Cleeve Lodge,1449.08, 04-Sep-2012
468,Revenue,CCHD,Bed Purchasing - Elderly - South,Residential Homes,Cleeve Lodge,2236.96, 04-Sep-2012
469,Revenue,CCHD,Bed Purchasing - Elderly - South,Residential Homes,Cleeve Lodge,1767.96, 04-Sep-2012
470,Revenue,CCHD,Southmead Hospital Purchasing,Residential Homes,Cleeve Lodge,1434.8, 04-Sep-2012
471,Revenue,CCHD,Frenchay Hospital Purchasing,Residential Homes,Collingwood Residential Home,1027.68, 04-Sep-2012
472,Revenue,CCHD,Bed Purchasing - Elderly - South,Residential Homes,Collingwood Residential Home,1284.12, 04-Sep-2012
473,Revenue,CCHD,Frenchay Hospital Purchasing,Residential Homes,Collingwood Residential Home,694.68, 04-Sep-2012
474,Revenue,CCHD,Bed Purchasing - Elderly - South,Residential Homes,Collingwood Residential Home,1058.6, 04-Sep-2012
475,Revenue,CCHD,Bed Purchasing - Elderly - South,Residential Homes,Collingwood Residential Home,1323.64, 04-Sep-2012
476,Revenue,CCHD,Frenchay Hospital Purchasing,Residential Homes,Collingwood Residential Home,1232, 04-Sep-2012
477,Revenue,CCHD,Bed Purchasing - Elderly MH - South,Residential Homes,Collingwood Residential Home,1298.4, 04-Sep-2012
478,Revenue,CCHD,Bed Purchasing - Elderly - South,Residential Homes,Collingwood Residential Home,1247.92, 04-Sep-2012
479,Revenue,CCHD,Bed Purchasing - Elderly - South,Residential Homes,Collingwood Residential Home,1373.76, 04-Sep-2012
480,Revenue,CCHD,Bed Purchasing - Elderly - South,Residential Homes,Collingwood Residential Home,1245.88, 04-Sep-2012
481,Revenue,CCHD,Bed Purchasing - Elderly - South,Residential Homes,Collingwood Residential Home,1396.72, 04-Sep-2012
482,Revenue,CCHD,Bed and Breakfast,Bed & Breakfast,Connolly & Callaghan Limited,546, 03-Sep-2012
483,Revenue,CCHD,Bed and Breakfast,Bed & Breakfast,Connolly & Callaghan Limited,546, 03-Sep-2012
484,Revenue,CCHD,Bed and Breakfast,Bed & Breakfast,Connolly & Callaghan Limited,546, 04-Sep-2012
485,Revenue,CCHD,Bed and Breakfast,Bed & Breakfast,Connolly & Callaghan Limited,516, 17-Sep-2012
486,Revenue,CCHD,Bed and Breakfast,Bed & Breakfast,Connolly & Callaghan Limited,546, 17-Sep-2012
487,Revenue,CCHD,Bed and Breakfast,Bed & Breakfast,Connolly & Callaghan Limited,441, 19-Sep-2012
488,Revenue,CCHD,Bed and Breakfast,Bed & Breakfast,Connolly & Callaghan Limited,546, 19-Sep-2012
489,Revenue,CCHD,Bed and Breakfast,Bed & Breakfast,Connolly & Callaghan Limited,558, 19-Sep-2012
490,Revenue,CCHD,Bed purchasing - Under 65s PWLD - North,Residential Homes,Consensus Support Services Ltd,8938, 19-Sep-2012
491,Revenue,CCHD,Research & Conferences,Other Supplies & Services,CPEA Ltd,9108.2, 05-Sep-2012
492,Revenue,CCHD,Bed purchasing -S28A  Under 65 - North,Residential Homes,Cream Ii Ltd  Longrun House,7845.84, 04-Sep-2012
493,Revenue,CCHD,Bed purchasing -S28A  Under 65 - North,Residential Homes,Creedy Court,9074.84, 04-Sep-2012
494,Revenue,CCHD,Bed Purchasing - S28A - Over 65- North,Residential Homes,Creedy Court,7548.92, 04-Sep-2012
495,Revenue,CCHD,Brokerage and Information Service,Grants to Voluntary Bodies,D H I,9210.09, 27-Sep-2012
496,Revenue,CCHD,Purchase of Non-Res Care - PS,Private & Voluntary Day Care,Daneswood,5525.3, 26-Sep-2012
497,Revenue,CCHD,Bed Purchasing - Under 65s PWLD - South,Residential Homes,Daneswood,10754.88, 04-Sep-2012
498,Revenue,CCHD,Bed purchasing - Under 65s PWLD - North,Residential Homes,Daneswood,8901.24, 04-Sep-2012
499,Revenue,CCHD,Learning Difficulties PSL,Other Supplies & Services,Individual,2016.44, 21-Sep-2012
500,Revenue,CCHD,Purchase of Non-Res Care - KD,Private & Voluntary Day Care,Design 4 Life Ltd,1578.03, 26-Sep-2012
501,Revenue,CCHD,Purchase of Non-Res Care - KD,Private & Voluntary Day Care,Design 4 Life Ltd,1390.68, 26-Sep-2012
502,Revenue,CCHD,Bed Purchasing - Under 65s PWLD - South,Residential Homes,Devon & Cornwall Autistic Community Trus,17176.08, 04-Sep-2012
503,Revenue,CCHD,Day Care - South,Private & Voluntary Day Care,Dhek Bhal,542.05, 04-Sep-2012
504,Revenue,CCHD,Day Care - South,Private & Voluntary Day Care,Dhek Bhal,689.37, 04-Sep-2012
505,Revenue,CCHD,Day Care - South,Private & Voluntary Day Care,Dhek Bhal,877.38, 04-Sep-2012
506,Revenue,CCHD,Training - Adult Services,Training Expenses,Dilys Jones Associates Ltd,1295, 19-Sep-2012
507,Revenue,CCHD,Bed Purchasing - Under 65s PWLD - South,Residential Homes,Dimensions (Uk),9526.88, 04-Sep-2012
508,Revenue,CCHD,Bed Purchasing - Under 65s PWLD - South,Residential Homes,Dimensions (Uk),554.85, 04-Sep-2012
509,Revenue,CCHD,Home Care - Elderly - South,Other Small Contracts,DoCare Ltd,3164.7, 19-Sep-2012
510,Revenue,CCHD,Home Care - Elderly - North,Other Small Contracts,DoCare Ltd,3659.04, 19-Sep-2012
511,Revenue,CCHD,Day Care - South,Private & Voluntary Day Care,DoCare Ltd,101.64, 19-Sep-2012
512,Revenue,CCHD,Day Care - North,Private & Voluntary Day Care,DoCare Ltd,388.08, 19-Sep-2012
513,Revenue,CCHD,Home care - Elderly MH - North,Other Small Contracts,DoCare Ltd,170.94, 19-Sep-2012
514,Revenue,CCHD,Elderly MH Day Care North,Private & Voluntary Day Care,DoCare Ltd,36.96, 19-Sep-2012
515,Revenue,CCHD,Home Care - Elderly - South,Other Small Contracts,DoCare Ltd,3132.36, 19-Sep-2012
516,Revenue,CCHD,Home Care - Elderly - North,Other Small Contracts,DoCare Ltd,3774.54, 19-Sep-2012
517,Revenue,CCHD,Day Care - South,Private & Voluntary Day Care,DoCare Ltd,115.5, 19-Sep-2012
518,Revenue,CCHD,Day Care - North,Private & Voluntary Day Care,DoCare Ltd,452.76, 19-Sep-2012
519,Revenue,CCHD,Home care - Elderly MH - North,Other Small Contracts,DoCare Ltd,189.42, 19-Sep-2012
520,Revenue,CCHD,Elderly MH Day Care North,Private & Voluntary Day Care,DoCare Ltd,92.4, 19-Sep-2012
521,Revenue,CCHD,Home Care - Elderly - South,Other Small Contracts,DoCare Ltd,3210.9, 19-Sep-2012
522,Revenue,CCHD,Home Care - Elderly - North,Other Small Contracts,DoCare Ltd,3834.6, 19-Sep-2012
523,Revenue,CCHD,Day Care - South,Private & Voluntary Day Care,DoCare Ltd,115.5, 19-Sep-2012
524,Revenue,CCHD,Day Care - North,Private & Voluntary Day Care,DoCare Ltd,452.76, 19-Sep-2012
525,Revenue,CCHD,Home care - Elderly MH - North,Other Small Contracts,DoCare Ltd,175.56, 19-Sep-2012
526,Revenue,CCHD,Elderly MH Day Care North,Private & Voluntary Day Care,DoCare Ltd,36.96, 19-Sep-2012
527,Revenue,CCHD,Home Care - Elderly - South,Other Small Contracts,DoCare Ltd,3095.4, 19-Sep-2012
528,Revenue,CCHD,Home Care - Elderly - North,Other Small Contracts,DoCare Ltd,3594.36, 19-Sep-2012
529,Revenue,CCHD,Day Care - South,Private & Voluntary Day Care,DoCare Ltd,110.88, 19-Sep-2012
530,Revenue,CCHD,Day Care - North,Private & Voluntary Day Care,DoCare Ltd,383.46, 19-Sep-2012
531,Revenue,CCHD,Home care - Elderly MH - North,Other Small Contracts,DoCare Ltd,147.84, 19-Sep-2012
532,Revenue,CCHD,Elderly MH Day Care North,Private & Voluntary Day Care,DoCare Ltd,36.96, 19-Sep-2012
533,Revenue,CCHD,Bed Purchasing - Elderly - South,Nursing Homes,Dunkirk Memorial House,1158.2, 04-Sep-2012
534,Revenue,CCHD,MH Purchasing - Younger,Residential Homes,Dunraven House,1810.24, 04-Sep-2012
535,Revenue,CCHD,Bed and Breakfast,Bed & Breakfast,E J Bartlett,630, 05-Sep-2012
536,Revenue,CCHD,Bed and Breakfast,Bed & Breakfast,E J Bartlett,735, 04-Sep-2012
537,Revenue,CCHD,Bed and Breakfast,Bed & Breakfast,E J Bartlett,630, 04-Sep-2012
538,Revenue,CCHD,Bed and Breakfast,Bed & Breakfast,E J Bartlett,630, 04-Sep-2012
539,Revenue,CCHD,Bed and Breakfast,Bed & Breakfast,E J Bartlett,600, 04-Sep-2012
540,Revenue,CCHD,Bed and Breakfast,Bed & Breakfast,E J Bartlett,735, 13-Sep-2012
541,Revenue,CCHD,Bed and Breakfast,Bed & Breakfast,E J Bartlett,630, 13-Sep-2012
542,Revenue,CCHD,Bed and Breakfast,Bed & Breakfast,E J Bartlett,630, 19-Sep-2012
543,Revenue,CCHD,Bed and Breakfast,Bed & Breakfast,E J Bartlett,420, 13-Sep-2012
544,Revenue,CCHD,Bed and Breakfast,Bed & Breakfast,E J Bartlett,735, 19-Sep-2012
545,Revenue,CCHD,Bed and Breakfast,Bed & Breakfast,E J Bartlett,630, 19-Sep-2012
546,Revenue,CCHD,Bed and Breakfast,Bed & Breakfast,E J Bartlett,630, 19-Sep-2012
547,Revenue,CCHD,Bed and Breakfast,Bed & Breakfast,E J Bartlett,420, 19-Sep-2012
548,Revenue,CCHD,Bed and Breakfast,Bed & Breakfast,E J Bartlett,735, 25-Sep-2012
549,Revenue,CCHD,Bed and Breakfast,Bed & Breakfast,E J Bartlett,630, 25-Sep-2012
550,Revenue,CCHD,Bed and Breakfast,Bed & Breakfast,E J Bartlett,630, 25-Sep-2012
551,Revenue,CCHD,Bed and Breakfast,Bed & Breakfast,E J Bartlett,420, 25-Sep-2012
552,Revenue,CCHD,Bed purchasing - Under 65s PWLD - North,Residential Homes,East Court,2160.8, 04-Sep-2012
553,Revenue,CCHD,MH Purchasing - Younger,Residential Homes,Eclipse Office Park,2269.12, 04-Sep-2012
554,Revenue,CCHD,Mental Capacity Act - Advocacy,Training Expenses,Edge Training & Consultancy Limited,800, 14-Sep-2012
555,Revenue,CCHD,Southmead Hospital Purchasing,Residential Homes,Edgecumbe Lodge,1239.2, 04-Sep-2012
556,Revenue,CCHD,Frenchay Hospital Purchasing,Residential Homes,Edgecumbe Lodge,1239.2, 04-Sep-2012
557,Revenue,CCHD,Bed Purchasing - Elderly - South,Residential Homes,Edgecumbe Lodge,1302.52, 04-Sep-2012
558,Revenue,CCHD,Bed Purchasing - Elderly - South,Residential Homes,Edgecumbe Lodge,1229.4, 04-Sep-2012
559,Revenue,CCHD,Frenchay Hospital Purchasing,Residential Homes,Edgecumbe Lodge,1110.52, 04-Sep-2012
560,Revenue,CCHD,Frenchay Hospital Purchasing,Residential Homes,Edgecumbe Lodge,1056, 04-Sep-2012
561,Revenue,CCHD,Bed Purchasing - Elderly MH - South,Residential Homes,Edgecumbe Lodge,1147.84, 04-Sep-2012
562,Revenue,CCHD,Bed purchasing - Elderly PWLD - South,Residential Homes,Edgemont House Ltd,983.16, 04-Sep-2012
563,Revenue,CCHD,Bed Purchasing - Elderly - South,Residential Homes,Edgemont House Ltd,1353.44, 04-Sep-2012
564,Revenue,CCHD,Bed Purchasing - Elderly - South,Residential Homes,Edgemont House Ltd,1243.44, 04-Sep-2012
565,Revenue,CCHD,Bed Purchasing - Elderly - North,Residential Homes,Edgemont House Ltd,619.6, 04-Sep-2012
566,Revenue,CCHD,Frenchay Hospital Purchasing,Residential Homes,Edgemont House Ltd,1361.56, 04-Sep-2012
567,Revenue,CCHD,Bed Purchasing - Elderly - South,Nursing Homes,Edgemont View Nursing Home,1418.52, 04-Sep-2012
568,Revenue,CCHD,Frenchay Hospital Purchasing,Nursing Homes,Edgemont View Nursing Home,1341.28, 04-Sep-2012
569,Revenue,CCHD,Bed Purchasing - Elderly - South,Nursing Homes,Edgemont View Nursing Home,3839.35, 04-Sep-2012
570,Revenue,CCHD,Bed Purchasing - Elderly - South,Nursing Homes,Edgemont View Nursing Home,1295.2, 04-Sep-2012
571,Revenue,CCHD,Bed Purchasing - Elderly - South,Nursing Homes,Edgemont View Nursing Home,1602.76, 04-Sep-2012
572,Revenue,CCHD,Frenchay Hospital Purchasing,Nursing Homes,Edgemont View Nursing Home,606.84, 04-Sep-2012
573,Revenue,CCHD,Home Care - Elderly - South,Other Small Contracts,Elite Home Care Ltd,2606.66, 03-Sep-2012
574,Revenue,CCHD,Day Care - South,Private & Voluntary Day Care,Elite Home Care Ltd,103.92, 03-Sep-2012
575,Revenue,CCHD,Under 65s -MH  Home Care Purch,Other Small Contracts,Elite Home Care Ltd,86.6, 03-Sep-2012
576,Revenue,CCHD,Home care - Elderly MH - North,Other Small Contracts,Elite Home Care Ltd,363.72, 03-Sep-2012
577,Revenue,CCHD,Home Care - Elderly - South,Other Small Contracts,Elite Home Care Ltd,2554.7, 03-Sep-2012
578,Revenue,CCHD,Day Care - South,Private & Voluntary Day Care,Elite Home Care Ltd,103.92, 03-Sep-2012
579,Revenue,CCHD,Under 65s -MH  Home Care Purch,Other Small Contracts,Elite Home Care Ltd,86.6, 03-Sep-2012
580,Revenue,CCHD,Home care - Elderly MH - North,Other Small Contracts,Elite Home Care Ltd,359.39, 03-Sep-2012
581,Revenue,CCHD,Home Care - Elderly - South,Other Small Contracts,Elite Home Care Ltd,2511.4, 03-Sep-2012
582,Revenue,CCHD,Day Care - South,Private & Voluntary Day Care,Elite Home Care Ltd,103.92, 03-Sep-2012
583,Revenue,CCHD,Under 65s -MH  Home Care Purch,Other Small Contracts,Elite Home Care Ltd,86.6, 03-Sep-2012
584,Revenue,CCHD,Home care - Elderly MH - North,Other Small Contracts,Elite Home Care Ltd,363.72, 03-Sep-2012
585,Revenue,CCHD,Home Care - Elderly - South,Other Small Contracts,Elite Home Care Ltd,2515.73, 04-Sep-2012
586,Revenue,CCHD,Day Care - South,Private & Voluntary Day Care,Elite Home Care Ltd,103.92, 04-Sep-2012
587,Revenue,CCHD,Under 65s -MH  Home Care Purch,Other Small Contracts,Elite Home Care Ltd,82.27, 04-Sep-2012
588,Revenue,CCHD,Home care - Elderly MH - North,Other Small Contracts,Elite Home Care Ltd,363.72, 04-Sep-2012
589,Revenue,CCHD,Frenchay Hospital Purchasing,Nursing Homes,Elmwood Nursing Home,2213.12, 04-Sep-2012
590,Revenue,CCHD,Younger MH non-res purchasing,Private & Voluntary Day Care,Enham,638.72, 14-Sep-2012
591,Revenue,CCHD,Younger MH non-res purchasing,Private & Voluntary Day Care,Enham,638.72, 28-Sep-2012
592,Revenue,CCHD,Home Care - Elderly - South,Other Small Contracts,Everycare (Bristol) Ltd,1814.4, 06-Sep-2012
593,Revenue,CCHD,Home Care - Elderly - North,Other Small Contracts,Everycare (Bristol) Ltd,1323, 06-Sep-2012
594,Revenue,CCHD,Home Care - Elderly - South,Other Small Contracts,Everycare (Bristol) Ltd,2091.6, 06-Sep-2012
595,Revenue,CCHD,Home Care - Elderly - North,Other Small Contracts,Everycare (Bristol) Ltd,1415.4, 06-Sep-2012
596,Revenue,CCHD,Home Care - Elderly - South,Other Small Contracts,Everycare (Bristol) Ltd,1986.6, 06-Sep-2012
597,Revenue,CCHD,Home Care - Elderly - North,Other Small Contracts,Everycare (Bristol) Ltd,1554, 06-Sep-2012
598,Revenue,CCHD,Home Care - Elderly - South,Other Small Contracts,Everycare (Bristol) Ltd,1915.2, 06-Sep-2012
599,Revenue,CCHD,Home Care - Elderly - North,Other Small Contracts,Everycare (Bristol) Ltd,1579.2, 06-Sep-2012
600,Revenue,CCHD,Home Care - Elderly - South,Other Small Contracts,Everycare (Bristol) Ltd,1982.4, 06-Sep-2012
601,Revenue,CCHD,Home Care - Elderly - North,Other Small Contracts,Everycare (Bristol) Ltd,1764, 06-Sep-2012
602,Revenue,CCHD,Home Care - Elderly - South,Other Small Contracts,Everycare (Bristol) Ltd,2095.8, 13-Sep-2012
603,Revenue,CCHD,Home Care - Elderly - North,Other Small Contracts,Everycare (Bristol) Ltd,1617, 13-Sep-2012
604,Revenue,CCHD,Bed Purchasing - Elderly MH - South,Residential Homes,Exmouth House,2765.84, 04-Sep-2012
605,Revenue,CCHD,Bed purchasing - Elderly MH - North,Nursing Homes,Fairview Court,3895.71, 04-Sep-2012
606,Revenue,CCHD,Bed Purchasing - Elderly - South,Nursing Homes,Fairview Court,2255.68, 04-Sep-2012
607,Revenue,CCHD,Southmead Hospital Purchasing,Nursing Homes,Fairview Court,1467.32, 04-Sep-2012
608,Revenue,CCHD,Bed purchasing - Elderly MH - North,Nursing Homes,Fairview Court,7622.04, 04-Sep-2012
609,Revenue,CCHD,Bed purchasing - Elderly MH - North,Nursing Homes,Fairview Court,1604.64, 04-Sep-2012
610,Revenue,CCHD,Bed Purchasing - Elderly MH - South,Residential Homes,Fairview Court,1183.93, 04-Sep-2012
611,Revenue,CCHD,Bed purchasing - Elderly MH - North,Nursing Homes,Fairview Court,984.91, 04-Sep-2012
612,Revenue,CCHD,Southmead Hospital Purchasing,Nursing Homes,Fairview Court,1885.92, 04-Sep-2012
613,Revenue,CCHD,Bed Purchasing - Elderly MH - South,Residential Homes,Fairview Court,1403.2, 04-Sep-2012
614,Revenue,CCHD,Bed Purchasing - Elderly - South,Residential Homes,Fairview Court,2623.36, 04-Sep-2012
615,Revenue,CCHD,Bed Purchasing - Elderly - South,Residential Homes,Fairview Court,2118.56, 04-Sep-2012
616,Revenue,CCHD,Bed Purchasing - Elderly - South,Residential Homes,Fairview House,634.12, 04-Sep-2012
617,Revenue,CCHD,Frenchay Hospital Purchasing,Residential Homes,Fairview House,1233.32, 04-Sep-2012
618,Revenue,CCHD,Bed Purchasing - Elderly - South,Residential Homes,Fairview House,1255.24, 04-Sep-2012
619,Revenue,CCHD,Frenchay Hospital Purchasing,Residential Homes,Fairview House,995.44, 04-Sep-2012
620,Revenue,CCHD,Bed purchasing - Elderly S117 - South,Residential Homes,Fairview House,1870.92, 04-Sep-2012
621,Revenue,CCHD,Southmead Hospital Purchasing,Residential Homes,Fairview House,1021.08, 04-Sep-2012
622,Revenue,CCHD,Southmead Hospital Purchasing,Residential Homes,Fairview House,1111.28, 04-Sep-2012
623,Revenue,CCHD,Bed Purchasing - Elderly MH - South,Residential Homes,Fairview House,1097.2, 04-Sep-2012
624,Revenue,CCHD,Frenchay Hospital Purchasing,Residential Homes,Fairview House,1239.2, 04-Sep-2012
625,Revenue,CCHD,Southmead Hospital Purchasing,Residential Homes,Fairview House,3717.6, 04-Sep-2012
626,Revenue,CCHD,Southmead Hospital Purchasing,Residential Homes,Fairview House,1239.2, 04-Sep-2012
627,Revenue,CCHD,Bed Purchasing - Elderly MH - South,Residential Homes,Fairview House,1038.44, 04-Sep-2012
628,Revenue,CCHD,Bed Purchasing - Elderly MH - South,Residential Homes,Fairview House,1198.68, 04-Sep-2012
629,Revenue,CCHD,Bed Purchasing - Elderly - North,Residential Homes,Faith House,871.16, 04-Sep-2012
630,Revenue,CCHD,Frenchay Hospital Purchasing,Residential Homes,Faith House,1302, 04-Sep-2012
631,Revenue,CCHD,Bed purchasing - Under 65s PWLD - North,Residential Homes,Fernbank,8479.4, 04-Sep-2012
632,Revenue,CCHD,Home Care - Elderly - South,Other Small Contracts,Firstpoint Homecare Ltd,1791.43, 19-Sep-2012
633,Revenue,CCHD,Home Care - Elderly - North,Other Small Contracts,Firstpoint Homecare Ltd,634.6, 19-Sep-2012
634,Revenue,CCHD,Day Care - South,Private & Voluntary Day Care,Firstpoint Homecare Ltd,642.2, 19-Sep-2012
635,Revenue,CCHD,Day Care - North,Private & Voluntary Day Care,Firstpoint Homecare Ltd,448.4, 19-Sep-2012
636,Revenue,CCHD,Younger MH non-res purchasing,Private & Voluntary Day Care,Firstpoint Homecare Ltd,167.2, 19-Sep-2012
637,Revenue,CCHD,Home care - Elderly MH - North,Other Small Contracts,Firstpoint Homecare Ltd,155.8, 19-Sep-2012
638,Revenue,CCHD,Elderly MH Day Care North,Private & Voluntary Day Care,Firstpoint Homecare Ltd,91.2, 19-Sep-2012
639,Revenue,CCHD,Supported Living - KD,Private & Voluntary Home Care,Firstpoint Homecare Ltd,83.6, 19-Sep-2012
640,Revenue,CCHD,Home Care - Elderly - South,Other Small Contracts,Firstpoint Homecare Ltd,1717.6, 19-Sep-2012
641,Revenue,CCHD,Home Care - Elderly - North,Other Small Contracts,Firstpoint Homecare Ltd,627, 19-Sep-2012
642,Revenue,CCHD,Day Care - South,Private & Voluntary Day Care,Firstpoint Homecare Ltd,646, 19-Sep-2012
643,Revenue,CCHD,Day Care - North,Private & Voluntary Day Care,Firstpoint Homecare Ltd,402.8, 19-Sep-2012
644,Revenue,CCHD,Younger MH non-res purchasing,Private & Voluntary Day Care,Firstpoint Homecare Ltd,45.6, 19-Sep-2012
645,Revenue,CCHD,Home care - Elderly MH - North,Other Small Contracts,Firstpoint Homecare Ltd,155.8, 19-Sep-2012
646,Revenue,CCHD,Elderly MH Day Care North,Private & Voluntary Day Care,Firstpoint Homecare Ltd,91.2, 19-Sep-2012
647,Revenue,CCHD,Supported Living - KD,Private & Voluntary Home Care,Firstpoint Homecare Ltd,91.2, 19-Sep-2012
648,Revenue,CCHD,Purchase of Non-Res Care - PS,Private & Voluntary Day Care,Firstpoint Homecare Ltd,1283.57, 06-Sep-2012
649,Revenue,CCHD,Purchase of Non-Res Care - PS,Private & Voluntary Day Care,Firstpoint Homecare Ltd,1284.57, 05-Sep-2012
650,Revenue,CCHD,Purchase of Non-Res Care - PS,Private & Voluntary Day Care,Firstpoint Homecare Ltd,1280.57, 10-Sep-2012
651,Revenue,CCHD,Purchase of Non-Res Care - PS,Private & Voluntary Day Care,Firstpoint Homecare Ltd,1047.43, 26-Sep-2012
652,Revenue,CCHD,Home Care - Elderly - South,Other Small Contracts,Firstpoint Homecare Ltd,212.24, 27-Sep-2012
653,Revenue,CCHD,Home Care - Elderly - North,Other Small Contracts,Firstpoint Homecare Ltd,197.54, 27-Sep-2012
654,Revenue,CCHD,Day Care - South,Private & Voluntary Day Care,Firstpoint Homecare Ltd,192.24, 27-Sep-2012
655,Revenue,CCHD,Day Care - North,Private & Voluntary Day Care,Firstpoint Homecare Ltd,78.84, 27-Sep-2012
656,Revenue,CCHD,Home care - Elderly MH - North,Private & Voluntary Day Care,Firstpoint Homecare Ltd,34.02, 27-Sep-2012
657,Revenue,CCHD,Elderly MH Day Care North,Private & Voluntary Day Care,Firstpoint Homecare Ltd,240.84, 27-Sep-2012
658,Revenue,CCHD,Southmead Hospital Purchasing,Residential Homes,Forest Care Unit 1,1166.17, 04-Sep-2012
659,Revenue,CCHD,Bed Purchasing - Elderly - South,Nursing Homes,Four Seasons Health Care,1265.83, 04-Sep-2012
660,Revenue,CCHD,Bed Purchasing - Elderly - South,Nursing Homes,Four Seasons Health Care,1281.72, 04-Sep-2012
661,Revenue,CCHD,Frenchay Hospital Purchasing,Residential Homes,Four Seasons Health Care,892.12, 04-Sep-2012
662,Revenue,CCHD,Bed Purchasing - Elderly MH - South,Nursing Homes,Four Seasons Health Care,1363.2, 04-Sep-2012
663,Revenue,CCHD,Frenchay Hospital Purchasing,Nursing Homes,Four Seasons Health Care,1363.2, 04-Sep-2012
664,Revenue,CCHD,Southmead Hospital Purchasing,Nursing Homes,Four Seasons Health Care,1363.2, 04-Sep-2012
665,Revenue,CCHD,Southmead Hospital Purchasing,Nursing Homes,Four Seasons Health Care,3291.77, 04-Sep-2012
666,Revenue,CCHD,South Glos Users in South Glos Homes,Nursing Homes,Four Seasons Health Care,1242.29, 04-Sep-2012
667,Revenue,CCHD,Southmead Hospital Purchasing,Nursing Homes,Four Seasons Health Care,1152.12, 04-Sep-2012
668,Revenue,CCHD,Section 117 Placements MH Younger,Nursing Homes,Four Seasons Health Care,1840, 04-Sep-2012
669,Revenue,CCHD,Bed Purchasing - Under 65s PWLD - South,Residential Homes,Four Seasons Health Care,3806.84, 04-Sep-2012
670,Revenue,CCHD,Bed Purchasing - Elderly - South,Nursing Homes,Four Seasons Health Care,801.44, 04-Sep-2012
671,Revenue,CCHD,Southmead Hospital Purchasing,Nursing Homes,Four Seasons Health Care,1363.2, 04-Sep-2012
672,Revenue,CCHD,Bed Purchasing - Elderly - South,Nursing Homes,Four Seasons Health Care,1361.64, 04-Sep-2012
673,Revenue,CCHD,Cash for Change Discharges,Nursing Homes,Four Seasons Health Care,1363.2, 04-Sep-2012
674,Revenue,CCHD,Southmead Hospital Purchasing,Nursing Homes,Four Seasons Health Care,2180.25, 04-Sep-2012
675,Revenue,CCHD,Section 117 Placements MH Younger,Nursing Homes,Four Seasons Health Care,1639.29, 04-Sep-2012
676,Revenue,CCHD,Bed Purchasing - Elderly - South,Nursing Homes,Four Seasons Health Care,606.54, 04-Sep-2012
677,Revenue,CCHD,Bed Purchasing - Elderly - South,Nursing Homes,Four Seasons Health Care,1327.2, 04-Sep-2012
678,Revenue,CCHD,Southmead Hospital Purchasing,Nursing Homes,Four Seasons Health Care,1363.2, 04-Sep-2012
679,Revenue,CCHD,Bed Purchasing - Elderly - South,Nursing Homes,Four Seasons Health Care,1260.92, 04-Sep-2012
680,Revenue,CCHD,Southmead Hospital Purchasing,Residential Homes,Four Seasons Health Care,543.56, 04-Sep-2012
681,Revenue,CCHD,Bed Purchasing - Elderly - North,Residential Homes,Four Seasons Health Care,1239.2, 04-Sep-2012
682,Revenue,CCHD,Bed Purchasing - Elderly - North,Residential Homes,Four Seasons Health Care,884.61, 04-Sep-2012
683,Revenue,CCHD,Southmead Hospital Purchasing,Nursing Homes,Four Seasons Health Care,1269.2, 04-Sep-2012
684,Revenue,CCHD,Frenchay Hospital Purchasing,Nursing Homes,Four Seasons Health Care,1159.2, 04-Sep-2012
685,Revenue,CCHD,Bed Purchasing - Elderly - South,Nursing Homes,Four Seasons Health Care,1363.2, 04-Sep-2012
686,Revenue,CCHD,Bed Purchasing - Elderly - South,Nursing Homes,Four Seasons Health Care,1308.24, 04-Sep-2012
687,Revenue,CCHD,Bed Purchasing - Elderly MH - South,Nursing Homes,Four Seasons Health Care,1363.2, 04-Sep-2012
688,Revenue,CCHD,Bed Purchasing - Elderly - South,Nursing Homes,Four Seasons Health Care,1067.16, 04-Sep-2012
689,Revenue,CCHD,Bed Purchasing - Elderly - South,Nursing Homes,Four Seasons Health Care,1327.2, 04-Sep-2012
690,Revenue,CCHD,Frenchay Hospital Purchasing,Nursing Homes,Four Seasons Health Care,1071.6, 04-Sep-2012
691,Revenue,CCHD,Bed Purchasing - Elderly MH - South,Residential Homes,Four Seasons Health Care,1084.52, 04-Sep-2012
692,Revenue,CCHD,Bed Purchasing - Elderly - South,Nursing Homes,Four Seasons Health Care,1363.2, 04-Sep-2012
693,Revenue,CCHD,Bed Purchasing - Elderly - South,Nursing Homes,Four Seasons Health Care,920, 04-Sep-2012
694,Revenue,CCHD,Bed Purchasing - Elderly - South,Nursing Homes,Four Seasons Health Care,1361.8, 04-Sep-2012
695,Revenue,CCHD,Frenchay Hospital Purchasing,Nursing Homes,Four Seasons Health Care,1371.2, 04-Sep-2012
696,Revenue,CCHD,Bed Purchasing - Elderly MH - South,Nursing Homes,Four Seasons Health Care,1212.44, 04-Sep-2012
697,Revenue,CCHD,Bed purchasing - Elderly MH - North,Nursing Homes,Four Seasons Health Care,1535.2, 04-Sep-2012
698,Revenue,CCHD,Bed Purchasing - Elderly - South,Nursing Homes,Four Seasons Health Care,1535.2, 04-Sep-2012
699,Revenue,CCHD,Bed Purchasing - Elderly - South,Nursing Homes,Four Seasons Health Care,920, 04-Sep-2012
700,Revenue,CCHD,Bed Purchasing - Elderly - North,Nursing Homes,Four Seasons Health Care,956.44, 04-Sep-2012
701,Revenue,CCHD,Frenchay Hospital Purchasing,Nursing Homes,Four Seasons Health Care,1535.2, 04-Sep-2012
702,Revenue,CCHD,Frenchay Hospital Purchasing,Nursing Homes,Four Seasons Health Care,1271.88, 04-Sep-2012
703,Revenue,CCHD,Southmead Hospital Purchasing,Residential Homes,Four Seasons Health Care,1230.28, 04-Sep-2012
704,Revenue,CCHD,Bed Purchasing - Elderly - South,Nursing Homes,Four Seasons Health Care,1535.2, 04-Sep-2012
705,Revenue,CCHD,Bed purchasing - Elderly MH - North,Residential Homes,Four Seasons Health Care,4485.35, 04-Sep-2012
706,Revenue,CCHD,Bed purchasing - Elderly MH - North,Residential Homes,Four Seasons Health Care,1152.2, 04-Sep-2012
707,Revenue,CCHD,Bed purchasing - Elderly MH - North,Residential Homes,Four Seasons Health Care,687.84, 04-Sep-2012
708,Revenue,CCHD,Bed Purchasing - Elderly - North,Nursing Homes,Four Seasons Health Care,1535.2, 04-Sep-2012
709,Revenue,CCHD,Frenchay Hospital Purchasing,Nursing Homes,Four Seasons Health Care,1026.64, 04-Sep-2012
710,Revenue,CCHD,Bed Purchasing - Elderly - North,Residential Homes,Four Seasons Health Care,1026.48, 04-Sep-2012
711,Revenue,CCHD,South Glos Users in South Glos Homes,Nursing Homes,Four Seasons Health Care,2921.15, 04-Sep-2012
712,Revenue,CCHD,South Glos Users in South Glos Homes,Nursing Homes,Four Seasons Health Care,2102.86, 04-Sep-2012
713,Revenue,CCHD,South Glos Users in South Glos Homes,Nursing Homes,Four Seasons Health Care,1363.2, 04-Sep-2012
714,Revenue,CCHD,South Glos Users in South Glos Homes,Nursing Homes,Four Seasons Health Care,1055.94, 04-Sep-2012
715,Revenue,CCHD,Bed Purchasing - Elderly - North,Nursing Homes,Four Seasons Health Care,1220.44, 04-Sep-2012
716,Revenue,CCHD,Bed purchasing - Elderly MH - North,Nursing Homes,Four Seasons Health Care,1327.2, 04-Sep-2012
717,Revenue,CCHD,Bed Purchasing - Elderly - North,Nursing Homes,Four Seasons Health Care,1363.2, 04-Sep-2012
718,Revenue,CCHD,Southmead Hospital Purchasing,Nursing Homes,Four Seasons Health Care,1363.2, 04-Sep-2012
719,Revenue,CCHD,Bed Purchasing - Elderly - North,Nursing Homes,Four Seasons Health Care,1363.2, 04-Sep-2012
720,Revenue,CCHD,South Glos Users in South Glos Homes,Nursing Homes,Four Seasons Health Care,2819.6, 04-Sep-2012
721,Revenue,CCHD,Bed Purchasing - Elderly - North,Nursing Homes,Four Seasons Health Care,1511.73, 04-Sep-2012
722,Revenue,CCHD,Bed Purchasing - Elderly - North,Nursing Homes,Four Seasons Health Care,1418.23, 04-Sep-2012
723,Revenue,CCHD,Bed Purchasing - Elderly - North,Nursing Homes,Four Seasons Health Care,1287.44, 04-Sep-2012
724,Revenue,CCHD,Southmead Hospital Purchasing,Nursing Homes,Four Seasons Health Care,849.09, 04-Sep-2012
725,Revenue,CCHD,Bed Purchasing - Elderly - North,Nursing Homes,Four Seasons Health Care,661.84, 04-Sep-2012
726,Revenue,CCHD,Bed purchasing - Elderly MH - North,Nursing Homes,Four Seasons Health Care,1457.48, 04-Sep-2012
727,Revenue,CCHD,Bed Purchasing - Elderly - North,Nursing Homes,Four Seasons Health Care,1264.2, 04-Sep-2012
728,Revenue,CCHD,Bed Purchasing - Elderly - North,Nursing Homes,Four Seasons Health Care,1096.56, 04-Sep-2012
729,Revenue,CCHD,Southmead Hospital Purchasing,Nursing Homes,Four Seasons Health Care,1356.56, 04-Sep-2012
730,Revenue,CCHD,Frenchay Hospital Purchasing,Nursing Homes,Four Seasons Health Care,1284.4, 04-Sep-2012
731,Revenue,CCHD,Bed purchasing - Elderly MH - North,Nursing Homes,Four Seasons Health Care,1435.64, 04-Sep-2012
732,Revenue,CCHD,Frenchay Hospital Purchasing,Nursing Homes,Four Seasons Health Care,1343.4, 04-Sep-2012
733,Revenue,CCHD,Bed Purchasing - Elderly - North,Nursing Homes,Four Seasons Health Care,1027.36, 04-Sep-2012
734,Revenue,CCHD,Bed Purchasing - Elderly - North,Residential Homes,Four Seasons Health Care,670.04, 04-Sep-2012
735,Revenue,CCHD,Southmead Hospital Purchasing,Nursing Homes,Four Seasons Health Care,877.25, 04-Sep-2012
736,Revenue,CCHD,Frenchay Hospital Purchasing,Nursing Homes,Four Seasons Health Care,1522.72, 04-Sep-2012
737,Revenue,CCHD,Bed Purchasing - Elderly - North,Nursing Homes,Four Seasons Health Care,1499.2, 04-Sep-2012
738,Revenue,CCHD,Bed Purchasing - Elderly - North,Nursing Homes,Four Seasons Health Care,1363.2, 04-Sep-2012
739,Revenue,CCHD,Bed Purchasing - Elderly - North,Nursing Homes,Four Seasons Health Care,1431.8, 04-Sep-2012
740,Revenue,CCHD,Southmead Hospital Purchasing,Residential Homes,Four Seasons Health Care,705.16, 04-Sep-2012
741,Revenue,CCHD,Southmead Hospital Purchasing,Nursing Homes,Four Seasons Health Care,1442.32, 04-Sep-2012
742,Revenue,CCHD,Bed Purchasing - Elderly - North,Nursing Homes,Four Seasons Health Care,1535.2, 04-Sep-2012
743,Revenue,CCHD,Frenchay Hospital Purchasing,Nursing Homes,Four Seasons Health Care,1211.32, 04-Sep-2012
744,Revenue,CCHD,Southmead Hospital Purchasing,Nursing Homes,Four Seasons Health Care,1535.2, 04-Sep-2012
745,Revenue,CCHD,Frenchay Hospital Purchasing,Nursing Homes,Four Seasons Health Care,1363.2, 04-Sep-2012
746,Revenue,CCHD,Southmead Hospital Purchasing,Nursing Homes,Four Seasons Health Care,1347.32, 04-Sep-2012
747,Revenue,CCHD,Bed Purchasing - Elderly - North,Nursing Homes,Four Seasons Health Care,1535.2, 04-Sep-2012
748,Revenue,CCHD,Bed purchasing - Elderly MH - North,Residential Homes,Four Seasons Health Care,1197.16, 04-Sep-2012
749,Revenue,CCHD,Southmead Hospital Purchasing,Residential Homes,Four Seasons Health Care,1239.2, 04-Sep-2012
750,Revenue,CCHD,Southmead Hospital Purchasing,Nursing Homes,Four Seasons Health Care,940.68, 04-Sep-2012
751,Revenue,CCHD,Bed purchasing - Elderly MH - North,Residential Homes,Four Seasons Health Care,1366.04, 04-Sep-2012
752,Revenue,CCHD,Bed Purchasing - Elderly - North,Nursing Homes,Four Seasons Health Care,1346.6, 04-Sep-2012
753,Revenue,CCHD,Southmead Hospital Purchasing,Nursing Homes,Four Seasons Health Care,1207.08, 04-Sep-2012
754,Revenue,CCHD,Bed purchasing - Elderly MH - North,Nursing Homes,Four Seasons Health Care,1025.24, 04-Sep-2012
755,Revenue,CCHD,Bed Purchasing - Elderly - North,Residential Homes,Four Seasons Health Care,1263.2, 04-Sep-2012
756,Revenue,CCHD,Frenchay Hospital Purchasing,Residential Homes,Four Seasons Health Care,1371.97, 04-Sep-2012
757,Revenue,CCHD,Frenchay Hospital Purchasing,Residential Homes,Four Seasons Health Care,1239.2, 04-Sep-2012
758,Revenue,CCHD,Frenchay Hospital Purchasing,Nursing Homes,Four Seasons Health Care,1204.44, 04-Sep-2012
759,Revenue,CCHD,Bed Purchasing - Elderly - North,Nursing Homes,Four Seasons Health Care,1300.48, 04-Sep-2012
760,Revenue,CCHD,Frenchay Hospital Purchasing,Nursing Homes,Four Seasons Health Care,1363.2, 04-Sep-2012
761,Revenue,CCHD,Frenchay Hospital Purchasing,Nursing Homes,Four Seasons Health Care,1250.24, 04-Sep-2012
762,Revenue,CCHD,Bed Purchasing - Elderly - North,Nursing Homes,Four Seasons Health Care,1273.72, 04-Sep-2012
763,Revenue,CCHD,Southmead Hospital Purchasing,Nursing Homes,Four Seasons Health Care,1303.36, 04-Sep-2012
764,Revenue,CCHD,Frenchay Hospital Purchasing,Nursing Homes,Four Seasons Health Care,1294.16, 04-Sep-2012
765,Revenue,CCHD,Frenchay Hospital Purchasing,Nursing Homes,Four Seasons Health Care,1363.2, 04-Sep-2012
766,Revenue,CCHD,Southmead Hospital Purchasing,Nursing Homes,Four Seasons Health Care,929.28, 04-Sep-2012
767,Revenue,CCHD,Southmead Hospital Purchasing,Nursing Homes,Four Seasons Health Care,813.12, 04-Sep-2012
768,Revenue,CCHD,Bed Purchasing - Elderly - North,Nursing Homes,Four Seasons Health Care,1070.48, 04-Sep-2012
769,Revenue,CCHD,Frenchay Hospital Purchasing,Nursing Homes,Four Seasons Health Care,1363.2, 04-Sep-2012
770,Revenue,CCHD,Southmead Hospital Purchasing,Nursing Homes,Four Seasons Health Care,758.2, 04-Sep-2012
771,Revenue,CCHD,Frenchay Hospital Purchasing,Nursing Homes,Four Seasons Health Care,1363.2, 04-Sep-2012
772,Revenue,CCHD,Frenchay Hospital Purchasing,Nursing Homes,Four Seasons Health Care,1379.2, 04-Sep-2012
773,Revenue,CCHD,Bed Purchasing - Elderly - South,Nursing Homes,Four Seasons Health Care,1060.72, 04-Sep-2012
774,Revenue,CCHD,Southmead Hospital Purchasing,Nursing Homes,Four Seasons Health Care,1720.4, 04-Sep-2012
775,Revenue,CCHD,Southmead Hospital Purchasing,Nursing Homes,Four Seasons Health Care,1286.4, 04-Sep-2012
776,Revenue,CCHD,South Glos Users in South Glos Homes,Nursing Homes,Four Seasons Health Care,854.07, 04-Sep-2012
777,Revenue,CCHD,Southmead Hospital Purchasing,Nursing Homes,Four Seasons Health Care,703.82, 04-Sep-2012
778,Revenue,CCHD,Southmead Hospital Purchasing,Residential Homes,Four Seasons Health Care,1118.04, 04-Sep-2012
779,Revenue,CCHD,Southmead Hospital Purchasing,Nursing Homes,Four Seasons Health Care,1363.2, 04-Sep-2012
780,Revenue,CCHD,Frenchay Hospital Purchasing,Nursing Homes,Four Seasons Health Care,1329.52, 04-Sep-2012
781,Revenue,CCHD,Southmead Hospital Purchasing,Nursing Homes,Four Seasons Health Care,1336.84, 04-Sep-2012
782,Revenue,CCHD,Bed purchasing - Phys Dis - North,Nursing Homes,Four Seasons Health Care,1367.76, 04-Sep-2012
783,Revenue,CCHD,Southmead Hospital Purchasing,Nursing Homes,Four Seasons Health Care,1292.36, 04-Sep-2012
784,Revenue,CCHD,Bed purchasing - Elderly MH - North,Residential Homes,Four Seasons Health Care,1396.2, 04-Sep-2012
785,Revenue,CCHD,Southmead Hospital Purchasing,Residential Homes,Four Seasons Health Care,1163.68, 04-Sep-2012
786,Revenue,CCHD,Southmead Hospital Purchasing,Residential Homes,Four Seasons Health Care,1716, 04-Sep-2012
787,Revenue,CCHD,Frenchay Hospital Purchasing,Nursing Homes,Four Seasons Health Care,1225.56, 04-Sep-2012
788,Revenue,CCHD,Southmead Hospital Purchasing,Residential Homes,Four Seasons Health Care,645.44, 04-Sep-2012
789,Revenue,CCHD,Southmead Hospital Purchasing,Residential Homes,Four Seasons Health Care,663.86, 04-Sep-2012
790,Revenue,CCHD,Southmead Hospital Purchasing,Nursing Homes,Four Seasons Health Care,919.29, 04-Sep-2012
791,Revenue,CCHD,South Glos Users in South Glos Homes,Nursing Homes,Four Seasons Health Care,947.24, 04-Sep-2012
792,Revenue,CCHD,Bed purchasing - Elderly PWLD - South,Residential Homes,Four Seasons Health Care,1239.2, 04-Sep-2012
793,Revenue,CCHD,Frenchay Hospital Purchasing,Nursing Homes,Four Seasons Health Care,1363.2, 04-Sep-2012
794,Revenue,CCHD,Southmead Hospital Purchasing,Nursing Homes,Four Seasons Health Care,1103.76, 04-Sep-2012
795,Revenue,CCHD,Bed Purchasing - Elderly - South,Nursing Homes,Four Seasons Health Care,1286.52, 04-Sep-2012
796,Revenue,CCHD,Bed Purchasing - Elderly - South,Nursing Homes,Four Seasons Health Care,1352.48, 04-Sep-2012
797,Revenue,CCHD,Southmead Hospital Purchasing,Nursing Homes,Four Seasons Health Care,1363.2, 04-Sep-2012
798,Revenue,CCHD,Southmead Hospital Purchasing,Nursing Homes,Four Seasons Health Care,1314.52, 04-Sep-2012
799,Revenue,CCHD,Southmead Hospital Purchasing,Nursing Homes,Four Seasons Health Care,1138.92, 04-Sep-2012
800,Revenue,CCHD,Bed Purchasing - Elderly - South,Residential Homes,Four Seasons Health Care,865.28, 04-Sep-2012
801,Revenue,CCHD,Southmead Hospital Purchasing,Nursing Homes,Four Seasons Health Care,1304.96, 04-Sep-2012
802,Revenue,CCHD,Southmead Hospital Purchasing,Residential Homes,Four Seasons Health Care,1386, 04-Sep-2012
803,Revenue,CCHD,Frenchay Hospital Purchasing,Nursing Homes,Four Seasons Health Care,769.44, 04-Sep-2012
804,Revenue,CCHD,Bed Purchasing - Elderly - North,Residential Homes,Four Seasons Health Care,985.28, 04-Sep-2012
805,Revenue,CCHD,Bed Purchasing - Elderly - South,Nursing Homes,Four Seasons Health Care,947.2, 04-Sep-2012
806,Revenue,CCHD,Bed purchasing - Elderly S117 - South,Nursing Homes,Four Seasons Health Care,1840, 04-Sep-2012
807,Revenue,CCHD,Frenchay Hospital Purchasing,Residential Homes,Four Seasons Health Care,1102.84, 04-Sep-2012
808,Revenue,CCHD,Bed Purchasing - Elderly MH - South,Nursing Homes,Four Seasons Health Care,1174.8, 04-Sep-2012
809,Revenue,CCHD,Bed Purchasing - Elderly - South,Residential Homes,Four Seasons Health Care,2650.51, 04-Sep-2012
810,Revenue,CCHD,Southmead Hospital Purchasing,Residential Homes,Four Seasons Health Care,1323.96, 04-Sep-2012
811,Revenue,CCHD,Southmead Hospital Purchasing,Nursing Homes,Four Seasons Health Care,1363.2, 04-Sep-2012
812,Revenue,CCHD,Bed Purchasing - Elderly MH - South,Residential Homes,Four Seasons Health Care,936.64, 04-Sep-2012
813,Revenue,CCHD,Southmead Hospital Purchasing,Nursing Homes,Four Seasons Health Care,1363.2, 04-Sep-2012
814,Revenue,CCHD,Frenchay Hospital Purchasing,Nursing Homes,Four Seasons Health Care,1109.56, 04-Sep-2012
815,Revenue,CCHD,Southmead Hospital Purchasing,Nursing Homes,Four Seasons Health Care,6475.2, 04-Sep-2012
816,Revenue,CCHD,Southmead Hospital Purchasing,Nursing Homes,Four Seasons Health Care,1363.2, 04-Sep-2012
817,Revenue,CCHD,Southmead Hospital Purchasing,Nursing Homes,Four Seasons Health Care,991.8, 04-Sep-2012
818,Revenue,CCHD,Frenchay Hospital Purchasing,Nursing Homes,Four Seasons Health Care,2239.55, 04-Sep-2012
819,Revenue,CCHD,Bed Purchasing - Elderly - North,Residential Homes,Four Seasons Health Care,1924.71, 04-Sep-2012
820,Revenue,CCHD,Bed Purchasing - Elderly - North,Residential Homes,Four Seasons Health Care,985.93, 04-Sep-2012
821,Revenue,CCHD,Frenchay Hospital Purchasing,Residential Homes,Four Seasons Health Care,1232.16, 04-Sep-2012
822,Revenue,CCHD,Bed Purchasing - Elderly - North,Nursing Homes,Four Seasons Health Care,1263.48, 04-Sep-2012
823,Revenue,CCHD,Bed Purchasing - Elderly - South,Residential Homes,Four Seasons Health Care,1206.36, 04-Sep-2012
824,Revenue,CCHD,Bed Purchasing - Elderly - South,Residential Homes,Four Seasons Health Care,644, 04-Sep-2012
825,Revenue,CCHD,Bed Purchasing - Elderly - South,Nursing Homes,Four Seasons Health Care,1171.6, 04-Sep-2012
826,Revenue,CCHD,Bed Purchasing - Elderly S117- North,Residential Homes,Four Seasons Health Care,2011.04, 04-Sep-2012
827,Revenue,CCHD,Frenchay Hospital Purchasing,Residential Homes,Four Seasons Health Care,1515.84, 04-Sep-2012
828,Revenue,CCHD,Freeways,Residential Homes,Freeways Trust Limited,44356.49, 13-Sep-2012
829,Revenue,CCHD,Supported Living - PS,Private & Voluntary Home Care,Freeways Trust Limited,1565.19, 26-Sep-2012
830,Revenue,CCHD,Supported Living - PS,Private & Voluntary Home Care,Freeways Trust Limited,1342.4, 26-Sep-2012
831,Revenue,CCHD,Bed purchasing - Under 65s PWLD - North,Residential Homes,Freeways Trust Ltd,2791.88, 04-Sep-2012
832,Revenue,CCHD,Bed purchasing - S28A Under 65 - South,Residential Homes,Freeways Trust Ltd,2876.4, 04-Sep-2012
833,Revenue,CCHD,Bed purchasing - Under 65s PWLD - North,Residential Homes,Freeways Trust Ltd,2232.52, 04-Sep-2012
834,Revenue,CCHD,Bed purchasing - Under 65s PWLD - North,Residential Homes,Freeways Trust Ltd,2657.64, 04-Sep-2012
835,Revenue,CCHD,Bed purchasing - Under 65s PWLD - North,Residential Homes,Freeways Trust Ltd,2232.52, 04-Sep-2012
836,Revenue,CCHD,Bed purchasing - Under 65s PWLD - North,Residential Homes,Freeways Trust Ltd,2666.28, 04-Sep-2012
837,Revenue,CCHD,Bed Purchasing - Under 65s PWLD - South,Residential Homes,Freeways Trust Ltd,3259.12, 04-Sep-2012
838,Revenue,CCHD,Bed purchasing - Elderly PWLD - North,Residential Homes,Freeways Trust Ltd,2219.24, 04-Sep-2012
839,Revenue,CCHD,Bed Purchasing - Under 65s PWLD - South,Residential Homes,Freeways Trust Ltd,2364.28, 04-Sep-2012
840,Revenue,CCHD,Bed purchasing - Under 65s PWLD - North,Residential Homes,Freeways Trust Ltd,2666.28, 04-Sep-2012
841,Revenue,CCHD,Bed purchasing - Elderly PWLD - North,Residential Homes,Freeways Trust Ltd,2492.24, 04-Sep-2012
842,Revenue,CCHD,Section 117 Placements MH Younger,Residential Homes,Freeways Trust Ltd,3292.4, 04-Sep-2012
843,Revenue,CCHD,Bed Purchasing - Under 65s PWLD - South,Residential Homes,Freeways Trust Ltd,3349.08, 04-Sep-2012
844,Revenue,CCHD,Bed Purchasing - Elderly - South,Nursing Homes,Frenchay Park Nursing Home,604.6, 04-Sep-2012
845,Revenue,CCHD,Bed Purchasing - Under 65s PWLD - South,Residential Homes,Glasallt Fawr,4505.4, 04-Sep-2012
846,Revenue,CCHD,Bed Purchasing - Elderly - North,Nursing Homes,Glebe House Nursing Home,1381.88, 04-Sep-2012
847,Revenue,CCHD,Bed Purchasing - Elderly - North,Nursing Homes,Glebe House Nursing Home,1313.66, 04-Sep-2012
848,Revenue,CCHD,Bed purchasing - Elderly MH - North,Residential Homes,Glebe House Nursing Home,782.8, 04-Sep-2012
849,Revenue,CCHD,Bed Purchasing - Elderly - South,Residential Homes,Glebe House Nursing Home,1963.52, 04-Sep-2012
850,Revenue,CCHD,Southmead Hospital Purchasing,Nursing Homes,Glebe House Nursing Home,1295.2, 04-Sep-2012
851,Revenue,CCHD,Bed Purchasing - Elderly - North,Residential Homes,Glebe House Nursing Home,2529.76, 04-Sep-2012
852,Revenue,CCHD,Bed purchasing - Phys Dis - South,Nursing Homes,Glenside Centre For Brain Injury,7072.36, 04-Sep-2012
853,Revenue,CCHD,Bed Purchasing - Under 65s PWLD - South,Residential Homes,Gordena Care Home,2063.36, 04-Sep-2012
854,Revenue,CCHD,Bed purchasing - Elderly PWLD - South,Residential Homes,Gordena Care Home,4691.96, 04-Sep-2012
855,Revenue,CCHD,Bed purchasing - Elderly PWLD - South,Residential Homes,Gordena Care Home,2904.2, 04-Sep-2012
856,Revenue,CCHD,Bed Purchasing - Under 65s PWLD - South,Residential Homes,Gordena Care Home,1894.04, 04-Sep-2012
857,Revenue,CCHD,Bed Purchasing - Under 65s PWLD - South,Residential Homes,Gordena Care Limited,4119.84, 04-Sep-2012
858,Revenue,CCHD,Bed purchasing - S28A Under 65 - South,Residential Homes,Gordena Care Limited,4018.24, 04-Sep-2012
859,Revenue,CCHD,Bed purchasing - Under 65s PWLD - North,Residential Homes,Gordena Care Limited,14512.26, 04-Sep-2012
860,Revenue,CCHD,Bed Purchasing - Elderly - North,Residential Homes,Greensleeves,1305.56, 04-Sep-2012
861,Revenue,CCHD,Bed Purchasing - Elderly - South,Residential Homes,Gwendoline House,1480.12, 04-Sep-2012
862,Revenue,CCHD,Bed Purchasing - Elderly - South,Residential Homes,Gwendoline House,1158.88, 04-Sep-2012
863,Revenue,CCHD,Bed Purchasing - Elderly MH - South,Residential Homes,Gwendoline House,1263.36, 04-Sep-2012
864,Revenue,CCHD,Southmead Hospital Purchasing,Residential Homes,Gwendoline House,1582.94, 04-Sep-2012
865,Revenue,CCHD,Southmead Hospital Purchasing,Residential Homes,Gwendoline House,1289.8, 04-Sep-2012
866,Revenue,CCHD,Bed Purchasing - Elderly - South,Residential Homes,Gwendoline House,1418.24, 04-Sep-2012
867,Revenue,CCHD,Bed Purchasing - Elderly - South,Residential Homes,Gwendoline House,1123.12, 04-Sep-2012
868,Revenue,CCHD,Bed Purchasing - Elderly - South,Residential Homes,Gwendoline House,4007.42, 04-Sep-2012
869,Revenue,CCHD,Bed Purchasing - Elderly - South,Residential Homes,Gwendoline House,1558.44, 04-Sep-2012
870,Revenue,CCHD,SIT Team,Miscellaneous Income,Halliday James Limited,578, 28-Sep-2012
871,Revenue,CCHD,SIT Team,Miscellaneous Income,Halliday James Limited,590, 28-Sep-2012
872,Revenue,CCHD,Bed Purchasing - Elderly MH - South,Residential Homes,Harefield Hall,1091.48, 04-Sep-2012
873,Revenue,CCHD,Alexandra Way,Equipment Maintenance,Harvey Servicing & Engineering Limited,697.5, 21-Sep-2012
874,Revenue,CCHD,Southmead Hospital Purchasing,Nursing Homes,Haven Lodge,1371.08, 04-Sep-2012
875,Revenue,CCHD,Southmead Hospital Purchasing,Nursing Homes,Hc-One Ltd,1602.76, 04-Sep-2012
876,Revenue,CCHD,Bed purchasing - Elderly MH - North,Nursing Homes,Hc-One Ltd,1467.2, 04-Sep-2012
877,Revenue,CCHD,Bed purchasing - Elderly MH - North,Nursing Homes,Hc-One Ltd,1209.16, 04-Sep-2012
878,Revenue,CCHD,Bed purchasing - Elderly MH - North,Nursing Homes,Hc-One Ltd,1467.2, 04-Sep-2012
879,Revenue,CCHD,Bed purchasing - Elderly MH - North,Nursing Homes,Hc-One Ltd,1156.96, 04-Sep-2012
880,Revenue,CCHD,Bed Purchasing - Elderly S117- North,Nursing Homes,Hc-One Ltd,1929.2, 04-Sep-2012
881,Revenue,CCHD,Frenchay Hospital Purchasing,Residential Homes,Hc-One Ltd,1479.76, 04-Sep-2012
882,Revenue,CCHD,Frenchay Hospital Purchasing,Nursing Homes,Hc-One Ltd,2267.53, 04-Sep-2012
883,Revenue,CCHD,Frenchay Hospital Purchasing,Nursing Homes,Hc-One Ltd,1175.76, 04-Sep-2012
884,Revenue,CCHD,Day Care - South,Private & Voluntary Day Care,Headway Bristol,786.06, 03-Sep-2012
885,Revenue,CCHD,Southmead Hospital Purchasing,Residential Homes,Highgate Studios,1167.44, 04-Sep-2012
886,Revenue,CCHD,Bed purchasing - Under 65s PWLD - North,Residential Homes,Holmleigh Care Homes Ltd,3962.92, 04-Sep-2012
887,Revenue,CCHD,Bed Purchasing - Under 65s PWLD - South,Residential Homes,Holmleigh Care Homes Ltd,4980.72, 04-Sep-2012
888,Revenue,CCHD,South Glos Users in South Glos Homes,Nursing Homes,Holmwood House,1118.06, 04-Sep-2012
889,Revenue,CCHD,South Glos Users in South Glos Homes,Nursing Homes,Holmwood House,1941.07, 04-Sep-2012
890,Revenue,CCHD,Bed purchasing - Under 65s PWLD - North,Residential Homes,Home Farm Trust Ltd  5-6 Brook Office Pa,2784.12, 04-Sep-2012
891,Revenue,CCHD,Swift Dump Code,Residential Homes,Home Farm Trust Ltd  5-6 Brook Office Pa,2427.64, 04-Sep-2012
892,Revenue,CCHD,Bed purchasing - Elderly PWLD - South,Residential Homes,Home Farm Trust Ltd  5-6 Brook Office Pa,6628.08, 04-Sep-2012
893,Revenue,CCHD,Bed purchasing - Under 65s PWLD - North,Residential Homes,Home Farm Trust Ltd  5-6 Brook Office Pa,3367.08, 04-Sep-2012
894,Revenue,CCHD,Bed Purchasing - Under 65s PWLD - South,Residential Homes,Home Farm Trust Ltd  5-6 Brook Office Pa,4491.6, 04-Sep-2012
895,Revenue,CCHD,Bed purchasing - Under 65s PWLD - North,Residential Homes,Home From Home Care Ltd,9029.56, 04-Sep-2012
896,Revenue,CCHD,Bed purchasing - Phys Dis - North,Residential Homes,Homeleigh,6215.08, 04-Sep-2012
897,Revenue,CCHD,Bed purchasing - Phys Dis - North,Residential Homes,Homeleigh,4531.28, 04-Sep-2012
898,Revenue,CCHD,Bed purchasing - Under 65s PWLD - North,Residential Homes,Homes Caring For Autism Ltd  Churchill H,9662.72, 04-Sep-2012
899,Revenue,CCHD,Bed Purchasing - Under 65s PWLD - South,Residential Homes,Homes Caring For Autism Ltd  Churchill H,12596.88, 04-Sep-2012
900,Revenue,CCHD,Bed Purchasing - Elderly - South,Nursing Homes,Horfield Care Limited,1111.61, 18-Sep-2012
901,Revenue,CCHD,Bed Purchasing - Elderly - North,Nursing Homes,Horfield Care Limited,4711.67, 18-Sep-2012
902,Revenue,CCHD,Frenchay Hospital Purchasing,Nursing Homes,Horfield Care Limited,9161.71, 18-Sep-2012
903,Revenue,CCHD,Southmead Hospital Purchasing,Nursing Homes,Horfield Care Limited,16439.91, 18-Sep-2012
904,Revenue,CCHD,Home Care - Elderly - North,Private & Voluntary Home Care,Housing 21,35812.8, 10-Sep-2012
905,Revenue,CCHD,RSL Running Costs,Fees - General,Housing Partners Limited,5100, 07-Sep-2012
906,Revenue,CCHD,Care Management Team - South,Agency Staff (Operational)/PCT Pay,IPE,2104.38, 20-Sep-2012
907,Revenue,CCHD,Safeguarding and DOLs,Agency Staff (Operational)/PCT Pay,IPE,2193.75, 03-Sep-2012
908,Revenue,CCHD,Safeguarding and DOLs,Agency Staff (Operational)/PCT Pay,IPE,5118.75, 24-Sep-2012
909,Revenue,CCHD,Training - Adult Services,Training Expenses,Jo Williams,612, 25-Sep-2012
910,Revenue,CCHD,Bed Purchasing - Under 65s PWLD - South,Residential Homes,Julia Simone- Supp. Ind.,3529.24, 04-Sep-2012
911,Revenue,CCHD,Bed purchasing -S28A  Under 65 - North,Residential Homes,Julia Simone- Supp. Ind.,3411.16, 04-Sep-2012
912,Revenue,CCHD,Tenancy Start Up Scheme,Other Supplies & Services,Individual,695, 18-Sep-2012
913,Revenue,CCHD,Bed Purchasing - Elderly - North,Residential Homes,Katherine House,1192.12, 04-Sep-2012
914,Revenue,CCHD,Bed Purchasing - Elderly MH - South,Residential Homes,Kenver House Residential Home,1513.84, 04-Sep-2012
915,Revenue,CCHD,Bed purchasing - Elderly S117 - South,Residential Homes,Kenver House Residential Home,1879.04, 04-Sep-2012
916,Revenue,CCHD,Frenchay Hospital Purchasing,Residential Homes,Kenver House Residential Home,2114.96, 04-Sep-2012
917,Revenue,CCHD,Bed Purchasing - Elderly MH - South,Residential Homes,Kenver House Residential Home,1354.08, 04-Sep-2012
918,Revenue,CCHD,Bed Purchasing - Elderly - North,Residential Homes,Kenver House Residential Home,830.88, 04-Sep-2012
919,Revenue,CCHD,Bed purchasing - Elderly S117 - South,Residential Homes,Kenver House Residential Home,1879.04, 04-Sep-2012
920,Revenue,CCHD,Bed Purchasing - Elderly MH - South,Residential Homes,Kenver House Residential Home,1273.72, 04-Sep-2012
921,Revenue,CCHD,Bed Purchasing - Elderly S117- North,Residential Homes,Kenver House Residential Home,1880, 04-Sep-2012
922,Revenue,CCHD,Frenchay Hospital Purchasing,Residential Homes,Kenver House Residential Home,1638.16, 04-Sep-2012
923,Revenue,CCHD,Bed Purchasing - Elderly - South,Residential Homes,Kenver House Residential Home,830.88, 04-Sep-2012
924,Revenue,CCHD,Frenchay Hospital Purchasing,Residential Homes,Kenver House Residential Home,1638.16, 04-Sep-2012
925,Revenue,CCHD,Bed Purchasing - Elderly MH - South,Residential Homes,Kenver House Residential Home,1184.36, 04-Sep-2012
926,Revenue,CCHD,Bed Purchasing - Elderly MH - South,Residential Homes,Kenver House Residential Home,1226.32, 04-Sep-2012
927,Revenue,CCHD,Frenchay Hospital Purchasing,Residential Homes,Kenver House Residential Home,1410.6, 04-Sep-2012
928,Revenue,CCHD,Bed Purchasing - Elderly MH - South,Residential Homes,Kenver House Residential Home,1167.88, 04-Sep-2012
929,Revenue,CCHD,Bed Purchasing - Elderly MH - South,Residential Homes,Kenver House Residential Home,1402.24, 04-Sep-2012
930,Revenue,CCHD,Bed Purchasing - Elderly - South,Residential Homes,Kenver House Residential Home,1529.44, 04-Sep-2012
931,Revenue,CCHD,Bed Purchasing - Elderly - South,Residential Homes,Kenver House Residential Home,2114.96, 04-Sep-2012
932,Revenue,CCHD,Frenchay Hospital Purchasing,Residential Homes,Kenver House Residential Home,1561.28, 04-Sep-2012
933,Revenue,CCHD,Frenchay Hospital Purchasing,Residential Homes,Kenver House Residential Home,1522, 04-Sep-2012
934,Revenue,CCHD,Private Sector Housing,Software Support & Maintenance,Key Traffic Systems Limited,1479.5, 21-Sep-2012
935,Revenue,CCHD,Home Care - Elderly - South,Other Small Contracts,Kumari Care Limited,4114.14, 20-Sep-2012
936,Revenue,CCHD,Home Care - Elderly - North,Other Small Contracts,Kumari Care Limited,827.13, 20-Sep-2012
937,Revenue,CCHD,Day Care - South,Private & Voluntary Day Care,Kumari Care Limited,168.08, 20-Sep-2012
938,Revenue,CCHD,Under 65s -MH  Home Care Purch,Other Small Contracts,Kumari Care Limited,148.98, 20-Sep-2012
939,Revenue,CCHD,Home care - Elderly MH - North,Other Small Contracts,Kumari Care Limited,38.2, 20-Sep-2012
940,Revenue,CCHD,PWLD Home Care - Under 65 - KH,Private & Voluntary Home Care,Kumari Care Limited,313.24, 20-Sep-2012
941,Revenue,CCHD,Home Care - Elderly - South,Other Small Contracts,Kumari Care Limited,3946.06, 20-Sep-2012
942,Revenue,CCHD,Home Care - Elderly - North,Other Small Contracts,Kumari Care Limited,827.13, 20-Sep-2012
943,Revenue,CCHD,Day Care - South,Private & Voluntary Day Care,Kumari Care Limited,290.32, 20-Sep-2012
944,Revenue,CCHD,Under 65s -MH  Home Care Purch,Other Small Contracts,Kumari Care Limited,148.98, 20-Sep-2012
945,Revenue,CCHD,Home care - Elderly MH - North,Other Small Contracts,Kumari Care Limited,38.2, 20-Sep-2012
946,Revenue,CCHD,PWLD Home Care - Under 65 - KH,Private & Voluntary Home Care,Kumari Care Limited,145.16, 20-Sep-2012
947,Revenue,CCHD,Home Care - Elderly - South,Other Small Contracts,Kumari Care Limited,3747.42, 20-Sep-2012
948,Revenue,CCHD,Home Care - Elderly - North,Other Small Contracts,Kumari Care Limited,827.13, 20-Sep-2012
949,Revenue,CCHD,Day Care - South,Private & Voluntary Day Care,Kumari Care Limited,229.2, 20-Sep-2012
950,Revenue,CCHD,Under 65s -MH  Home Care Purch,Other Small Contracts,Kumari Care Limited,148.98, 20-Sep-2012
951,Revenue,CCHD,Home care - Elderly MH - North,Other Small Contracts,Kumari Care Limited,38.2, 20-Sep-2012
952,Revenue,CCHD,PWLD Home Care - Under 65 - KH,Private & Voluntary Home Care,Kumari Care Limited,317.06, 20-Sep-2012
953,Revenue,CCHD,Bed purchasing - Phys Dis - North,Nursing Homes,Leonard Cheshire  National Account Centr,2631.76, 04-Sep-2012
954,Revenue,CCHD,Bed purchasing - Phys Dis - North,Residential Homes,Leonard Cheshire  National Account Centr,2330.6, 04-Sep-2012
955,Revenue,CCHD,Bed Purchasing - Under 65s PWLD - South,Residential Homes,Leonard Cheshire  National Account Centr,2932.12, 04-Sep-2012
956,Revenue,CCHD,Bed Purchasing - Elderly - North,Nursing Homes,Leonard Cheshire  National Account Centr,3436.6, 04-Sep-2012
957,Revenue,CCHD,Bed purchasing - Phys Dis - North,Nursing Homes,Leonard Cheshire  National Account Centr,2736.6, 04-Sep-2012
958,Revenue,CCHD,Bed Purchasing - Elderly - North,Residential Homes,Leonard Cheshire  National Account Centr,3122.24, 04-Sep-2012
959,Revenue,CCHD,Bed Purchasing - Elderly - South,Residential Homes,Leonard Cheshire  National Account Centr,4398.92, 04-Sep-2012
960,Revenue,CCHD,Bed purchasing - Phys Dis - North,Nursing Homes,Leonard Cheshire  National Account Centr,2812.44, 04-Sep-2012
961,Revenue,CCHD,Bed purchasing - Phys Dis - North,Nursing Homes,Leonard Cheshire  National Account Centr,3183.12, 04-Sep-2012
962,Revenue,CCHD,Bed purchasing - Phys Dis - North,Residential Homes,Leonard Cheshire  National Account Centr,2862.72, 04-Sep-2012
963,Revenue,CCHD,Bed Purchasing - Elderly - North,Nursing Homes,Leonard Cheshire  National Account Centr,3521.32, 04-Sep-2012
964,Revenue,CCHD,Bed purchasing - Phys Dis - South,Nursing Homes,Leonard Cheshire  National Account Centr,6056.64, 04-Sep-2012
965,Revenue,CCHD,Bed purchasing - Phys Dis - North,Nursing Homes,Leonard Cheshire  National Account Centr,5468.84, 04-Sep-2012
966,Revenue,CCHD,Bed Purchasing - Elderly - South,Nursing Homes,Leonard Cheshire  National Account Centr,2841.24, 04-Sep-2012
967,Revenue,CCHD,Southmead Hospital Purchasing,Nursing Homes,Leonard Cheshire  National Account Centr,2977.88, 04-Sep-2012
968,Revenue,CCHD,South Glos Users in all other LA Homes,Nursing Homes,Leonard Cheshire  National Account Centr,598.4, 04-Sep-2012
969,Revenue,CCHD,Bed purchasing - Phys Dis - North,Nursing Homes,Leonard Cheshire  National Account Centr,3278.52, 04-Sep-2012
970,Revenue,CCHD,Frenchay Hospital Purchasing,Residential Homes,Leonard Cheshire  National Account Centr,3738.32, 04-Sep-2012
971,Revenue,CCHD,Bed Purchasing - Elderly - South,Nursing Homes,Leonard Cheshire  National Account Centr,4327.48, 04-Sep-2012
972,Revenue,CCHD,Bed Purchasing - LD S28A- Over 65- South,Residential Homes,Leonard Cheshire  National Account Centr,2879.08, 04-Sep-2012
973,Revenue,CCHD,Bed Purchasing - Elderly - South,Nursing Homes,Leonard Elms Care Home,1528.76, 04-Sep-2012
974,Revenue,CCHD,Supported Living - KD,Private & Voluntary Home Care,Lifeways Community Care (Gloucester) Ltd,8792, 20-Sep-2012
975,Revenue,CCHD,Supported Living - KD,Private & Voluntary Home Care,Lifeways Community Care (Gloucester) Ltd,11373, 10-Sep-2012
976,Revenue,CCHD,Supported Living - KD,Private & Voluntary Home Care,Lifeways Community Care (Gloucester) Ltd,8792, 06-Sep-2012
977,Revenue,CCHD,Supported Living - KD,Private & Voluntary Home Care,Lifeways Community Care (Gloucester) Ltd,10990, 06-Sep-2012
978,Revenue,CCHD,Supported Living - KD,Private & Voluntary Home Care,Lifeways Community Care (Gloucester) Ltd,8792, 06-Sep-2012
979,Revenue,CCHD,Supported Living - KD,Private & Voluntary Home Care,Lifeways Community Care (Gloucester) Ltd,10990, 03-Sep-2012
980,Revenue,CCHD,Frenchay Hospital Purchasing,Residential Homes,Little Croft,1515.65, 04-Sep-2012
981,Revenue,CCHD,Frenchay Hospital Purchasing,Residential Homes,Little Croft,1056.35, 04-Sep-2012
982,Revenue,CCHD,Bed Purchasing - Elderly - South,Residential Homes,Little Croft,1286.68, 04-Sep-2012
983,Revenue,CCHD,Bed Purchasing - Elderly - South,Residential Homes,Little Croft,1239.2, 04-Sep-2012
984,Revenue,CCHD,Bed Purchasing - Elderly - South,Residential Homes,Little Croft,1418.6, 04-Sep-2012
985,Revenue,CCHD,Bed Purchasing - Elderly - South,Residential Homes,Little Croft,1431.48, 04-Sep-2012
986,Revenue,CCHD,Bed Purchasing - Elderly - South,Residential Homes,Little Croft,1838.36, 04-Sep-2012
987,Revenue,CCHD,Bed Purchasing - Elderly - North,Residential Homes,Little Croft,1425, 04-Sep-2012
988,Revenue,CCHD,Bed Purchasing - Elderly - North,Residential Homes,Little Croft,600, 04-Sep-2012
989,Revenue,CCHD,Bed Purchasing - Elderly - South,Residential Homes,Little Croft,1250.72, 04-Sep-2012
990,Revenue,CCHD,Bed Purchasing - Elderly MH - South,Residential Homes,Little Croft,1172.88, 04-Sep-2012
991,Revenue,CCHD,Southmead Hospital Purchasing,Residential Homes,Little Croft,1235.8, 04-Sep-2012
992,Revenue,CCHD,Southmead Hospital Purchasing,Residential Homes,Little Croft,4037.03, 04-Sep-2012
993,Revenue,CCHD,Southmead Hospital Purchasing,Residential Homes,Little Croft,1202.52, 04-Sep-2012
994,Revenue,CCHD,Frenchay Hospital Purchasing,Residential Homes,Little Croft,1716, 04-Sep-2012
995,Revenue,CCHD,Bed Purchasing - Elderly - South,Residential Homes,Little Croft,1596.08, 04-Sep-2012
996,Revenue,CCHD,Bed Purchasing - Elderly - South,Residential Homes,Little Croft,1368.07, 04-Sep-2012
997,Revenue,CCHD,Bed purchasing - Under 65s PWLD - North,Residential Homes,Littlecroft Residential Homes  Longcroft,6524.44, 04-Sep-2012
998,Revenue,CCHD,Supported Living - KD,Private & Voluntary Home Care,Lloyds TSB Commercial Finance Limited,5607.08, 27-Sep-2012
999,Revenue,CCHD,Supported Living - PS,Private & Voluntary Home Care,Lloyds TSB Commercial Finance Limited,3906.82, 13-Sep-2012
1000,Revenue,CCHD,Supported Living - PS,Private & Voluntary Home Care,Lloyds TSB Commercial Finance Limited,3953.78, 13-Sep-2012
1001,Revenue,CCHD,Supported Living - KD,Private & Voluntary Home Care,Lloyds TSB Commercial Finance Limited,3860.31, 06-Sep-2012
1002,Revenue,CCHD,Supported Living - PS,Private & Voluntary Home Care,Lloyds TSB Commercial Finance Limited,3963.48, 28-Sep-2012
1003,Revenue,CCHD,Supported Living - PS,Private & Voluntary Home Care,Lloyds TSB Commercial Finance Limited,6163.34, 13-Sep-2012
1004,Revenue,CCHD,Supported Living - KD,Private & Voluntary Home Care,Lloyds TSB Commercial Finance Limited,3896.67, 13-Sep-2012
1005,Revenue,CCHD,Supported Living - PS,Private & Voluntary Home Care,Lloyds TSB Commercial Finance Limited,4167.5, 13-Sep-2012
1006,Revenue,CCHD,Supported Living - PS,Private & Voluntary Home Care,Lloyds TSB Commercial Finance Limited,3876.16, 13-Sep-2012
1007,Revenue,CCHD,Supported Living - PS,Private & Voluntary Home Care,Lloyds TSB Commercial Finance Limited,3758.5, 13-Sep-2012
1008,Revenue,CCHD,Supported Living - PS,Private & Voluntary Home Care,Lloyds TSB Commercial Finance Limited,3621.22, 13-Sep-2012
1009,Revenue,CCHD,Supported Living - KD,Private & Voluntary Home Care,Lloyds TSB Commercial Finance Limited,3467.01, 06-Sep-2012
1010,Revenue,CCHD,Supported Living - PS,Private & Voluntary Home Care,Lloyds TSB Commercial Finance Limited,3596.49, 26-Sep-2012
1011,Revenue,CCHD,Supported Living - PS,Private & Voluntary Home Care,Lloyds TSB Commercial Finance Limited,3495.52, 13-Sep-2012
1012,Revenue,CCHD,Home Care - Elderly - South,Other Small Contracts,Lloyds TSB Commercial Finance Limited,673.38, 06-Sep-2012
1013,Revenue,CCHD,Home Care - Elderly - North,Other Small Contracts,Lloyds TSB Commercial Finance Limited,5193.54, 06-Sep-2012
1014,Revenue,CCHD,Day Care - South,Private & Voluntary Day Care,Lloyds TSB Commercial Finance Limited,197.37, 06-Sep-2012
1015,Revenue,CCHD,Day Care - North,Private & Voluntary Day Care,Lloyds TSB Commercial Finance Limited,483.75, 06-Sep-2012
1016,Revenue,CCHD,Home care - Elderly MH - North,Other Small Contracts,Lloyds TSB Commercial Finance Limited,174.15, 06-Sep-2012
1017,Revenue,CCHD,Home Care - Elderly - South,Other Small Contracts,Lloyds TSB Commercial Finance Limited,468.27, 06-Sep-2012
1018,Revenue,CCHD,Home Care - Elderly - North,Other Small Contracts,Lloyds TSB Commercial Finance Limited,5147.1, 06-Sep-2012
1019,Revenue,CCHD,Day Care - South,Private & Voluntary Day Care,Lloyds TSB Commercial Finance Limited,201.24, 06-Sep-2012
1020,Revenue,CCHD,Day Care - North,Private & Voluntary Day Care,Lloyds TSB Commercial Finance Limited,344.43, 06-Sep-2012
1021,Revenue,CCHD,Bed Purchasing - Under 65s PWLD - South,Residential Homes,Longton Court,9508.88, 04-Sep-2012
1022,Revenue,CCHD,Southmead Hospital Purchasing,Nursing Homes,Majestic 3 Limited,1001.96, 04-Sep-2012
1023,Revenue,CCHD,Frenchay Hospital Purchasing,Residential Homes,Manor Cottage,696.6, 04-Sep-2012
1024,Revenue,CCHD,Bed Purchasing - Elderly - South,Residential Homes,Manor Cottage,1190.88, 04-Sep-2012
1025,Revenue,CCHD,Bed Purchasing - Elderly - South,Residential Homes,Manor Cottage,1424.84, 04-Sep-2012
1026,Revenue,CCHD,Bed Purchasing - Elderly - North,Residential Homes,Manton Hall Residential Home,1484.32, 04-Sep-2012
1027,Revenue,CCHD,Social Lettings Agency,Other Supplies & Services,Individual,655.41, 20-Sep-2012
1028,Revenue,CCHD,Bed Purchasing - Under 65s PWLD - South,Residential Homes,Marsden Healthcare Limited,894.48, 28-Sep-2012
1029,Revenue,CCHD,Bed purchasing - Elderly PWLD - South,Residential Homes,Marsden Healthcare Limited,3177.12, 28-Sep-2012
1030,Revenue,CCHD,Bed purchasing - Elderly PWLD - South,Residential Homes,Marsden Healthcare Limited,1496.2, 28-Sep-2012
1031,Revenue,CCHD,Home Care - Elderly - South,Private & Voluntary Home Care,Mears Care,47442.58, 28-Sep-2012
1032,Revenue,CCHD,Home Care - Elderly - South,Other Small Contracts,Mears Care,387.96, 07-Sep-2012
1033,Revenue,CCHD,Home Care - Elderly - North,Other Small Contracts,Mears Care,7180.92, 07-Sep-2012
1034,Revenue,CCHD,Day Care - South,Private & Voluntary Day Care,Mears Care,87.84, 07-Sep-2012
1035,Revenue,CCHD,Day Care - North,Private & Voluntary Day Care,Mears Care,219.6, 07-Sep-2012
1036,Revenue,CCHD,Under 65s -MH  Home Care Purch,Other Small Contracts,Mears Care,109.8, 07-Sep-2012
1037,Revenue,CCHD,Home care - Elderly MH - North,Other Small Contracts,Mears Care,651.48, 07-Sep-2012
1038,Revenue,CCHD,Elderly MH Day Care North,Private & Voluntary Day Care,Mears Care,29.28, 07-Sep-2012
1039,Revenue,CCHD,Home Care - Elderly LD - KH,Private & Voluntary Home Care,Mears Care,51.24, 07-Sep-2012
1040,Revenue,CCHD,Home Care - Elderly - South,Other Small Contracts,Mears Care,417.24, 11-Sep-2012
1041,Revenue,CCHD,Home Care - Elderly - North,Other Small Contracts,Mears Care,7071.12, 11-Sep-2012
1042,Revenue,CCHD,Day Care - South,Private & Voluntary Day Care,Mears Care,87.84, 11-Sep-2012
1043,Revenue,CCHD,Day Care - North,Private & Voluntary Day Care,Mears Care,219.6, 11-Sep-2012
1044,Revenue,CCHD,Under 65s -MH  Home Care Purch,Other Small Contracts,Mears Care,109.8, 11-Sep-2012
1045,Revenue,CCHD,Home care - Elderly MH - North,Other Small Contracts,Mears Care,658.8, 11-Sep-2012
1046,Revenue,CCHD,Elderly MH Day Care North,Private & Voluntary Day Care,Mears Care,29.28, 11-Sep-2012
1047,Revenue,CCHD,Home Care - Elderly LD - KH,Private & Voluntary Home Care,Mears Care,51.24, 11-Sep-2012
1048,Revenue,CCHD,NRS Contract,Daily Living Equipment,Medequip Assistive Technology Ltd,564, 14-Sep-2012
1049,Revenue,CCHD,NRS Contract,Daily Living Equipment,Medequip Assistive Technology Ltd,41081.81, 14-Sep-2012
1050,Revenue,CCHD,NRS Contract,Daily Living Equipment,Medequip Assistive Technology Ltd,71896.73, 14-Sep-2012
1051,Revenue,CCHD,Bed Purchasing - Under 65s PWLD - South,Residential Homes,Mencap,2198.88, 04-Sep-2012
1052,Revenue,CCHD,Intermediate Care Accommodation,Other Supplies & Services,Merlin Housing Society,969.93, 28-Sep-2012
1053,Revenue,CCHD,Intermediate Care Accommodation,Other Supplies & Services,Merlin Housing Society,1212.41, 28-Sep-2012
1054,Revenue,CCHD,Intermediate Care Accommodation,Other Supplies & Services,Merlin Housing Society,969.93, 28-Sep-2012
1055,Revenue,CCHD,Intermediate Care Accommodation,Other Supplies & Services,Merlin Housing Society,969.93, 28-Sep-2012
1056,Revenue,CCHD,Frenchay Hospital Purchasing,Residential Homes,Milburn Finance,1035.6, 04-Sep-2012
1057,Revenue,CCHD,Home Care - Elderly - South,Other Small Contracts,Milestones Outreach Dementia Services,903.84, 06-Sep-2012
1058,Revenue,CCHD,Home Care - Elderly - North,Other Small Contracts,Milestones Outreach Dementia Services,266.93, 06-Sep-2012
1059,Revenue,CCHD,Day Care - South,Private & Voluntary Day Care,Milestones Outreach Dementia Services,72.44, 06-Sep-2012
1060,Revenue,CCHD,Day Care - North,Private & Voluntary Day Care,Milestones Outreach Dementia Services,91.5, 06-Sep-2012
1061,Revenue,CCHD,Home care - Elderly MH - North,Other Small Contracts,Milestones Outreach Dementia Services,537.86, 06-Sep-2012
1062,Revenue,CCHD,Elderly MH Day Care North,Private & Voluntary Day Care,Milestones Outreach Dementia Services,538.27, 06-Sep-2012
1063,Revenue,CCHD,Home Care - Elderly - South,Other Small Contracts,Milestones Outreach Dementia Services,890.06, 06-Sep-2012
1064,Revenue,CCHD,Home Care - Elderly - North,Other Small Contracts,Milestones Outreach Dementia Services,267.4, 06-Sep-2012
1065,Revenue,CCHD,Day Care - South,Private & Voluntary Day Care,Milestones Outreach Dementia Services,61.12, 06-Sep-2012
1066,Revenue,CCHD,Day Care - North,Private & Voluntary Day Care,Milestones Outreach Dementia Services,61.12, 06-Sep-2012
1067,Revenue,CCHD,Home care - Elderly MH - North,Other Small Contracts,Milestones Outreach Dementia Services,527.16, 06-Sep-2012
1068,Revenue,CCHD,Elderly MH Day Care North,Private & Voluntary Day Care,Milestones Outreach Dementia Services,584.46, 06-Sep-2012
1069,Revenue,CCHD,Home Care - Elderly - South,Other Small Contracts,Milestones Outreach Dementia Services,756.36, 06-Sep-2012
1070,Revenue,CCHD,Home Care - Elderly - North,Other Small Contracts,Milestones Outreach Dementia Services,275.04, 06-Sep-2012
1071,Revenue,CCHD,Home care - Elderly MH - North,Other Small Contracts,Milestones Outreach Dementia Services,550.08, 06-Sep-2012
1072,Revenue,CCHD,Elderly MH Day Care North,Private & Voluntary Day Care,Milestones Outreach Dementia Services,553.9, 06-Sep-2012
1073,Revenue,CCHD,Home Care - Elderly - South,Other Small Contracts,Milestones Outreach Dementia Services,699.06, 06-Sep-2012
1074,Revenue,CCHD,Home Care - Elderly - North,Other Small Contracts,Milestones Outreach Dementia Services,259.76, 06-Sep-2012
1075,Revenue,CCHD,Home care - Elderly MH - North,Other Small Contracts,Milestones Outreach Dementia Services,504.24, 06-Sep-2012
1076,Revenue,CCHD,Elderly MH Day Care North,Private & Voluntary Day Care,Milestones Outreach Dementia Services,339.98, 06-Sep-2012
1077,Revenue,CCHD,Home Care - Elderly - South,Other Small Contracts,Milestones Outreach Dementia Services,1088.7, 06-Sep-2012
1078,Revenue,CCHD,Home Care - Elderly - North,Other Small Contracts,Milestones Outreach Dementia Services,145.16, 06-Sep-2012
1079,Revenue,CCHD,Day Care - South,Private & Voluntary Day Care,Milestones Outreach Dementia Services,61.12, 06-Sep-2012
1080,Revenue,CCHD,Day Care - North,Private & Voluntary Day Care,Milestones Outreach Dementia Services,164.16, 06-Sep-2012
1081,Revenue,CCHD,Home care - Elderly MH - North,Other Small Contracts,Milestones Outreach Dementia Services,443.12, 06-Sep-2012
1082,Revenue,CCHD,Elderly MH Day Care North,Private & Voluntary Day Care,Milestones Outreach Dementia Services,538.62, 06-Sep-2012
1083,Revenue,CCHD,Home Care - Elderly - South,Other Small Contracts,Milestones Outreach Dementia Services,1042.86, 06-Sep-2012
1084,Revenue,CCHD,Home Care - Elderly - North,Other Small Contracts,Milestones Outreach Dementia Services,252.12, 06-Sep-2012
1085,Revenue,CCHD,Day Care - South,Private & Voluntary Day Care,Milestones Outreach Dementia Services,122.24, 06-Sep-2012
1086,Revenue,CCHD,Day Care - North,Private & Voluntary Day Care,Milestones Outreach Dementia Services,164.16, 06-Sep-2012
1087,Revenue,CCHD,Home care - Elderly MH - North,Other Small Contracts,Milestones Outreach Dementia Services,553.9, 06-Sep-2012
1088,Revenue,CCHD,Elderly MH Day Care North,Private & Voluntary Day Care,Milestones Outreach Dementia Services,542.44, 06-Sep-2012
1089,Revenue,CCHD,Home Care - Elderly - South,Other Small Contracts,Milestones Outreach Dementia Services,1019.94, 06-Sep-2012
1090,Revenue,CCHD,Home Care - Elderly - North,Other Small Contracts,Milestones Outreach Dementia Services,248.3, 06-Sep-2012
1091,Revenue,CCHD,Day Care - South,Private & Voluntary Day Care,Milestones Outreach Dementia Services,126.06, 06-Sep-2012
1092,Revenue,CCHD,Day Care - North,Private & Voluntary Day Care,Milestones Outreach Dementia Services,164.16, 06-Sep-2012
1093,Revenue,CCHD,Home care - Elderly MH - North,Other Small Contracts,Milestones Outreach Dementia Services,244.48, 06-Sep-2012
1094,Revenue,CCHD,Elderly MH Day Care North,Private & Voluntary Day Care,Milestones Outreach Dementia Services,290.32, 06-Sep-2012
1095,Revenue,CCHD,Home Care - Elderly - South,Other Small Contracts,Milestones Outreach Dementia Services,1130.72, 06-Sep-2012
1096,Revenue,CCHD,Home Care - Elderly - North,Other Small Contracts,Milestones Outreach Dementia Services,217.74, 06-Sep-2012
1097,Revenue,CCHD,Day Care - South,Private & Voluntary Day Care,Milestones Outreach Dementia Services,126.06, 06-Sep-2012
1098,Revenue,CCHD,Day Care - North,Private & Voluntary Day Care,Milestones Outreach Dementia Services,164.16, 06-Sep-2012
1099,Revenue,CCHD,Home care - Elderly MH - North,Other Small Contracts,Milestones Outreach Dementia Services,240.66, 06-Sep-2012
1100,Revenue,CCHD,Elderly MH Day Care North,Private & Voluntary Day Care,Milestones Outreach Dementia Services,336.16, 06-Sep-2012
1101,Revenue,CCHD,Home Care - Elderly - South,Other Small Contracts,Milestones Outreach Dementia Services,1168.92, 17-Sep-2012
1102,Revenue,CCHD,Home Care - Elderly - North,Other Small Contracts,Milestones Outreach Dementia Services,267.4, 17-Sep-2012
1103,Revenue,CCHD,Day Care - South,Private & Voluntary Day Care,Milestones Outreach Dementia Services,122.24, 17-Sep-2012
1104,Revenue,CCHD,Day Care - North,Private & Voluntary Day Care,Milestones Outreach Dementia Services,164.16, 17-Sep-2012
1105,Revenue,CCHD,Home care - Elderly MH - North,Other Small Contracts,Milestones Outreach Dementia Services,225.38, 17-Sep-2012
1106,Revenue,CCHD,Elderly MH Day Care North,Private & Voluntary Day Care,Milestones Outreach Dementia Services,389.64, 17-Sep-2012
1107,Revenue,CCHD,Supported Living (S28a) North,Private & Voluntary Home Care,Milestones Trust,4349, 13-Sep-2012
1108,Revenue,CCHD,Supported Living (S28a) North,Private & Voluntary Home Care,Milestones Trust,4349, 13-Sep-2012
1109,Revenue,CCHD,Supported Living (S28a) North,Private & Voluntary Home Care,Milestones Trust,4349, 13-Sep-2012
1110,Revenue,CCHD,Supported Living (S28a) South,Private & Voluntary Home Care,Milestones Trust,789.32, 13-Sep-2012
1111,Revenue,CCHD,Supported Living (S28a) North,Private & Voluntary Home Care,Milestones Trust,4920.25, 13-Sep-2012
1112,Revenue,CCHD,Supported Living (S28a) North,Private & Voluntary Home Care,Milestones Trust,4920.25, 13-Sep-2012
1113,Revenue,CCHD,Supported Living (S28a) North,Private & Voluntary Home Care,Milestones Trust,1308.75, 13-Sep-2012
1114,Revenue,CCHD,Supported Living (S28a) South,Private & Voluntary Home Care,Milestones Trust,5218.25, 13-Sep-2012
1115,Revenue,CCHD,Supported Living (S28a) North,Private & Voluntary Home Care,Milestones Trust,5718.87, 13-Sep-2012
1116,Revenue,CCHD,Supported Living (S28a) South,Private & Voluntary Home Care,Milestones Trust,3517.61, 13-Sep-2012
1117,Revenue,CCHD,Supported Living (S28a) South,Private & Voluntary Home Care,Milestones Trust,4424.68, 13-Sep-2012
1118,Revenue,CCHD,Supported Living (S28a) South,Private & Voluntary Home Care,Milestones Trust,3857.05, 13-Sep-2012
1119,Revenue,CCHD,Supported Living (S28a) South,Private & Voluntary Home Care,Milestones Trust,627.38, 13-Sep-2012
1120,Revenue,CCHD,Supported Living (S28a) North,Private & Voluntary Home Care,Milestones Trust,1140, 13-Sep-2012
1121,Revenue,CCHD,Supported Living (S28a) North,Private & Voluntary Home Care,Milestones Trust,5136.46, 13-Sep-2012
1122,Revenue,CCHD,Supported Living - KD,Private & Voluntary Home Care,Milestones Trust,5525.16, 07-Sep-2012
1123,Revenue,CCHD,Supported Living (S28a) South,Private & Voluntary Home Care,Milestones Trust,6498.61, 13-Sep-2012
1124,Revenue,CCHD,Supported Living - PS,Private & Voluntary Home Care,Milestones Trust,1879.61, 03-Sep-2012
1125,Revenue,CCHD,Supported Living - PS,Private & Voluntary Home Care,Milestones Trust,1563.88, 10-Sep-2012
1126,Revenue,CCHD,Supported Living - PS,Private & Voluntary Home Care,Milestones Trust,729.65, 03-Sep-2012
1127,Revenue,CCHD,Supported Living (S28a) South,Private & Voluntary Home Care,Milestones Trust,570.73, 13-Sep-2012
1128,Revenue,CCHD,Supported Living (S28a) North,Private & Voluntary Home Care,Milestones Trust,3891.7, 13-Sep-2012
1129,Revenue,CCHD,Supported Living (S28a) North,Private & Voluntary Home Care,Milestones Trust,3479.2, 13-Sep-2012
1130,Revenue,CCHD,Supported Living (S28a) North,Private & Voluntary Home Care,Milestones Trust,3479.2, 13-Sep-2012
1131,Revenue,CCHD,Supported Living - PS,Private & Voluntary Home Care,Milestones Trust,583.56, 03-Sep-2012
1132,Revenue,CCHD,Supported Living - KD,Private & Voluntary Home Care,Milestones Trust,518.72, 10-Sep-2012
1133,Revenue,CCHD,Supported Living (S28a) South,Private & Voluntary Home Care,Milestones Trust,763.88, 13-Sep-2012
1134,Revenue,CCHD,Supported Living (S28a) North,Private & Voluntary Home Care,Milestones Trust,3936.2, 13-Sep-2012
1135,Revenue,CCHD,Supported Living (S28a) North,Private & Voluntary Home Care,Milestones Trust,3936.2, 13-Sep-2012
1136,Revenue,CCHD,Supported Living - PS,Private & Voluntary Home Care,Milestones Trust,555.63, 03-Sep-2012
1137,Revenue,CCHD,Supported Living - PS,Private & Voluntary Home Care,Milestones Trust,1086.51, 10-Sep-2012
1138,Revenue,CCHD,Supported Living (S28a) South,Private & Voluntary Home Care,Milestones Trust,4184.87, 13-Sep-2012
1139,Revenue,CCHD,Supported Living (S28a) North,Private & Voluntary Home Care,Milestones Trust,36224.95, 13-Sep-2012
1140,Revenue,CCHD,Supported Living (S28a) North,Private & Voluntary Home Care,Milestones Trust,38158.05, 13-Sep-2012
1141,Revenue,CCHD,Purchase of Non-Res Care - KD,Private & Voluntary Day Care,Milestones Trust,602.37, 13-Sep-2012
1142,Revenue,CCHD,Purchase of Non-Res Care - PS,Private & Voluntary Day Care,Milestones Trust,586.19, 28-Sep-2012
1143,Revenue,CCHD,Purchase of Non-Res Care - PS,Private & Voluntary Day Care,Milestones Trust,546.99, 28-Sep-2012
1144,Revenue,CCHD,Purchase of Non-Res Care - PS,Private & Voluntary Day Care,Milestones Trust,509.19, 28-Sep-2012
1145,Revenue,CCHD,Purchase of Non-Res Care - PS,Private & Voluntary Day Care,Milestones Trust,652.54, 28-Sep-2012
1146,Revenue,CCHD,Supported Living (S28a) South,Private & Voluntary Home Care,Milestones Trust,1875.4, 13-Sep-2012
1147,Revenue,CCHD,Supported Living (S28a) South,Private & Voluntary Home Care,Milestones Trust,3740.4, 13-Sep-2012
1148,Revenue,CCHD,Supported Living (S28a) South,Private & Voluntary Home Care,Milestones Trust,2976.1, 13-Sep-2012
1149,Revenue,CCHD,Supported Living - PS,Private & Voluntary Home Care,Milestones Trust,2732.84, 07-Sep-2012
1150,Revenue,CCHD,Supported Living (S28a) South,Private & Voluntary Home Care,Milestones Trust,3696.4, 13-Sep-2012
1151,Revenue,CCHD,Supported Living - PS,Private & Voluntary Home Care,Milestones Trust,926.1, 26-Sep-2012
1152,Revenue,CCHD,Purchase of Non-Res Care - PS,Private & Voluntary Day Care,Milestones Trust,1696.45, 07-Sep-2012
1153,Revenue,CCHD,Purchase of Non-Res Care - PS,Private & Voluntary Day Care,Milestones Trust,528, 07-Sep-2012
1154,Revenue,CCHD,Purchase of Non-Res Care - PS,Private & Voluntary Day Care,Milestones Trust,1200.56, 26-Sep-2012
1155,Revenue,CCHD,Purchase of Non-Res Care - PS,Private & Voluntary Day Care,Milestones Trust,1435.68, 07-Sep-2012
1156,Revenue,CCHD,Purchase of Non-Res Care - PS,Private & Voluntary Day Care,Milestones Trust,1348.6, 07-Sep-2012
1157,Revenue,CCHD,Supported Living - PS,Private & Voluntary Home Care,Milestones Trust,528.01, 07-Sep-2012
1158,Revenue,CCHD,Purchase of Non-Res Care - PS,Private & Voluntary Day Care,Milestones Trust,1423.4, 07-Sep-2012
1159,Revenue,CCHD,Purchase of Non-Res Care - PS,Private & Voluntary Day Care,Milestones Trust,1708, 07-Sep-2012
1160,Revenue,CCHD,Purchase of Non-Res Care - PS,Private & Voluntary Day Care,Milestones Trust,573.36, 28-Sep-2012
1161,Revenue,CCHD,Purchase of Non-Res Care - PS,Private & Voluntary Day Care,Milestones Trust,1543.4, 25-Sep-2012
1162,Revenue,CCHD,Purchase of Non-Res Care - PS,Private & Voluntary Day Care,Milestones Trust,1096.54, 26-Sep-2012
1163,Revenue,CCHD,Purchase of Non-Res Care - PS,Private & Voluntary Day Care,Milestones Trust,1184.09, 07-Sep-2012
1164,Revenue,CCHD,Supported Living - PS,Private & Voluntary Home Care,Milestones Trust,1806.3, 07-Sep-2012
1165,Revenue,CCHD,Purchase of Non-Res Care - PS,Private & Voluntary Day Care,Milestones Trust,1333.11, 26-Sep-2012
1166,Revenue,CCHD,Elderly MH Day Care South,Private & Voluntary Day Care,Milestones Trust,680, 21-Sep-2012
1167,Revenue,CCHD,Supported Living (S28a) North,Private & Voluntary Home Care,Milestones Trust,1387.5, 27-Sep-2012
1168,Revenue,CCHD,Bed purchasing - Elderly S117 - South,Nursing Homes,Mimosa Healthcare Holdings Ltd,1919.72, 04-Sep-2012
1169,Revenue,CCHD,Bed purchasing - Elderly MH - North,Nursing Homes,Mimosa Healthcare Holdings Ltd,862.52, 04-Sep-2012
1170,Revenue,CCHD,Bed Purchasing - Elderly - South,Nursing Homes,Mimosa Healthcare Holdings Ltd,959.72, 04-Sep-2012
1171,Revenue,CCHD,Frenchay Hospital Purchasing,Nursing Homes,Mimosa Healthcare Holdings Ltd,3145.49, 04-Sep-2012
1172,Revenue,CCHD,Frenchay Hospital Purchasing,Nursing Homes,Mimosa Healthcare Holdings Ltd,1295.2, 04-Sep-2012
1173,Revenue,CCHD,Southmead Hospital Purchasing,Nursing Homes,Mimosa Healthcare Holdings Ltd,4012.07, 04-Sep-2012
1174,Revenue,CCHD,Southmead Hospital Purchasing,Nursing Homes,Mimosa Healthcare Holdings Ltd,3661.28, 04-Sep-2012
1175,Revenue,CCHD,Southmead Hospital Purchasing,Nursing Homes,Mimosa Healthcare Holdings Ltd,1366.88, 04-Sep-2012
1176,Revenue,CCHD,Bed Purchasing - Under 65s PWLD - South,Residential Homes,Mmcg  Westcourt,12816.72, 04-Sep-2012
1177,Revenue,CCHD,Bed Purchasing - LD S28A- Over 65- South,Nursing Homes,Mortimer House Nursing Home,2996.52, 28-Sep-2012
1178,Revenue,CCHD,Bed Purchasing - LD S28A- Over 65- South,Nursing Homes,Mortimer House Nursing Home,2553.84, 28-Sep-2012
1179,Revenue,CCHD,Bed Purchasing - LD S28A- Over 65- South,Nursing Homes,Mortimer House Nursing Home,3271.92, 28-Sep-2012
1180,Revenue,CCHD,Bed purchasing - Elderly PWLD - South,Nursing Homes,Mortimer House Nursing Home,3109.76, 28-Sep-2012
1181,Revenue,CCHD,Bed Purchasing - LD S28A- Over 65- South,Nursing Homes,Mortimer House Nursing Home,3277.24, 28-Sep-2012
1182,Revenue,CCHD,Older People's Commissioned Se,Grants to Voluntary Bodies,Mothers for Mothers,2135.25, 28-Sep-2012
1183,Revenue,CCHD,Supported Living - PS,Private & Voluntary Home Care,Moving On,3729.79, 10-Sep-2012
1184,Revenue,CCHD,Supported Living - PS,Private & Voluntary Home Care,Moving On,6581.07, 10-Sep-2012
1185,Revenue,CCHD,Social Lettings Agency,Other Supplies & Services,Individual,565, 26-Sep-2012
1186,Revenue,CCHD,Social Lettings Agency,Other Supplies & Services,Individual,950, 12-Sep-2012
1187,Revenue,CCHD,Tenancy Start Up Scheme,Other Supplies & Services,Individual,788, 18-Sep-2012
1188,Revenue,CCHD,Under 65s PWLD - KH,Residential Homes,Mr J Davis & Mrs S Davis,2042.03, 11-Sep-2012
1189,Revenue,CCHD,Social Lettings Agency,Other Supplies & Services,Individual,565, 10-Sep-2012
1190,Revenue,CCHD,Research & Conferences,Consultation Expenses,Mr Nicholas Sproull,675, 20-Sep-2012
1191,Revenue,CCHD,Social Lettings Agency,Other Supplies & Services,Individual,632.81, 20-Sep-2012
1192,Revenue,CCHD,Social Lettings Agency,Other Supplies & Services,Individual,551.44, 10-Sep-2012
1193,Revenue,CCHD,Social Lettings Agency,Other Supplies & Services,Individual,565, 06-Sep-2012
1194,Revenue,CCHD,Social Lettings Agency,Other Supplies & Services,Individual,632.81, 14-Sep-2012
1195,Revenue,CCHD,Tenancy Start Up Scheme,Other Supplies & Services,Individual,1250, 03-Sep-2012
1196,Revenue,CCHD,Supporting People Programme,Grants to Voluntary Bodies,Mr Steven Welling,592.56, 13-Sep-2012
1197,Revenue,CCHD,Purchase of Non-Res Care - KD,Private & Voluntary Day Care,Mrs B Kimber,864.33, 10-Sep-2012
1198,Revenue,CCHD,Elderly MH Day Care South,Private & Voluntary Day Care,Mrs B Kimber,775.74, 21-Sep-2012
1199,Revenue,CCHD,Supported Living - PS,Private & Voluntary Home Care,Mrs B Kimber,10562.91, 19-Sep-2012
1200,Revenue,CCHD,Elderly MH Day Care North,Private & Voluntary Day Care,Mrs B Kimber,554.1, 28-Sep-2012
1201,Revenue,CCHD,Supported Living - PS,Private & Voluntary Home Care,Mrs B Kimber,1279.46, 25-Sep-2012
1202,Revenue,CCHD,Day Care - South,Private & Voluntary Day Care,Mrs B Kimber,969.71, 20-Sep-2012
1203,Revenue,CCHD,Day Care - North,Private & Voluntary Day Care,Mrs B Kimber,546.72, 26-Sep-2012
1204,Revenue,CCHD,Day Care - North,Private & Voluntary Day Care,Mrs B Kimber,543.24, 26-Sep-2012
1205,Revenue,CCHD,Purchase of Non-Res Care - KD,Private & Voluntary Day Care,Mrs B Kimber,663.63, 26-Sep-2012
1206,Revenue,CCHD,Supported Living - KD,Private & Voluntary Home Care,Mrs B Kimber,1220.31, 26-Sep-2012
1207,Revenue,CCHD,Supported Living - PS,Private & Voluntary Home Care,Mrs B Kimber,8556.67, 19-Sep-2012
1208,Revenue,CCHD,Home Care - Elderly - South,Other Small Contracts,Mrs B Kimber,106.53, 19-Sep-2012
1209,Revenue,CCHD,Home Care - Elderly - North,Other Small Contracts,Mrs B Kimber,71.24, 19-Sep-2012
1210,Revenue,CCHD,Day Care - South,Private & Voluntary Day Care,Mrs B Kimber,480.48, 19-Sep-2012
1211,Revenue,CCHD,Day Care - North,Private & Voluntary Day Care,Mrs B Kimber,29.25, 19-Sep-2012
1212,Revenue,CCHD,Elderly MH Day Care North,Private & Voluntary Day Care,Mrs B Kimber,68.85, 19-Sep-2012
1213,Revenue,CCHD,Home Care - Elderly - South,Other Small Contracts,Mrs B Kimber - Stepping Stones,3805.5, 06-Sep-2012
1214,Revenue,CCHD,Home Care - Elderly - North,Other Small Contracts,Mrs B Kimber - Stepping Stones,4282.68, 06-Sep-2012
1215,Revenue,CCHD,Day Care - South,Private & Voluntary Day Care,Mrs B Kimber - Stepping Stones,942.35, 06-Sep-2012
1216,Revenue,CCHD,Day Care - North,Private & Voluntary Day Care,Mrs B Kimber - Stepping Stones,304.76, 06-Sep-2012
1217,Revenue,CCHD,Under 65s -MH  Home Care Purch,Other Small Contracts,Mrs B Kimber - Stepping Stones,248.62, 06-Sep-2012
1218,Revenue,CCHD,Younger MH non-res purchasing,Private & Voluntary Day Care,Mrs B Kimber - Stepping Stones,48.12, 06-Sep-2012
1219,Revenue,CCHD,Home care - Elderly MH - North,Other Small Contracts,Mrs B Kimber - Stepping Stones,288.72, 06-Sep-2012
1220,Revenue,CCHD,Elderly MH Day Care North,Private & Voluntary Day Care,Mrs B Kimber - Stepping Stones,288.72, 06-Sep-2012
1221,Revenue,CCHD,Supported Living - KD,Private & Voluntary Home Care,Mrs B Kimber - Stepping Stones,725.81, 06-Sep-2012
1222,Revenue,CCHD,Home Care - LD Under 65 - South,Private & Voluntary Home Care,Mrs B Kimber - Stepping Stones,116.29, 06-Sep-2012
1223,Revenue,CCHD,Home Care - LD Under 65 - North,Private & Voluntary Home Care,Mrs B Kimber - Stepping Stones,48.12, 06-Sep-2012
1224,Revenue,CCHD,PWLD Home Care - Under 65 - KH,Private & Voluntary Home Care,Mrs B Kimber - Stepping Stones,88.22, 06-Sep-2012
1225,Revenue,CCHD,Home Care - Elderly LD - North,Private & Voluntary Home Care,Mrs B Kimber - Stepping Stones,1006.51, 06-Sep-2012
1226,Revenue,CCHD,Home Care - Elderly - South,Other Small Contracts,Mrs B Kimber - Stepping Stones,4254.61, 13-Sep-2012
1227,Revenue,CCHD,Home Care - Elderly - North,Other Small Contracts,Mrs B Kimber - Stepping Stones,3480.68, 13-Sep-2012
1228,Revenue,CCHD,Day Care - South,Private & Voluntary Day Care,Mrs B Kimber - Stepping Stones,994.48, 13-Sep-2012
1229,Revenue,CCHD,Day Care - North,Private & Voluntary Day Care,Mrs B Kimber - Stepping Stones,256.64, 13-Sep-2012
1230,Revenue,CCHD,Under 65s -MH  Home Care Purch,Other Small Contracts,Mrs B Kimber - Stepping Stones,224.56, 13-Sep-2012
1231,Revenue,CCHD,Younger MH non-res purchasing,Private & Voluntary Day Care,Mrs B Kimber - Stepping Stones,44.11, 13-Sep-2012
1232,Revenue,CCHD,Home care - Elderly MH - North,Other Small Contracts,Mrs B Kimber - Stepping Stones,292.73, 13-Sep-2012
1233,Revenue,CCHD,Elderly MH Day Care North,Private & Voluntary Day Care,Mrs B Kimber - Stepping Stones,240.6, 13-Sep-2012
1234,Revenue,CCHD,Supported Living - KD,Private & Voluntary Home Care,Mrs B Kimber - Stepping Stones,777.94, 13-Sep-2012
1235,Revenue,CCHD,Home Care - LD Under 65 - South,Private & Voluntary Home Care,Mrs B Kimber - Stepping Stones,112.28, 13-Sep-2012
1236,Revenue,CCHD,Home Care - LD Under 65 - North,Private & Voluntary Home Care,Mrs B Kimber - Stepping Stones,48.12, 13-Sep-2012
1237,Revenue,CCHD,PWLD Home Care - Under 65 - KH,Private & Voluntary Home Care,Mrs B Kimber - Stepping Stones,84.21, 13-Sep-2012
1238,Revenue,CCHD,Home Care - Elderly LD - North,Private & Voluntary Home Care,Mrs B Kimber - Stepping Stones,958.39, 13-Sep-2012
1239,Revenue,CCHD,Social Lettings Agency,Other Supplies & Services,Individual,632.81, 12-Sep-2012
1240,Revenue,CCHD,Social Lettings Agency,Other Supplies & Services,Individual,565, 24-Sep-2012
1241,Revenue,CCHD,Supported Living - KD,Residential Homes,Mrs I M Bowerman,1179.2, 13-Sep-2012
1242,Revenue,CCHD,Social Lettings Agency,Other Supplies & Services,Individual,565, 12-Sep-2012
1243,Revenue,CCHD,Social Lettings Agency,Other Supplies & Services,Individual,655.41, 13-Sep-2012
1244,Revenue,CCHD,Purchase of Non-Res Care - KD,Private & Voluntary Day Care,Mrs W Thompson,1484.4, 21-Sep-2012
1245,Revenue,CCHD,Purchase of Non-Res Care - KD,Private & Voluntary Day Care,Mrs W Thompson,563.28, 21-Sep-2012
1246,Revenue,CCHD,Social Lettings Agency,Other Supplies & Services,Individual,858.8, 11-Sep-2012
1247,Revenue,CCHD,Alexandra Way,Cleaning & Domestic Supplies,Muzzell Healthcare,454.75, 06-Sep-2012
1248,Revenue,CCHD,Younger MH non-res purchasing,Private & Voluntary Day Care,NAS Services Limited,649.4, 14-Sep-2012
1249,Revenue,CCHD,Younger MH non-res purchasing,Private & Voluntary Day Care,NAS Services Limited,553.9, 21-Sep-2012
1250,Revenue,CCHD,Younger MH non-res purchasing,Private & Voluntary Day Care,NAS Services Limited,553.9, 21-Sep-2012
1251,Revenue,CCHD,Younger MH non-res purchasing,Private & Voluntary Day Care,NAS Services Limited,1419.7, 21-Sep-2012
1252,Revenue,CCHD,Younger MH non-res purchasing,Private & Voluntary Day Care,NAS Services Limited,525.25, 28-Sep-2012
1253,Revenue,CCHD,Younger MH non-res purchasing,Private & Voluntary Day Care,NAS Services Limited,601.65, 28-Sep-2012
1254,Revenue,CCHD,Younger MH non-res purchasing,Private & Voluntary Day Care,NAS Services Limited,687.6, 28-Sep-2012
1255,Revenue,CCHD,Bed Purchasing - Under 65s PWLD - South,Residential Homes,National Star College,9095.44, 04-Sep-2012
1256,Revenue,CCHD,Home Care - Elderly - South,Other Small Contracts,Network Health & Social Care,1084.43, 11-Sep-2012
1257,Revenue,CCHD,Home Care - Elderly - North,Other Small Contracts,Network Health & Social Care,3617.98, 11-Sep-2012
1258,Revenue,CCHD,Day Care - North,Private & Voluntary Day Care,Network Health & Social Care,30.8, 11-Sep-2012
1259,Revenue,CCHD,Under 65s -MH  Home Care Purch,Other Small Contracts,Network Health & Social Care,177.1, 11-Sep-2012
1260,Revenue,CCHD,Home Care - Elderly - South,Other Small Contracts,Network Health & Social Care,1076.73, 11-Sep-2012
1261,Revenue,CCHD,Home Care - Elderly - North,Other Small Contracts,Network Health & Social Care,3402.48, 11-Sep-2012
1262,Revenue,CCHD,Day Care - North,Private & Voluntary Day Care,Network Health & Social Care,30.8, 11-Sep-2012
1263,Revenue,CCHD,Under 65s -MH  Home Care Purch,Other Small Contracts,Network Health & Social Care,184.8, 11-Sep-2012
1264,Revenue,CCHD,Home Care - Elderly - South,Other Small Contracts,Network Health & Social Care,1057.5, 11-Sep-2012
1265,Revenue,CCHD,Home Care - Elderly - North,Other Small Contracts,Network Health & Social Care,3390.92, 11-Sep-2012
1266,Revenue,CCHD,Day Care - North,Private & Voluntary Day Care,Network Health & Social Care,26.95, 11-Sep-2012
1267,Revenue,CCHD,Under 65s -MH  Home Care Purch,Other Small Contracts,Network Health & Social Care,177.09, 11-Sep-2012
1268,Revenue,CCHD,Home Care - Elderly - South,Other Small Contracts,Network Health & Social Care,1084.43, 11-Sep-2012
1269,Revenue,CCHD,Home Care - Elderly - North,Other Small Contracts,Network Health & Social Care,3167.66, 11-Sep-2012
1270,Revenue,CCHD,Day Care - North,Private & Voluntary Day Care,Network Health & Social Care,26.95, 11-Sep-2012
1271,Revenue,CCHD,Under 65s -MH  Home Care Purch,Other Small Contracts,Network Health & Social Care,177.09, 11-Sep-2012
1272,Revenue,CCHD,Bed Purchasing - Under 65s PWLD - South,Residential Homes,Nightingale Nursing Home,3076.64, 04-Sep-2012
1273,Revenue,CCHD,Delayed Transfers of Care Gran,Other Supplies & Services,North Bristol NHS Trust,900, 26-Sep-2012
1274,Revenue,CCHD,Bed Purchasing - Under 65s PWLD - South,Residential Homes,Norwood   Broadway House,4853.64, 04-Sep-2012
1275,Revenue,CCHD,Bed Purchasing - Elderly MH - South,Residential Homes,Notaro Homes Ltd  Queensmead Court,1839.64, 04-Sep-2012
1276,Revenue,CCHD,Southmead Hospital Purchasing,Residential Homes,Notaro Homes Ltd  Queensmead Court,1362.84, 04-Sep-2012
1277,Revenue,CCHD,Home Care - Elderly - South,Other Small Contracts,Nursing Solutions Limited,1076.94, 07-Sep-2012
1278,Revenue,CCHD,Day Care - South,Private & Voluntary Day Care,Nursing Solutions Limited,30.88, 07-Sep-2012
1279,Revenue,CCHD,Home Care - Elderly - South,Other Small Contracts,Nursing Solutions Limited,1196.6, 07-Sep-2012
1280,Revenue,CCHD,Day Care - South,Private & Voluntary Day Care,Nursing Solutions Limited,30.88, 07-Sep-2012
1281,Revenue,CCHD,Bed Purchasing - Elderly - South,Residential Homes,Oaktree Lodge,1267.76, 04-Sep-2012
1282,Revenue,CCHD,Kingswood Centre - Maples Suite,Contract Hire & Operational Leases,OCS Group UK Ltd,483.6, 13-Sep-2012
1283,Revenue,CCHD,Home Care - Elderly - South,Other Small Contracts,On the Up,351.82, 06-Sep-2012
1284,Revenue,CCHD,Day Care - South,Private & Voluntary Day Care,On the Up,624.96, 06-Sep-2012
1285,Revenue,CCHD,Day Care - North,Private & Voluntary Day Care,On the Up,611.04, 06-Sep-2012
1286,Revenue,CCHD,Younger MH non-res purchasing,Private & Voluntary Day Care,On the Up,401.28, 06-Sep-2012
1287,Revenue,CCHD,Elderly MH Day Care North,Private & Voluntary Day Care,On the Up,106.96, 06-Sep-2012
1288,Revenue,CCHD,Home Care - Elderly - South,Other Small Contracts,On the Up,300.68, 06-Sep-2012
1289,Revenue,CCHD,Day Care - South,Private & Voluntary Day Care,On the Up,523.16, 06-Sep-2012
1290,Revenue,CCHD,Day Care - North,Private & Voluntary Day Care,On the Up,606.48, 06-Sep-2012
1291,Revenue,CCHD,Younger MH non-res purchasing,Private & Voluntary Day Care,On the Up,401.28, 06-Sep-2012
1292,Revenue,CCHD,Elderly MH Day Care North,Private & Voluntary Day Care,On the Up,103.14, 06-Sep-2012
1293,Revenue,CCHD,Home Care - Elderly - South,Other Small Contracts,On the Up,271.22, 06-Sep-2012
1294,Revenue,CCHD,Day Care - South,Private & Voluntary Day Care,On the Up,564.2, 06-Sep-2012
1295,Revenue,CCHD,Day Care - North,Private & Voluntary Day Care,On the Up,611.04, 06-Sep-2012
1296,Revenue,CCHD,Younger MH non-res purchasing,Private & Voluntary Day Care,On the Up,401.28, 06-Sep-2012
1297,Revenue,CCHD,Elderly MH Day Care North,Private & Voluntary Day Care,On the Up,122.24, 06-Sep-2012
1298,Revenue,CCHD,Bed purchasing -S28A  Under 65 - North,Residential Homes,Orchard End Limited,7580.16, 04-Sep-2012
1299,Revenue,CCHD,Turnberries,"Provisions (Food, etc)",Origin Cafe,699.95, 19-Sep-2012
1300,Revenue,CCHD,Turnberries,"Provisions (Food, etc)",Origin Cafe,591.6, 28-Sep-2012
1301,Revenue,CCHD,Day Care - South,Private & Voluntary Day Care,Osbourne Court,585, 21-Sep-2012
1302,Revenue,CCHD,Bed Purchasing - Elderly - North,Residential Homes,Osbourne Court,956.4, 04-Sep-2012
1303,Revenue,CCHD,Bed Purchasing - Elderly - South,Residential Homes,Osbourne Court,571.42, 04-Sep-2012
1304,Revenue,CCHD,Bed Purchasing - Elderly S117- North,Residential Homes,Osbourne Court,1879.04, 04-Sep-2012
1305,Revenue,CCHD,Bed Purchasing - Elderly S117- North,Residential Homes,Osbourne Court,1716, 04-Sep-2012
1306,Revenue,CCHD,Bed purchasing - Elderly MH - North,Residential Homes,Osbourne Court,843.32, 04-Sep-2012
1307,Revenue,CCHD,Bed purchasing - Elderly MH - North,Residential Homes,Osbourne Court,698.05, 04-Sep-2012
1308,Revenue,CCHD,Bed Purchasing - Elderly - North,Residential Homes,Osbourne Court,701.6, 04-Sep-2012
1309,Revenue,CCHD,Frenchay Hospital Purchasing,Residential Homes,Osbourne Court,2117.09, 04-Sep-2012
1310,Revenue,CCHD,Bed purchasing - Elderly MH - North,Residential Homes,Osbourne Court,2054.69, 04-Sep-2012
1311,Revenue,CCHD,Bed purchasing - Elderly MH - North,Residential Homes,Osbourne Court,1403.2, 04-Sep-2012
1312,Revenue,CCHD,Bed purchasing - Elderly MH - North,Residential Homes,Osbourne Court,1434.24, 04-Sep-2012
1313,Revenue,CCHD,Bed Purchasing - Elderly S117- North,Residential Homes,Osbourne Court,1880, 04-Sep-2012
1314,Revenue,CCHD,Southmead Hospital Purchasing,Residential Homes,Osbourne Court,1403.2, 04-Sep-2012
1315,Revenue,CCHD,Frenchay Hospital Purchasing,Residential Homes,Osbourne Court,1247.36, 04-Sep-2012
1316,Revenue,CCHD,Bed Purchasing - Under 65s PWLD - South,Residential Homes,Osprey Court,7564.96, 04-Sep-2012
1317,Revenue,CCHD,Bed purchasing - S28A Under 65 - South,Residential Homes,Osprey Court,4219.68, 04-Sep-2012
1318,Revenue,CCHD,Bed purchasing - S28A Under 65 - South,Residential Homes,Osprey Court,6249.96, 04-Sep-2012
1319,Revenue,CCHD,Management & Support costs,Other Supplies & Services,Oxford Brookes University,520, 21-Sep-2012
1320,Revenue,CCHD,Management & Support costs,Other Supplies & Services,Oxford Brooks Enterprises Ltd,5062.5, 21-Sep-2012
1321,Revenue,CCHD,Minor Adaptations Service,Operational Equipment,Pan Tools Ltd,549.93, 25-Sep-2012
1322,Revenue,CCHD,Swift Dump Code,Residential Homes,Park Farm House,3602.49, 03-Sep-2012
1323,Revenue,CCHD,Bed Purchasing - Elderly MH - South,Residential Homes,Park Farm House,1330.8, 04-Sep-2012
1324,Revenue,CCHD,Bed Purchasing - Elderly - South,Residential Homes,Park Farm House,1520.68, 04-Sep-2012
1325,Revenue,CCHD,Bed Purchasing - Elderly MH - South,Residential Homes,Park Farm House,1582.64, 04-Sep-2012
1326,Revenue,CCHD,Bed Purchasing - Under 65s PWLD - South,Residential Homes,Park Hall,5500, 04-Sep-2012
1327,Revenue,CCHD,Bed purchasing - Under 65s PWLD - North,Residential Homes,Park Hall,5082.32, 04-Sep-2012
1328,Revenue,CCHD,Bed Purchasing - Under 65s PWLD - South,Residential Homes,Park Hall,4894.68, 04-Sep-2012
1329,Revenue,CCHD,Bed Purchasing - Under 65s PWLD - South,Residential Homes,Park Hall,2173.96, 04-Sep-2012
1330,Revenue,CCHD,Bed purchasing - Elderly PWLD - South,Residential Homes,Park Hall,2501.56, 04-Sep-2012
1331,Revenue,CCHD,Bed Purchasing - Under 65s PWLD - South,Residential Homes,Park Hall,10148.03, 04-Sep-2012
1332,Revenue,CCHD,Bed purchasing - Elderly PWLD - North,Residential Homes,Park Hall,4855.8, 04-Sep-2012
1333,Revenue,CCHD,Bed purchasing - S28A Under 65 - South,Residential Homes,Park Hall,4571.08, 04-Sep-2012
1334,Revenue,CCHD,Bed Purchasing - Under 65s PWLD - South,Residential Homes,Park Hall,4871.2, 04-Sep-2012
1335,Revenue,CCHD,Bed purchasing - Under 65s PWLD - North,Residential Homes,Park Hall,4274.52, 04-Sep-2012
1336,Revenue,CCHD,Bed Purchasing - S28A - Over 65- North,Residential Homes,Park Hall,5240.84, 04-Sep-2012
1337,Revenue,CCHD,Bed Purchasing - Under 65s PWLD - South,Residential Homes,Park Hall,10510.04, 04-Sep-2012
1338,Revenue,CCHD,Bed purchasing -S28A  Under 65 - North,Residential Homes,Park Hall,5789.4, 04-Sep-2012
1339,Revenue,CCHD,Bed purchasing - S28A Under 65 - South,Residential Homes,Park Hall,5529.44, 04-Sep-2012
1340,Revenue,CCHD,Bed Purchasing - Elderly - South,Residential Homes,Park Street Home,2042.6, 04-Sep-2012
1341,Revenue,CCHD,Bed Purchasing - Under 65s PWLD - South,Residential Homes,Penleigh House Care Home,4451.6, 04-Sep-2012
1342,Revenue,CCHD,Bed Purchasing - Under 65s PWLD - South,Residential Homes,Penleigh House Care Home,5175.52, 04-Sep-2012
1343,Revenue,CCHD,Bed purchasing - Elderly PWLD - South,Residential Homes,Penleigh House Care Home,4222.56, 04-Sep-2012
1344,Revenue,CCHD,Bed Purchasing - Under 65s PWLD - South,Residential Homes,Penleigh House Care Home,4599.76, 04-Sep-2012
1345,Revenue,CCHD,Bed purchasing - S28A Under 65 - South,Residential Homes,Penleigh House Care Home,5366.32, 04-Sep-2012
1346,Revenue,CCHD,Bed Purchasing - Under 65s PWLD - South,Residential Homes,Penleigh House Care Home,4847.56, 04-Sep-2012
1347,Revenue,CCHD,Southmead Hospital Purchasing,Residential Homes,Petersfield Nursing Home,874.8, 04-Sep-2012
1348,Revenue,CCHD,Bed Purchasing - Elderly - North,Residential Homes,Petersfield Nursing Home,1271.56, 04-Sep-2012
1349,Revenue,CCHD,Home Care - Elderly - South,Other Small Contracts,Premier Homecare Limited,230.01, 10-Sep-2012
1350,Revenue,CCHD,Home Care - Elderly - North,Other Small Contracts,Premier Homecare Limited,4537.06, 10-Sep-2012
1351,Revenue,CCHD,Day Care - North,Private & Voluntary Day Care,Premier Homecare Limited,162.36, 10-Sep-2012
1352,Revenue,CCHD,Younger MH non-res purchasing,Private & Voluntary Day Care,Premier Homecare Limited,27.06, 10-Sep-2012
1353,Revenue,CCHD,Home care - Elderly MH - North,Other Small Contracts,Premier Homecare Limited,311.19, 10-Sep-2012
1354,Revenue,CCHD,Elderly MH Day Care North,Private & Voluntary Day Care,Premier Homecare Limited,279.62, 10-Sep-2012
1355,Revenue,CCHD,Home Care - Elderly - South,Other Small Contracts,Premier Homecare Limited,279.62, 13-Sep-2012
1356,Revenue,CCHD,Home Care - Elderly - North,Other Small Contracts,Premier Homecare Limited,4325.09, 13-Sep-2012
1357,Revenue,CCHD,Day Care - North,Private & Voluntary Day Care,Premier Homecare Limited,180.41, 13-Sep-2012
1358,Revenue,CCHD,Younger MH non-res purchasing,Private & Voluntary Day Care,Premier Homecare Limited,27.06, 13-Sep-2012
1359,Revenue,CCHD,Home care - Elderly MH - North,Other Small Contracts,Premier Homecare Limited,306.68, 13-Sep-2012
1360,Revenue,CCHD,Elderly MH Day Care North,Private & Voluntary Day Care,Premier Homecare Limited,293.15, 13-Sep-2012
1361,Revenue,CCHD,Home Care - Elderly - South,Other Small Contracts,Prestige Nursing,713.09, 06-Sep-2012
1362,Revenue,CCHD,Home Care - Elderly - North,Other Small Contracts,Prestige Nursing,1011.99, 06-Sep-2012
1363,Revenue,CCHD,Day Care - South,Private & Voluntary Day Care,Prestige Nursing,307.44, 06-Sep-2012
1364,Revenue,CCHD,Day Care - North,Private & Voluntary Day Care,Prestige Nursing,969.29, 06-Sep-2012
1365,Revenue,CCHD,Home care - Elderly MH - North,Other Small Contracts,Prestige Nursing,273.28, 06-Sep-2012
1366,Revenue,CCHD,Elderly MH Day Care North,Private & Voluntary Day Care,Prestige Nursing,482.51, 06-Sep-2012
1367,Revenue,CCHD,Home Care - Elderly - South,Other Small Contracts,Prestige Nursing,717.36, 06-Sep-2012
1368,Revenue,CCHD,Home Care - Elderly - North,Other Small Contracts,Prestige Nursing,900.97, 06-Sep-2012
1369,Revenue,CCHD,Day Care - South,Private & Voluntary Day Care,Prestige Nursing,320.25, 06-Sep-2012
1370,Revenue,CCHD,Day Care - North,Private & Voluntary Day Care,Prestige Nursing,969.29, 06-Sep-2012
1371,Revenue,CCHD,Home care - Elderly MH - North,Other Small Contracts,Prestige Nursing,354.41, 06-Sep-2012
1372,Revenue,CCHD,Elderly MH Day Care North,Private & Voluntary Day Care,Prestige Nursing,491.05, 06-Sep-2012
1373,Revenue,CCHD,Home Care - Elderly - South,Other Small Contracts,Prestige Nursing,721.63, 06-Sep-2012
1374,Revenue,CCHD,Home Care - Elderly - North,Other Small Contracts,Prestige Nursing,841.19, 06-Sep-2012
1375,Revenue,CCHD,Day Care - South,Private & Voluntary Day Care,Prestige Nursing,307.44, 06-Sep-2012
1376,Revenue,CCHD,Day Care - North,Private & Voluntary Day Care,Prestige Nursing,965.02, 06-Sep-2012
1377,Revenue,CCHD,Home care - Elderly MH - North,Other Small Contracts,Prestige Nursing,358.68, 06-Sep-2012
1378,Revenue,CCHD,Elderly MH Day Care North,Private & Voluntary Day Care,Prestige Nursing,486.78, 06-Sep-2012
1379,Revenue,CCHD,Home Care - Elderly - South,Other Small Contracts,Prestige Nursing,713.09, 17-Sep-2012
1380,Revenue,CCHD,Home Care - Elderly - North,Other Small Contracts,Prestige Nursing,836.92, 17-Sep-2012
1381,Revenue,CCHD,Day Care - South,Private & Voluntary Day Care,Prestige Nursing,307.44, 17-Sep-2012
1382,Revenue,CCHD,Day Care - North,Private & Voluntary Day Care,Prestige Nursing,930.86, 17-Sep-2012
1383,Revenue,CCHD,Home care - Elderly MH - North,Other Small Contracts,Prestige Nursing,367.22, 17-Sep-2012
1384,Revenue,CCHD,Elderly MH Day Care North,Private & Voluntary Day Care,Prestige Nursing,418.46, 17-Sep-2012
1385,Revenue,CCHD,Day Care - South,Private & Voluntary Day Care,Prestige Nursing,266.4, 05-Sep-2012
1386,Revenue,CCHD,Day Care - North,Private & Voluntary Day Care,Prestige Nursing,676, 05-Sep-2012
1387,Revenue,CCHD,Home care - Elderly MH - North,Other Small Contracts,Prestige Nursing,80, 05-Sep-2012
1388,Revenue,CCHD,Elderly MH Day Care North,Private & Voluntary Day Care,Prestige Nursing,352, 05-Sep-2012
1389,Revenue,CCHD,Older People's Commissioned Se,Grants to Voluntary Bodies,Princess Royal Trust Carers Centre,38130, 28-Sep-2012
1390,Revenue,CCHD,Older People's Commissioned Se,Grants to Voluntary Bodies,Princess Royal Trust Carers Centre,1930.75, 28-Sep-2012
1391,Revenue,CCHD,Kingswood Centre - Maples Suite,"Provisions (Food, etc)",R Jays Cafe,500, 11-Sep-2012
1392,Revenue,CCHD,Bed purchasing - Elderly MH - North,Nursing Homes,Ravenswood,1265.84, 04-Sep-2012
1393,Revenue,CCHD,Bed Purchasing - Elderly MH - South,Residential Homes,Ravenswood,2152.08, 04-Sep-2012
1394,Revenue,CCHD,Bed Purchasing - Elderly - North,Nursing Homes,Ravenswood,1978.36, 04-Sep-2012
1395,Revenue,CCHD,Bed Purchasing - Elderly S117- North,Nursing Homes,Redholme Memory Care Limited,1944.12, 04-Sep-2012
1396,Revenue,CCHD,Bed Purchasing - Elderly - South,Nursing Homes,Regent House,1637.96, 04-Sep-2012
1397,Revenue,CCHD,South Glos Users in South Glos Homes,Nursing Homes,Regent House,1118.06, 04-Sep-2012
1398,Revenue,CCHD,Southmead Hospital Purchasing,Nursing Homes,Regent House,975.84, 04-Sep-2012
1399,Revenue,CCHD,Bed Purchasing - Elderly - South,Nursing Homes,Regent House,6063.28, 04-Sep-2012
1400,Revenue,CCHD,Bed Purchasing - Elderly - South,Nursing Homes,Regent House,8188.93, 04-Sep-2012
1401,Revenue,CCHD,Bed Purchasing - Elderly - South,Nursing Homes,Regent House,1686.16, 04-Sep-2012
1402,Revenue,CCHD,Bed Purchasing - Elderly - South,Nursing Homes,Regent House,2029.8, 04-Sep-2012
1403,Revenue,CCHD,Bed Purchasing - Elderly - South,Nursing Homes,Regent House,1796.8, 04-Sep-2012
1404,Revenue,CCHD,Bed Purchasing - Elderly - North,Nursing Homes,Regent House,1311.2, 04-Sep-2012
1405,Revenue,CCHD,Bed Purchasing - Elderly - South,Nursing Homes,Regent House,1637.96, 04-Sep-2012
1406,Revenue,CCHD,Bed Purchasing - Elderly - South,Nursing Homes,Regent House,632.92, 04-Sep-2012
1407,Revenue,CCHD,Southmead Hospital Purchasing,Nursing Homes,Regent House,1379.88, 04-Sep-2012
1408,Revenue,CCHD,Bed Purchasing - Elderly - South,Nursing Homes,Regent House,4515.51, 04-Sep-2012
1409,Revenue,CCHD,Bed Purchasing - Elderly - South,Nursing Homes,Regent House,2107.24, 04-Sep-2012
1410,Revenue,CCHD,Bed Purchasing - Elderly - South,Nursing Homes,Regent House,1423.28, 04-Sep-2012
1411,Revenue,CCHD,Bed Purchasing - Elderly - South,Nursing Homes,Regent House,1635.28, 04-Sep-2012
1412,Revenue,CCHD,Bed Purchasing - Elderly MH - South,Nursing Homes,Regent House,1195.08, 04-Sep-2012
1413,Revenue,CCHD,Bed purchasing - Elderly MH - North,Nursing Homes,Regent House,1276.8, 04-Sep-2012
1414,Revenue,CCHD,Bed Purchasing - Elderly - South,Nursing Homes,Regent House,5531.14, 04-Sep-2012
1415,Revenue,CCHD,Bed Purchasing - Elderly - South,Nursing Homes,Regent House,1996.4, 04-Sep-2012
1416,Revenue,CCHD,Elderly MH Day Care South,Private & Voluntary Day Care,Rethink,1772.7, 20-Sep-2012
1417,Revenue,CCHD,Bed Purchasing - Under 65s PWLD - South,Residential Homes,Ridgeway House,3418.56, 04-Sep-2012
1418,Revenue,CCHD,Bed Purchasing - Under 65s PWLD - South,Residential Homes,Riverside House,3524.88, 04-Sep-2012
1419,Revenue,CCHD,Bed Purchasing - Elderly - South,Nursing Homes,Riversway Nursing Home,1156.6, 04-Sep-2012
1420,Revenue,CCHD,Southmead Hospital Purchasing,Nursing Homes,Riversway Nursing Home,2020.48, 04-Sep-2012
1421,Revenue,CCHD,Southmead Hospital Purchasing,Nursing Homes,Riversway Nursing Home,1227.16, 04-Sep-2012
1422,Revenue,CCHD,Bed purchasing - Elderly PWLD - South,Residential Homes,Rockleaze,2159.92, 04-Sep-2012
1423,Revenue,CCHD,Bed purchasing - Elderly PWLD - South,Residential Homes,Rockleaze,1399.76, 04-Sep-2012
1424,Revenue,CCHD,Bed Purchasing - LD S28A- Over 65- South,Residential Homes,Rockleaze,2039.28, 04-Sep-2012
1425,Revenue,CCHD,Bed Purchasing - Under 65s PWLD - South,Residential Homes,Rockleaze,2364.24, 04-Sep-2012
1426,Revenue,CCHD,Bed purchasing - Elderly PWLD - South,Residential Homes,Rockleaze,1399.76, 04-Sep-2012
1427,Revenue,CCHD,Bed purchasing - Under 65s PWLD - North,Residential Homes,Rolle Quay House,6838.62, 04-Sep-2012
1428,Revenue,CCHD,Bed Purchasing - Under 65s PWLD - South,Residential Homes,Rosewood Lodge & Brook House,4460.6, 04-Sep-2012
1429,Revenue,CCHD,Bed Purchasing - Elderly MH - South,Residential Homes,Ross Healthcare,1280.12, 04-Sep-2012
1430,Revenue,CCHD,Frenchay Hospital Purchasing,Residential Homes,Roundham Court,1239.2, 04-Sep-2012
1431,Revenue,CCHD,Day Care - North,Private & Voluntary Day Care,Royal National Institute For Deaf People,523.44, 03-Sep-2012
1432,Revenue,CCHD,Bed Purchasing - Under 65s PWLD - South,Residential Homes,Salters Hill Barn,1995.2, 04-Sep-2012
1433,Revenue,CCHD,Bed purchasing - Under 65s PWLD - North,Residential Homes,Scope   Accounts Dept,4910.2, 04-Sep-2012
1434,Revenue,CCHD,Bed Purchasing - Under 65s PWLD - South,Residential Homes,Scope   Accounts Dept,2999.88, 04-Sep-2012
1435,Revenue,CCHD,Supported Living - KD,Private & Voluntary Home Care,SeeAbility,4633.57, 03-Sep-2012
1436,Revenue,CCHD,Supported Living - KD,Private & Voluntary Home Care,SeeAbility,4633.57, 28-Sep-2012
1437,Revenue,CCHD,Day Care - North,Private & Voluntary Day Care,SeeAbility,1924.22, 28-Sep-2012
1438,Revenue,CCHD,Supported Living - KD,Private & Voluntary Home Care,SeeAbility,1329.72, 28-Sep-2012
1439,Revenue,CCHD,Supported Living - KD,Private & Voluntary Home Care,SeeAbility,6628.38, 28-Sep-2012
1440,Revenue,CCHD,Southmead Hospital Purchasing,Nursing Homes,Sefton Hall Res. & Nursing Home,8470.29, 04-Sep-2012
1441,Revenue,CCHD,Supported Living - PS,Private & Voluntary Home Care,Selborne Care Ltd,1734.8, 10-Sep-2012
1442,Revenue,CCHD,Supported Living - PS,Private & Voluntary Home Care,Selborne Care Ltd,3102.84, 10-Sep-2012
1443,Revenue,CCHD,Supported Living - PS,Private & Voluntary Home Care,Selborne Care Ltd,1020.16, 10-Sep-2012
1444,Revenue,CCHD,Purchase of Non-Res Care - KD,Private & Voluntary Day Care,Selborne Care Ltd,1368.64, 13-Sep-2012
1445,Revenue,CCHD,Supported Living - PS,Private & Voluntary Home Care,Selborne Care Ltd,4961.6, 10-Sep-2012
1446,Revenue,CCHD,Purchase of Non-Res Care - KD,Private & Voluntary Day Care,Selborne Care Ltd,892.64, 13-Sep-2012
1447,Revenue,CCHD,Supported Living - PS,Private & Voluntary Home Care,Selborne Care Ltd,1147.8, 10-Sep-2012
1448,Revenue,CCHD,Purchase of Non-Res Care - KD,Private & Voluntary Day Care,Selborne Care Ltd,812.72, 13-Sep-2012
1449,Revenue,CCHD,Supported Living - KD,Private & Voluntary Home Care,Selborne Care Ltd,557.03, 13-Sep-2012
1450,Revenue,CCHD,Supported Living - PS,Private & Voluntary Home Care,Selborne Care Ltd,510.08, 10-Sep-2012
1451,Revenue,CCHD,Supported Living - PS,Private & Voluntary Home Care,Selborne Care Ltd,4632.8, 10-Sep-2012
1452,Revenue,CCHD,Purchase of Non-Res Care - KD,Private & Voluntary Day Care,Selborne Care Ltd,786.16, 13-Sep-2012
1453,Revenue,CCHD,Supported Living - PS,Private & Voluntary Home Care,Selborne Care Ltd,549.4, 10-Sep-2012
1454,Revenue,CCHD,Supported Living - PS,Private & Voluntary Home Care,Selborne Care Ltd,1864.98, 10-Sep-2012
1455,Revenue,CCHD,Purchase of Non-Res Care - KD,Private & Voluntary Day Care,Selborne Care Ltd,900.88, 13-Sep-2012
1456,Revenue,CCHD,Home Energy Conservation Act Activities,Other Supplies & Services,Severn Wye Energy Agency Ltd,10952.05, 21-Sep-2012
1457,Revenue,CCHD,Southmead Hospital Purchasing,Nursing Homes,Shaw Healthcare Ltd,1467.2, 04-Sep-2012
1458,Revenue,CCHD,Bed Purchasing - Elderly S117- North,Nursing Homes,Shaw Healthcare Ltd,1944, 04-Sep-2012
1459,Revenue,CCHD,Bed purchasing - Elderly MH - North,Nursing Homes,Shaw Healthcare Ltd,1226.36, 04-Sep-2012
1460,Revenue,CCHD,Bed purchasing - S28A Under 65 - South,Residential Homes,Shaw Healthcare Ltd,10408.68, 04-Sep-2012
1461,Revenue,CCHD,Bed purchasing - S28A Under 65 - South,Residential Homes,Shaw Healthcare Ltd,10410.04, 04-Sep-2012
1462,Revenue,CCHD,Bed purchasing - S28A Under 65 - South,Residential Homes,Shaw Healthcare Ltd,10243.28, 04-Sep-2012
1463,Revenue,CCHD,S117 Placements PCT,Residential Homes,Shaw Healthcare Ltd,15360.76, 04-Sep-2012
1464,Revenue,CCHD,Bed Purchasing - Under 65s PWLD - South,Nursing Homes,Shaw Healthcare Ltd,9662.08, 04-Sep-2012
1465,Revenue,CCHD,Bed Purchasing - Under 65s PWLD - South,Residential Homes,Shaw Healthcare Ltd,8892.88, 04-Sep-2012
1466,Revenue,CCHD,Bed purchasing - Elderly PWLD - South,Residential Homes,Shaw Healthcare Ltd,3875.12, 04-Sep-2012
1467,Revenue,CCHD,Bed purchasing - S28A Under 65 - South,Residential Homes,Shaw Healthcare Ltd,10295.84, 04-Sep-2012
1468,Revenue,CCHD,Bed purchasing - S28A Under 65 - South,Residential Homes,Shaw Healthcare Ltd,11942.52, 04-Sep-2012
1469,Revenue,CCHD,Bed purchasing -S28A  Under 65 - North,Residential Homes,Shaw Healthcare Ltd,4218.4, 04-Sep-2012
1470,Revenue,CCHD,Bed Purchasing - LD S28A- Over 65- South,Residential Homes,Shaw Healthcare Ltd,4585.99, 04-Sep-2012
1471,Revenue,CCHD,Bed Purchasing - Under 65s PWLD - South,Nursing Homes,Shaw Healthcare Ltd,9995.92, 04-Sep-2012
1472,Revenue,CCHD,Bed Purchasing - LD S28A- Over 65- South,Residential Homes,Shaw Healthcare Ltd,4412.12, 04-Sep-2012
1473,Revenue,CCHD,Bed Purchasing - LD S28A- Over 65- South,Residential Homes,Shaw Healthcare Ltd,4404, 04-Sep-2012
1474,Revenue,CCHD,Bed Purchasing - LD S28A- Over 65- South,Residential Homes,Shaw Healthcare Ltd,4411.68, 04-Sep-2012
1475,Revenue,CCHD,Bed purchasing -S28A  Under 65 - North,Residential Homes,Shaw Healthcare Ltd,9087.56, 04-Sep-2012
1476,Revenue,CCHD,Bed Purchasing - S28A - Over 65- North,Residential Homes,Shaw Healthcare Ltd,8894.24, 04-Sep-2012
1477,Revenue,CCHD,Supported Living - PS,Private & Voluntary Home Care,Silva Care Limited,4415.44, 07-Sep-2012
1478,Revenue,CCHD,Day Care - North,Private & Voluntary Day Care,Silva Care Limited,886, 18-Sep-2012
1479,Revenue,CCHD,Alexandra Way,Refuse Collection Charges,SITA UK LTD,678.75, 05-Sep-2012
1480,Revenue,CCHD,Bed purchasing - Under 65s PWLD - North,Residential Homes,Small House Homes Limited,17585.6, 04-Sep-2012
1481,Revenue,CCHD,Day Care - South,Private & Voluntary Day Care,Smile Independent Living Support Limited,855.61, 26-Sep-2012
1482,Revenue,CCHD,Supported Living - KD,Private & Voluntary Home Care,Smile Independent Living Support Limited,3362.26, 14-Sep-2012
1483,Revenue,CCHD,Purchase of Non-Res Care - KD,Private & Voluntary Day Care,Smile Independent Living Support Limited,1150.8, 14-Sep-2012
1484,Revenue,CCHD,Purchase of Non-Res Care - KD,Private & Voluntary Day Care,Smile Independent Living Support Limited,1406.33, 14-Sep-2012
1485,Revenue,CCHD,Purchase of Non-Res Care - KD,Private & Voluntary Day Care,Smile Independent Living Support Limited,1173.15, 14-Sep-2012
1486,Revenue,CCHD,Purchase of Non-Res Care - KD,Private & Voluntary Day Care,Smile Independent Living Support Limited,1069.74, 14-Sep-2012
1487,Revenue,CCHD,Supported Living - KD,Private & Voluntary Home Care,Smile Independent Living Support Limited,2658.38, 14-Sep-2012
1488,Revenue,CCHD,Purchase of Non-Res Care - KD,Private & Voluntary Day Care,Smile Independent Living Support Limited,551.29, 14-Sep-2012
1489,Revenue,CCHD,Purchase of Non-Res Care - KD,Private & Voluntary Day Care,Smile Independent Living Support Limited,629.9, 26-Sep-2012
1490,Revenue,CCHD,Bed Purchasing - Under 65s PWLD - South,Residential Homes,St Brigas,2036.8, 04-Sep-2012
1491,Revenue,CCHD,Bed Purchasing - Under 65s PWLD - South,Residential Homes,St Brigas,2944.64, 04-Sep-2012
1492,Revenue,CCHD,Bed Purchasing - Under 65s PWLD - South,Residential Homes,St Brigas,1985.08, 04-Sep-2012
1493,Revenue,CCHD,Frenchay Hospital Purchasing,Nursing Homes,St George Nursing Home,1295.2, 04-Sep-2012
1494,Revenue,CCHD,Southmead Hospital Purchasing,Nursing Homes,St George Nursing Home,806.8, 04-Sep-2012
1495,Revenue,CCHD,Bed Purchasing - Elderly - South,Nursing Homes,St George Nursing Home,6152.2, 04-Sep-2012
1496,Revenue,CCHD,Bed Purchasing - Elderly - South,Nursing Homes,St George Nursing Home,1295.2, 04-Sep-2012
1497,Revenue,CCHD,Bed Purchasing - Elderly - South,Nursing Homes,St George Nursing Home,596.6, 04-Sep-2012
1498,Revenue,CCHD,Southmead Hospital Purchasing,Nursing Homes,St George Nursing Home,2340.08, 04-Sep-2012
1499,Revenue,CCHD,Southmead Hospital Purchasing,Nursing Homes,St George Nursing Home,992.76, 04-Sep-2012
1500,Revenue,CCHD,Bed Purchasing - Elderly - North,Nursing Homes,St Monicas Trust,7514.23, 04-Sep-2012
1501,Revenue,CCHD,Training - Adult Services,Training Expenses,St Peter`s Hospice,607.83, 11-Sep-2012
1502,Revenue,CCHD,Bed Purchasing - Elderly - South,Nursing Homes,St Roses School,3944.36, 28-Sep-2012
1503,Revenue,CCHD,Bed Purchasing - Elderly - South,Residential Homes,St. Phillips Nursin!,973.66, 04-Sep-2012
1504,Revenue,CCHD,Bed Purchasing - Under 65s PWLD - South,Residential Homes,Stepping Stones Re-Sett. Unit,8597.28, 04-Sep-2012
1505,Revenue,CCHD,Younger MH non-res purchasing,Private & Voluntary Day Care,Supported Independence Ltd,611.84, 21-Sep-2012
1506,Revenue,CCHD,Section 117 Placements MH Younger,Private & Voluntary Day Care,Supported Independence Ltd,515.58, 21-Sep-2012
1507,Revenue,CCHD,Section 117 Placements MH Younger,Private & Voluntary Day Care,Supported Independence Ltd,516.24, 20-Sep-2012
1508,Revenue,CCHD,Younger MH non-res purchasing,Private & Voluntary Day Care,Supported Independence Ltd,1050.99, 21-Sep-2012
1509,Revenue,CCHD,Younger MH non-res purchasing,Private & Voluntary Day Care,Supported Independence Ltd,515.58, 21-Sep-2012
1510,Revenue,CCHD,Younger MH non-res purchasing,Private & Voluntary Day Care,Supported Independence Ltd,713.88, 21-Sep-2012
1511,Revenue,CCHD,Section 117 Placements MH Younger,Private & Voluntary Day Care,Supported Independence Ltd,2210.76, 21-Sep-2012
1512,Revenue,CCHD,Younger MH non-res purchasing,Private & Voluntary Day Care,Supported Independence Ltd,2190.32, 21-Sep-2012
1513,Revenue,CCHD,Supported Living - PS,Private & Voluntary Home Care,Supported Independence Ltd,1794.62, 10-Sep-2012
1514,Revenue,CCHD,Younger MH non-res purchasing,Private & Voluntary Day Care,Supported Independence Ltd,713.88, 21-Sep-2012
1515,Revenue,CCHD,Section 117 Placements MH Younger,Private & Voluntary Day Care,Supported Independence Ltd,1702, 19-Sep-2012
1516,Revenue,CCHD,Supported Living - PS,Private & Voluntary Home Care,Supported Independent Living Schemes,642.96, 07-Sep-2012
1517,Revenue,CCHD,Bed Purchasing - Under 65s PWLD - South,Residential Homes,The Ann Coleman Centre,6046.48, 04-Sep-2012
1518,Revenue,CCHD,Southmead Hospital Purchasing,Residential Homes,The Beeches,696.6, 04-Sep-2012
1519,Revenue,CCHD,Southmead Hospital Purchasing,Residential Homes,The Beeches,1227.4, 04-Sep-2012
1520,Revenue,CCHD,Bed Purchasing - Elderly - South,Residential Homes,The Beeches,1314.29, 04-Sep-2012
1521,Revenue,CCHD,Bed Purchasing - Elderly - South,Residential Homes,The Beeches,525.71, 04-Sep-2012
1522,Revenue,CCHD,Frenchay Hospital Purchasing,Residential Homes,The Beeches,1141.52, 04-Sep-2012
1523,Revenue,CCHD,Southmead Hospital Purchasing,Residential Homes,The Beeches,1239.2, 04-Sep-2012
1524,Revenue,CCHD,Purchase of Non-Res Care - PS,Private & Voluntary Day Care,The Brandon Trust,506.16, 07-Sep-2012
1525,Revenue,CCHD,Purchase of Non-Res Care - PS,Private & Voluntary Day Care,The Brandon Trust,506.16, 06-Sep-2012
1526,Revenue,CCHD,Supported Living - PS,Private & Voluntary Home Care,The Brandon Trust,759.24, 07-Sep-2012
1527,Revenue,CCHD,Purchase of Non-Res Care - PS,Private & Voluntary Day Care,The Brandon Trust,5835.2, 07-Sep-2012
1528,Revenue,CCHD,Purchase of Non-Res Care - PS,Private & Voluntary Day Care,The Brandon Trust,3594.9, 07-Sep-2012
1529,Revenue,CCHD,Purchase of Non-Res Care - PS,Private & Voluntary Day Care,The Brandon Trust,1623.35, 05-Sep-2012
1530,Revenue,CCHD,Purchase of Non-Res Care - PS,Private & Voluntary Day Care,The Brandon Trust,980.69, 07-Sep-2012
1531,Revenue,CCHD,Bed purchasing - S28A Under 65 - South,Residential Homes,The Brandon Trust,27747.04, 13-Sep-2012
1532,Revenue,CCHD,Supported Living - KD,Private & Voluntary Home Care,The Brandon Trust,9305.2, 06-Sep-2012
1533,Revenue,CCHD,Purchase of Non-Res Care - KD,Private & Voluntary Day Care,The Brandon Trust,500.16, 26-Sep-2012
1534,Revenue,CCHD,Day Care - North,Private & Voluntary Day Care,The Brandon Trust,625.2, 18-Sep-2012
1535,Revenue,CCHD,Purchase of Non-Res Care - PS,Private & Voluntary Day Care,The Brandon Trust,759.24, 19-Sep-2012
1536,Revenue,CCHD,Purchase of Non-Res Care - KD,Private & Voluntary Day Care,The Brandon Trust,791.92, 26-Sep-2012
1537,Revenue,CCHD,Purchase of Non-Res Care - PS,Private & Voluntary Day Care,The Brandon Trust,698.14, 25-Sep-2012
1538,Revenue,CCHD,Purchase of Non-Res Care - KD,Private & Voluntary Day Care,The Brandon Trust,562.68, 26-Sep-2012
1539,Revenue,CCHD,Purchase of Non-Res Care - KD,Private & Voluntary Day Care,The Brandon Trust,4668.16, 26-Sep-2012
1540,Revenue,CCHD,Purchase of Non-Res Care - PS,Private & Voluntary Day Care,The Brandon Trust,885.78, 19-Sep-2012
1541,Revenue,CCHD,Purchase of Non-Res Care - KD,Private & Voluntary Day Care,The Brandon Trust,949.05, 26-Sep-2012
1542,Revenue,CCHD,Younger MH non-res purchasing,Private & Voluntary Day Care,The Brandon Trust,1202.13, 21-Sep-2012
1543,Revenue,CCHD,Purchase of Non-Res Care - PS,Private & Voluntary Day Care,The Brandon Trust,3000.96, 19-Sep-2012
1544,Revenue,CCHD,Purchase of Non-Res Care - PS,Private & Voluntary Day Care,The Brandon Trust,949.05, 25-Sep-2012
1545,Revenue,CCHD,Purchase of Non-Res Care - KD,Private & Voluntary Day Care,The Brandon Trust,1161.83, 26-Sep-2012
1546,Revenue,CCHD,Purchase of Non-Res Care - KD,Private & Voluntary Day Care,The Brandon Trust,635.62, 26-Sep-2012
1547,Revenue,CCHD,Purchase of Non-Res Care - KD,Private & Voluntary Day Care,The Brandon Trust,1167.04, 26-Sep-2012
1548,Revenue,CCHD,Purchase of Non-Res Care - PS,Private & Voluntary Day Care,The Brandon Trust,1012.32, 19-Sep-2012
1549,Revenue,CCHD,Purchase of Non-Res Care - PS,Private & Voluntary Day Care,The Brandon Trust,506.16, 19-Sep-2012
1550,Revenue,CCHD,Purchase of Non-Res Care - PS,Private & Voluntary Day Care,The Brandon Trust,822.51, 19-Sep-2012
1551,Revenue,CCHD,Purchase of Non-Res Care - KD,Private & Voluntary Day Care,The Brandon Trust,1239.98, 26-Sep-2012
1552,Revenue,CCHD,Day Care - South,Private & Voluntary Day Care,The Brandon Trust,569.43, 18-Sep-2012
1553,Revenue,CCHD,Purchase of Non-Res Care - PS,Private & Voluntary Day Care,The Brandon Trust,759.24, 19-Sep-2012
1554,Revenue,CCHD,Purchase of Non-Res Care - KD,Private & Voluntary Day Care,The Brandon Trust,1094.1, 26-Sep-2012
1555,Revenue,CCHD,Supported Living - PS,Private & Voluntary Home Care,The Brandon Trust,682.51, 19-Sep-2012
1556,Revenue,CCHD,Purchase of Non-Res Care - PS,Private & Voluntary Day Care,The Brandon Trust,506.16, 25-Sep-2012
1557,Revenue,CCHD,Day Care - South,Private & Voluntary Day Care,The Brandon Trust,506.16, 18-Sep-2012
1558,Revenue,CCHD,Purchase of Non-Res Care - PS,Private & Voluntary Day Care,The Brandon Trust,3615.74, 28-Sep-2012
1559,Revenue,CCHD,Purchase of Non-Res Care - PS,Private & Voluntary Day Care,The Brandon Trust,1441.75, 25-Sep-2012
1560,Revenue,CCHD,Day Care - South,Private & Voluntary Day Care,The Brandon Trust,506.16, 18-Sep-2012
1561,Revenue,CCHD,Purchase of Non-Res Care - KD,Private & Voluntary Day Care,The Brandon Trust,864.86, 26-Sep-2012
1562,Revenue,CCHD,Supported Living - KD,Private & Voluntary Home Care,The Brandon Trust,9305.2, 26-Sep-2012
1563,Revenue,CCHD,Purchase of Non-Res Care - PS,Private & Voluntary Day Care,The Brandon Trust,506.16, 28-Sep-2012
1564,Revenue,CCHD,Bed Purchasing - Under 65s PWLD - South,Nursing Homes,The Brandon Trust  Olympus House,5724.32, 04-Sep-2012
1565,Revenue,CCHD,Bed Purchasing - S28A - Over 65- North,Residential Homes,The Brandon Trust  Olympus House,3587.32, 04-Sep-2012
1566,Revenue,CCHD,Bed Purchasing - Under 65s PWLD - South,Residential Homes,The Brandon Trust  Olympus House,11325.76, 04-Sep-2012
1567,Revenue,CCHD,Bed Purchasing - Under 65s PWLD - South,Residential Homes,The Brandon Trust  Olympus House,3270.6, 04-Sep-2012
1568,Revenue,CCHD,Bed purchasing - Under 65s PWLD - North,Residential Homes,The Brandon Trust  Olympus House,5182.6, 04-Sep-2012
1569,Revenue,CCHD,Bed purchasing - Elderly PWLD - South,Residential Homes,The Brandon Trust  Olympus House,3384.16, 04-Sep-2012
1570,Revenue,CCHD,Bed Purchasing - LD S28A- Over 65- South,Residential Homes,The Brandon Trust  Olympus House,3835.12, 04-Sep-2012
1571,Revenue,CCHD,Bed Purchasing - Under 65s PWLD - South,Nursing Homes,The Brandon Trust  Olympus House,5127.6, 04-Sep-2012
1572,Revenue,CCHD,Bed purchasing - S28A Under 65 - South,Residential Homes,The Brandon Trust  Olympus House,6032.96, 04-Sep-2012
1573,Revenue,CCHD,Bed purchasing - S28A Under 65 - South,Residential Homes,The Brandon Trust  Olympus House,4996.72, 04-Sep-2012
1574,Revenue,CCHD,Bed purchasing - S28A Under 65 - South,Residential Homes,The Brandon Trust  Olympus House,6032.96, 04-Sep-2012
1575,Revenue,CCHD,Bed purchasing - S28A Under 65 - South,Residential Homes,The Brandon Trust  Olympus House,5867.56, 04-Sep-2012
1576,Revenue,CCHD,Bed Purchasing - LD S28A- Over 65- South,Nursing Homes,The Brandon Trust  Olympus House,5454.32, 04-Sep-2012
1577,Revenue,CCHD,Bed Purchasing - S28A - Over 65- North,Nursing Homes,The Brandon Trust  Olympus House,5806.76, 04-Sep-2012
1578,Revenue,CCHD,Bed purchasing - S28A Under 65 - South,Residential Homes,The Brandon Trust  Olympus House,5265.24, 04-Sep-2012
1579,Revenue,CCHD,Bed purchasing - S28A Under 65 - South,Residential Homes,The Brandon Trust  Olympus House,5339, 04-Sep-2012
1580,Revenue,CCHD,Bed Purchasing - S28A - Over 65- North,Residential Homes,The Brandon Trust  Olympus House,7213.64, 04-Sep-2012
1581,Revenue,CCHD,Bed purchasing - S28A Under 65 - South,Residential Homes,The Brandon Trust  Olympus House,6032.96, 04-Sep-2012
1582,Revenue,CCHD,Bed purchasing - S28A Under 65 - South,Residential Homes,The Brandon Trust  Olympus House,6032.92, 04-Sep-2012
1583,Revenue,CCHD,Bed purchasing -S28A  Under 65 - North,Residential Homes,The Brandon Trust  Olympus House,4668.96, 04-Sep-2012
1584,Revenue,CCHD,Bed purchasing - S28A Under 65 - South,Residential Homes,The Brandon Trust  Olympus House,5339.04, 04-Sep-2012
1585,Revenue,CCHD,Bed Purchasing - LD S28A- Over 65- South,Residential Homes,The Brandon Trust  Olympus House,4731.08, 04-Sep-2012
1586,Revenue,CCHD,Bed Purchasing - LD S28A- Over 65- South,Residential Homes,The Brandon Trust  Olympus House,4025.12, 04-Sep-2012
1587,Revenue,CCHD,Bed purchasing - Elderly MH - North,Residential Homes,The Cidermill,1403.2, 04-Sep-2012
1588,Revenue,CCHD,Bed purchasing - Elderly MH - North,Residential Homes,The Cidermill,1403.2, 04-Sep-2012
1589,Revenue,CCHD,Bed purchasing - Elderly MH - North,Residential Homes,The Cidermill,968.48, 04-Sep-2012
1590,Revenue,CCHD,Bed purchasing - Elderly MH - North,Nursing Homes,The Cidermill,1205.8, 04-Sep-2012
1591,Revenue,CCHD,Southmead Hospital Purchasing,Residential Homes,The Cidermill,933.6, 04-Sep-2012
1592,Revenue,CCHD,Swift Dump Code,Residential Homes,The Gables Residential Home,5133.16, 07-Sep-2012
1593,Revenue,CCHD,Bed Purchasing - Elderly - South,Residential Homes,The Garden House,888.52, 04-Sep-2012
1594,Revenue,CCHD,Frenchay Hospital Purchasing,Residential Homes,The Garden House,1403.2, 04-Sep-2012
1595,Revenue,CCHD,Southmead Hospital Purchasing,Residential Homes,The Garden House,1342.76, 04-Sep-2012
1596,Revenue,CCHD,Frenchay Hospital Purchasing,Residential Homes,The Garden House,1232.84, 04-Sep-2012
1597,Revenue,CCHD,Bed Purchasing - Elderly - South,Residential Homes,The Garden House,1598.8, 04-Sep-2012
1598,Revenue,CCHD,Bed Purchasing - Elderly - South,Residential Homes,The Garden House,752.84, 04-Sep-2012
1599,Revenue,CCHD,Bed Purchasing - Elderly - South,Residential Homes,The Garden House,1483.2, 04-Sep-2012
1600,Revenue,CCHD,Bed Purchasing - Elderly S117- North,Residential Homes,The Garden House,1403.2, 04-Sep-2012
1601,Revenue,CCHD,Bed Purchasing - Elderly - North,Residential Homes,The Garden House,1241.36, 04-Sep-2012
1602,Revenue,CCHD,Southmead Hospital Purchasing,Residential Homes,The Garden House,1165.16, 04-Sep-2012
1603,Revenue,CCHD,Bed Purchasing - Elderly MH - South,Residential Homes,The Garden House,1209.88, 04-Sep-2012
1604,Revenue,CCHD,Bed Purchasing - Elderly - South,Residential Homes,The Garden House,1281.16, 04-Sep-2012
1605,Revenue,CCHD,Bed Purchasing - Elderly - South,Residential Homes,The Garden House,1146.12, 04-Sep-2012
1606,Revenue,CCHD,Bed purchasing - Elderly MH - North,Residential Homes,The Grove,972.12, 04-Sep-2012
1607,Revenue,CCHD,Bed purchasing - Elderly MH - North,Residential Homes,The Grove,1403.2, 04-Sep-2012
1608,Revenue,CCHD,Bed purchasing - Elderly MH - North,Residential Homes,The Grove,1590.64, 04-Sep-2012
1609,Revenue,CCHD,Bed Purchasing - Elderly - North,Residential Homes,The Grove,6980.25, 04-Sep-2012
1610,Revenue,CCHD,Bed Purchasing - Elderly - North,Residential Homes,The Grove,1643.2, 04-Sep-2012
1611,Revenue,CCHD,Frenchay Hospital Purchasing,Residential Homes,The Grove,643.89, 04-Sep-2012
1612,Revenue,CCHD,Bed purchasing - Elderly MH - North,Residential Homes,The Grove,573.44, 04-Sep-2012
1613,Revenue,CCHD,Bed Purchasing - Elderly S117- North,Residential Homes,The Grove,2074.28, 04-Sep-2012
1614,Revenue,CCHD,Bed purchasing - Elderly MH - North,Residential Homes,The Grove,1607.72, 04-Sep-2012
1615,Revenue,CCHD,Bed purchasing - Elderly MH - North,Residential Homes,The Grove,1490.64, 04-Sep-2012
1616,Revenue,CCHD,Southmead Hospital Purchasing,Residential Homes,The Grove,1335.12, 04-Sep-2012
1617,Revenue,CCHD,Bed purchasing - Elderly MH - North,Residential Homes,The Grove,1499.52, 04-Sep-2012
1618,Revenue,CCHD,Frenchay Hospital Purchasing,Residential Homes,The Grove,808.48, 04-Sep-2012
1619,Revenue,CCHD,Frenchay Hospital Purchasing,Nursing Homes,The Heathers,1295.2, 04-Sep-2012
1620,Revenue,CCHD,Frenchay Hospital Purchasing,Nursing Homes,The Heathers,691, 04-Sep-2012
1621,Revenue,CCHD,Southmead Hospital Purchasing,Nursing Homes,The Heathers,1267.08, 04-Sep-2012
1622,Revenue,CCHD,Frenchay Hospital Purchasing,Nursing Homes,The Heathers,3376.77, 04-Sep-2012
1623,Revenue,CCHD,Frenchay Hospital Purchasing,Nursing Homes,The Heathers,1295.2, 04-Sep-2012
1624,Revenue,CCHD,Frenchay Hospital Purchasing,Nursing Homes,The Heathers,1295.2, 04-Sep-2012
1625,Revenue,CCHD,Frenchay Hospital Purchasing,Nursing Homes,The Heathers,1295.2, 04-Sep-2012
1626,Revenue,CCHD,Bed Purchasing - Elderly - North,Nursing Homes,The Heathers,1298.68, 04-Sep-2012
1627,Revenue,CCHD,Frenchay Hospital Purchasing,Nursing Homes,The Heathers,1229.16, 04-Sep-2012
1628,Revenue,CCHD,Frenchay Hospital Purchasing,Nursing Homes,The Heathers,1211.96, 04-Sep-2012
1629,Revenue,CCHD,Southmead Hospital Purchasing,Nursing Homes,The Heathers,730.72, 04-Sep-2012
1630,Revenue,CCHD,Southmead Hospital Purchasing,Nursing Homes,The Heathers,1152.24, 04-Sep-2012
1631,Revenue,CCHD,Bed purchasing - Elderly MH - North,Residential Homes,The Hollies,1277.48, 04-Sep-2012
1632,Revenue,CCHD,Bed purchasing - Elderly PWLD - South,Residential Homes,The Manor House,502.01, 04-Sep-2012
1633,Revenue,CCHD,Bed purchasing - Elderly PWLD - South,Residential Homes,The Manor House,836.7, 04-Sep-2012
1634,Revenue,CCHD,Bed Purchasing - Under 65s PWLD - South,Residential Homes,The Manor House,653.04, 04-Sep-2012
1635,Revenue,CCHD,Bed Purchasing - Under 65s PWLD - South,Residential Homes,The Manor House,4848.44, 04-Sep-2012
1636,Revenue,CCHD,Bed Purchasing - Under 65s PWLD - South,Residential Homes,The Manor House,3443.84, 04-Sep-2012
1637,Revenue,CCHD,Bed Purchasing - Under 65s PWLD - South,Residential Homes,The Manor House,2649.08, 04-Sep-2012
1638,Revenue,CCHD,Bed purchasing - Under 65s PWLD - North,Residential Homes,The Manor House,2747.12, 04-Sep-2012
1639,Revenue,CCHD,Bed Purchasing - Under 65s PWLD - South,Residential Homes,The Manor House,3219.12, 04-Sep-2012
1640,Revenue,CCHD,Bed purchasing - Under 65s PWLD - North,Residential Homes,The Manor House,2790.24, 04-Sep-2012
1641,Revenue,CCHD,Bed Purchasing - Under 65s PWLD - South,Residential Homes,The Manor House,2649.08, 04-Sep-2012
1642,Revenue,CCHD,Bed Purchasing - Under 65s PWLD - South,Residential Homes,The Manor House,3292.6, 04-Sep-2012
1643,Revenue,CCHD,Bed Purchasing - Under 65s PWLD - South,Residential Homes,The Manor House,5937.48, 04-Sep-2012
1644,Revenue,CCHD,Bed purchasing - S28A Under 65 - South,Residential Homes,The Manor House,4791.52, 04-Sep-2012
1645,Revenue,CCHD,Bed Purchasing - Under 65s PWLD - South,Residential Homes,The Manor House,2688.84, 04-Sep-2012
1646,Revenue,CCHD,Bed Purchasing - Under 65s PWLD - South,Residential Homes,The Manor House,3361.48, 04-Sep-2012
1647,Revenue,CCHD,Bed Purchasing - Under 65s PWLD - South,Residential Homes,The Manor House,2945.16, 04-Sep-2012
1648,Revenue,CCHD,Bed Purchasing - Under 65s PWLD - South,Residential Homes,The Manor House,3269.96, 04-Sep-2012
1649,Revenue,CCHD,Bed Purchasing - Under 65s PWLD - South,Residential Homes,The Manor House,4868.52, 04-Sep-2012
1650,Revenue,CCHD,Bed Purchasing - Under 65s PWLD - South,Residential Homes,The Manor House,3050.88, 04-Sep-2012
1651,Revenue,CCHD,Bed Purchasing - Under 65s PWLD - South,Residential Homes,The Manor House,2865.96, 04-Sep-2012
1652,Revenue,CCHD,Bed Purchasing - Under 65s PWLD - South,Residential Homes,The Manor House,4383.48, 04-Sep-2012
1653,Revenue,CCHD,Bed purchasing - Under 65s PWLD - North,Residential Homes,The Manor House,4100.6, 04-Sep-2012
1654,Revenue,CCHD,Bed Purchasing - Under 65s PWLD - South,Residential Homes,The Manor House,4264.16, 04-Sep-2012
1655,Revenue,CCHD,Bed Purchasing - Under 65s PWLD - South,Residential Homes,The Manor House,3196.88, 04-Sep-2012
1656,Revenue,CCHD,Bed Purchasing - Under 65s PWLD - South,Residential Homes,The Manor House,525.31, 04-Sep-2012
1657,Revenue,CCHD,Bed Purchasing - Under 65s PWLD - South,Residential Homes,The Manor House,525.3, 04-Sep-2012
1658,Revenue,CCHD,Bed purchasing - Elderly PWLD - South,Residential Homes,The Manor House,2656.96, 04-Sep-2012
1659,Revenue,CCHD,Bed Purchasing - Under 65s PWLD - South,Residential Homes,The Manor House,3181.6, 04-Sep-2012
1660,Revenue,CCHD,Bed Purchasing - Under 65s PWLD - South,Residential Homes,The Manor House,505.93, 04-Sep-2012
1661,Revenue,CCHD,Bed Purchasing - Under 65s PWLD - South,Residential Homes,The Manor House,522.43, 04-Sep-2012
1662,Revenue,CCHD,Bed Purchasing - Under 65s PWLD - South,Residential Homes,The Manor House,724.08, 04-Sep-2012
1663,Revenue,CCHD,Bed Purchasing - Under 65s PWLD - South,Residential Homes,The Manor House,4763.28, 04-Sep-2012
1664,Revenue,CCHD,Bed Purchasing - Under 65s PWLD - South,Residential Homes,The Manor House,2688.84, 04-Sep-2012
1665,Revenue,CCHD,Bed purchasing - Under 65s PWLD - North,Residential Homes,The Thomas Moore Project,1914.72, 04-Sep-2012
1666,Revenue,CCHD,Bed Purchasing - Elderly MH - South,Residential Homes,The Worthies,1405, 04-Sep-2012
1667,Revenue,CCHD,Bed Purchasing - Elderly MH - South,Residential Homes,The Worthies,1292.16, 04-Sep-2012
1668,Revenue,CCHD,Frenchay Hospital Purchasing,Residential Homes,The Worthies,1880, 04-Sep-2012
1669,Revenue,CCHD,Bed Purchasing - Elderly - South,Nursing Homes,Thornhill House,1890.32, 04-Sep-2012
1670,Revenue,CCHD,Bed purchasing - Under 65s PWLD - North,Residential Homes,Three Roses Home,1875.72, 04-Sep-2012
1671,Revenue,CCHD,Learning Difficulties PSL,Rent,Individual,650, 21-Sep-2012
1672,Revenue,CCHD,Learning Difficulties PSL,Rent,Individual,750, 21-Sep-2012
1673,Revenue,CCHD,Learning Difficulties PSL,Rent,Individual,488, 21-Sep-2012
1674,Revenue,CCHD,Safeguarding and DOLs,Other Supplies & Services,TMP (UK) Limited,3921.8, 27-Sep-2012
1675,Revenue,CCHD,Bed Purchasing - Under 65s PWLD - South,Residential Homes,Tomlen,6484.72, 04-Sep-2012
1676,Revenue,CCHD,Minor Adaptations Service,Prop.Serv. General Repairs,Total Hygiene Limited,1225, 20-Sep-2012
1677,Revenue,CCHD,Bed Purchasing - Under 65s PWLD - South,Residential Homes,Tracs Group Ltd,6510.68, 04-Sep-2012
1678,Revenue,CCHD,Preventative Technology Grant,Other Supplies & Services,Tunstall Healthcare (UK) Limited,600.7, 28-Sep-2012
1679,Revenue,CCHD,Minor Adaptations Service,Daily Living Equipment,TVM Cheltenham Limited,796.25, 20-Sep-2012
1680,Revenue,CCHD,Minor Adaptations Service,Maintenance by Contractor,TVM Cheltenham Limited,1121.61, 04-Sep-2012
1681,Revenue,CCHD,Minor Adaptations Service,Maintenance by Contractor,TVM Cheltenham Limited,1224.96, 26-Sep-2012
1682,Revenue,CCHD,Minor Adaptations Service,Daily Living Equipment,TVM Cheltenham Limited,864.25, 27-Sep-2012
1683,Revenue,CCHD,Minor Adaptations Service,Daily Living Equipment,TVM Cheltenham Limited,439.5, 20-Sep-2012
1684,Revenue,CCHD,Minor Adaptations Service,Maintenance by Contractor,TVM Cheltenham Limited,1023.99, 26-Sep-2012
1685,Revenue,CCHD,Minor Adaptations Service,Maintenance by Contractor,TVM Cheltenham Limited,445.06, 26-Sep-2012
1686,Revenue,CCHD,Bed purchasing - Under 65s PWLD - North,Residential Homes,Ty Hafod Tudor,3839.36, 04-Sep-2012
1687,Revenue,CCHD,Training - Adult Services,Training Expenses,University Of The West Of England,600, 26-Sep-2012
1688,Revenue,CCHD,Southmead Hospital Purchasing,Residential Homes,Vaughan Lee House,1172.8, 04-Sep-2012
1689,Revenue,CCHD,Bed purchasing - Elderly MH - North,Residential Homes,Ventura Residential Care Home,1239.2, 04-Sep-2012
1690,Revenue,CCHD,Bed Purchasing - Under 65s PWLD - South,Residential Homes,Victoria Court,11197.12, 04-Sep-2012
1691,Revenue,CCHD,Bed purchasing - Elderly PWLD - North,Residential Homes,Victoria Court,8668.64, 04-Sep-2012
1692,Revenue,CCHD,Bed Purchasing - PWLD S 117 Placements,Residential Homes,Vine House,9885.4, 04-Sep-2012
1693,Revenue,CCHD,Learning Difficulties Development Fund,Telephones,Virgin Media Payments Ltd,2400, 17-Sep-2012
1694,Revenue,CCHD,Bed Purchasing - Under 65s PWLD - South,Residential Homes,Visions,3590.64, 04-Sep-2012
1695,Revenue,CCHD,Housing Needs,Radio Pager/Mobile Phones,Vodafone Corporate Limited,547.51, 07-Sep-2012
1696,Revenue,CCHD,Bed Purchasing - Under 65s PWLD - South,Residential Homes,Voyage Ltd,2969.24, 04-Sep-2012
1697,Revenue,CCHD,Bed Purchasing - Under 65s PWLD - South,Residential Homes,Voyage Ltd,6887.36, 04-Sep-2012
1698,Revenue,CCHD,Bed purchasing - Under 65s PWLD - North,Residential Homes,Voyage Ltd,8174.8, 04-Sep-2012
1699,Revenue,CCHD,Bed purchasing - S28A Under 65 - South,Residential Homes,Voyage Ltd,5288.6, 04-Sep-2012
1700,Revenue,CCHD,Bed Purchasing - Under 65s PWLD - South,Residential Homes,Voyage Ltd,5544.6, 04-Sep-2012
1701,Revenue,CCHD,Bed Purchasing - Under 65s PWLD - South,Residential Homes,Voyage Ltd,5288.6, 04-Sep-2012
1702,Revenue,CCHD,Bed Purchasing - Under 65s PWLD - South,Residential Homes,Voyage Ltd,6173.08, 04-Sep-2012
1703,Revenue,CCHD,Bed Purchasing - Under 65s PWLD - South,Residential Homes,Voyage Ltd,6132.6, 04-Sep-2012
1704,Revenue,CCHD,Bed purchasing - Phys Dis - South,Residential Homes,Voyage Ltd,5586, 04-Sep-2012
1705,Revenue,CCHD,Bed Purchasing - Under 65s PWLD - South,Residential Homes,Voyage Ltd,5670.44, 04-Sep-2012
1706,Revenue,CCHD,Bed Purchasing - Under 65s PWLD - South,Residential Homes,Voyage Ltd,5219.04, 04-Sep-2012
1707,Revenue,CCHD,Frenchay Hospital Purchasing,Residential Homes,Walton-On-Thames Charity,1250.92, 04-Sep-2012
1708,Revenue,CCHD,Bed purchasing - Elderly MH - North,Residential Homes,Wayside Residential Care Home,1403.2, 04-Sep-2012
1709,Revenue,CCHD,Bed Purchasing - Elderly MH - South,Residential Homes,Wayside Residential Care Home,1338.36, 04-Sep-2012
1710,Revenue,CCHD,Frenchay Hospital Purchasing,Residential Homes,Wayside Residential Care Home,1321.48, 04-Sep-2012
1711,Revenue,CCHD,Bed Purchasing - Elderly - South,Nursing Homes,Wayside Residential Care Home,1292.04, 04-Sep-2012
1712,Revenue,CCHD,Bed purchasing - Elderly MH - North,Residential Homes,Wayside Residential Care Home,1170.12, 04-Sep-2012
1713,Revenue,CCHD,Southmead Hospital Purchasing,Residential Homes,Wayside Residential Care Home,1278.24, 04-Sep-2012
1714,Revenue,CCHD,Bed Purchasing - Elderly - South,Residential Homes,Wayside Residential Care Home,1194.88, 04-Sep-2012
1715,Revenue,CCHD,Homeless - Private Sector Leasing,Prop.Serv. General Repairs,WE Care & Repair,873.5, 25-Sep-2012
1716,Revenue,CCHD,Alexandra Way,Furniture & Fittings Loose,Webber & Spencer Limited,693, 12-Sep-2012
1717,Revenue,CCHD,Bed Purchasing - PWLD S 117 Placements,Residential Homes,West Court,7904.04, 04-Sep-2012
1718,Revenue,CCHD,Southmead Hospital Purchasing,Nursing Homes,Westbury Nursing Home,1295.2, 04-Sep-2012
1719,Revenue,CCHD,Bed Purchasing - Elderly - North,Residential Homes,Westbury Nursing Home,2007.88, 04-Sep-2012
1720,Revenue,CCHD,Bed purchasing - Elderly MH - North,Residential Homes,Westbury Nursing Home,1748.88, 04-Sep-2012
1721,Revenue,CCHD,Bed Purchasing - Elderly - North,Residential Homes,Wickwar Nursing Home  Castle House,1148.56, 04-Sep-2012
1722,Revenue,CCHD,Bed Purchasing - Elderly - North,Residential Homes,Wickwar Nursing Home  Castle House,1402.24, 04-Sep-2012
1723,Revenue,CCHD,Southmead Hospital Purchasing,Residential Homes,Wickwar Nursing Home  Castle House,1083.09, 04-Sep-2012
1724,Revenue,CCHD,Southmead Hospital Purchasing,Residential Homes,Wickwar Nursing Home  Castle House,673.92, 04-Sep-2012
1725,Revenue,CCHD,Bed Purchasing - Elderly - South,Nursing Homes,Wickwar Nursing Home  Castle House,927.94, 04-Sep-2012
1726,Revenue,CCHD,Frenchay Hospital Purchasing,Nursing Homes,Wickwar Nursing Home  Castle House,2151.71, 04-Sep-2012
1727,Revenue,CCHD,Frenchay Hospital Purchasing,Nursing Homes,Wickwar Nursing Home  Castle House,1295.2, 04-Sep-2012
1728,Revenue,CCHD,Frenchay Hospital Purchasing,Nursing Homes,Wickwar Nursing Home  Castle House,555.09, 04-Sep-2012
1729,Revenue,CCHD,Frenchay Hospital Purchasing,Nursing Homes,Wickwar Nursing Home  Castle House,954.68, 04-Sep-2012
1730,Revenue,CCHD,Southmead Hospital Purchasing,Nursing Homes,Wickwar Nursing Home  Castle House,1275.48, 04-Sep-2012
1731,Revenue,CCHD,Bed Purchasing - Elderly - North,Nursing Homes,Wickwar Nursing Home  Castle House,1193.04, 04-Sep-2012
1732,Revenue,CCHD,South Glos Users in South Glos Homes,Nursing Homes,Wickwar Nursing Home  Castle House,4782.8, 04-Sep-2012
1733,Revenue,CCHD,Southmead Hospital Purchasing,Nursing Homes,Wickwar Nursing Home  Castle House,1219.64, 04-Sep-2012
1734,Revenue,CCHD,Bed Purchasing - Elderly - North,Residential Homes,Wickwar Nursing Home  Castle House,1396.16, 04-Sep-2012
1735,Revenue,CCHD,Bed Purchasing - Elderly - North,Nursing Homes,Wickwar Nursing Home  Castle House,1295.2, 04-Sep-2012
1736,Revenue,CCHD,Bed Purchasing - Elderly - North,Residential Homes,Wickwar Nursing Home  Castle House,1232.12, 04-Sep-2012
1737,Revenue,CCHD,Bed Purchasing - Elderly - North,Nursing Homes,Wickwar Nursing Home  Castle House,1614.8, 04-Sep-2012
1738,Revenue,CCHD,Frenchay Hospital Purchasing,Nursing Homes,Wickwar Nursing Home  Castle House,1008, 04-Sep-2012
1739,Revenue,CCHD,Southmead Hospital Purchasing,Nursing Homes,Wickwar Nursing Home  Castle House,1062.44, 04-Sep-2012
1740,Revenue,CCHD,Bed Purchasing - Elderly - North,Residential Homes,Wickwar Nursing Home  Castle House,704.96, 04-Sep-2012
1741,Revenue,CCHD,Bed purchasing - Phys Dis - North,Nursing Homes,Wickwar Nursing Home  Castle House,1061.76, 04-Sep-2012
1742,Revenue,CCHD,South Glos Users in South Glos Homes,Nursing Homes,Wickwar Nursing Home  Castle House,1288.87, 04-Sep-2012
1743,Revenue,CCHD,South Glos Users in South Glos Homes,Nursing Homes,Wickwar Nursing Home  Castle House,698.79, 04-Sep-2012
1744,Revenue,CCHD,Frenchay Hospital Purchasing,Residential Homes,Willow Cottage,1039.96, 04-Sep-2012
1745,Revenue,CCHD,Southmead Hospital Purchasing,Residential Homes,Willow Cottage,3146.31, 04-Sep-2012
1746,Revenue,CCHD,Southmead Hospital Purchasing,Residential Homes,Willow Cottage,1048.77, 04-Sep-2012
1747,Revenue,CCHD,Bed Purchasing - Elderly - North,Residential Homes,Willow Cottage,530, 04-Sep-2012
1748,Revenue,CCHD,Southmead Hospital Purchasing,Residential Homes,Willow Cottage,1400.48, 04-Sep-2012
1749,Revenue,CCHD,Frenchay Hospital Purchasing,Residential Homes,Willow Cottage,7796.29, 04-Sep-2012
1750,Revenue,CCHD,Frenchay Hospital Purchasing,Residential Homes,Willow Cottage,1679.2, 04-Sep-2012
1751,Revenue,CCHD,Frenchay Hospital Purchasing,Nursing Homes,Willow Cottage,1582.44, 04-Sep-2012
1752,Revenue,CCHD,Frenchay Hospital Purchasing,Nursing Homes,Willow Cottage,956.64, 04-Sep-2012
1753,Revenue,CCHD,Bed Purchasing - Elderly - North,Nursing Homes,Willow Cottage,1978.12, 04-Sep-2012
1754,Revenue,CCHD,Southmead Hospital Purchasing,Nursing Homes,Willow Cottage,2129.2, 04-Sep-2012
1755,Revenue,CCHD,Bed purchasing - Phys Dis - North,Nursing Homes,Willow Cottage,1668.4, 04-Sep-2012
1756,Revenue,CCHD,Bed Purchasing - Elderly - North,Nursing Homes,Willow Cottage,1224.12, 04-Sep-2012
1757,Revenue,CCHD,Frenchay Hospital Purchasing,Residential Homes,Willow Cottage,1050.6, 04-Sep-2012
1758,Revenue,CCHD,Frenchay Hospital Purchasing,Nursing Homes,Willow Cottage,623.11, 04-Sep-2012
1759,Revenue,CCHD,Bed Purchasing - Elderly - North,Nursing Homes,Willow Cottage,1370.48, 04-Sep-2012
1760,Revenue,CCHD,Bed Purchasing - Elderly - North,Nursing Homes,Willow Cottage,1055.9, 04-Sep-2012
1761,Revenue,CCHD,Southmead Hospital Purchasing,Nursing Homes,Willow Cottage,1312.64, 04-Sep-2012
1762,Revenue,CCHD,Supported Living - KD,Private & Voluntary Home Care,Willowbank Care Limited,3802, 13-Sep-2012
1763,Revenue,CCHD,Supported Living (S28a) North,Private & Voluntary Home Care,Willowbank Care Limited,4066, 13-Sep-2012
1764,Revenue,CCHD,Supported Living - KD,Private & Voluntary Home Care,Willowbank Care Limited,1998.26, 10-Sep-2012
1765,Revenue,CCHD,Supported Living - KD,Private & Voluntary Home Care,Willowbank Care Limited,5452, 10-Sep-2012
1766,Revenue,CCHD,Supported Living - KD,Private & Voluntary Home Care,Willowbank Care Limited,5452, 20-Sep-2012
1767,Revenue,CCHD,Supported Living - KD,Private & Voluntary Home Care,Willowbank Care Limited,3901, 10-Sep-2012
1768,Revenue,CCHD,Supported Living - KD,Private & Voluntary Home Care,Willowbank Care Limited,3901, 20-Sep-2012
1769,Revenue,CCHD,Supported Living - KD,Private & Voluntary Home Care,Willowbank Care Limited,1280.5, 10-Sep-2012
1770,Revenue,CCHD,Supported Living - KD,Private & Voluntary Home Care,Willowbank Care Limited,1998.26, 26-Sep-2012
1771,Revenue,CCHD,Supported Living - KD,Private & Voluntary Home Care,Willowbank Care Limited,2930.5, 21-Sep-2012
1772,Revenue,CCHD,Supported Living - KD,Private & Voluntary Home Care,Willowbank Care Limited,1445.5, 10-Sep-2012
1773,Revenue,CCHD,Supported Living - KD,Private & Voluntary Home Care,Willowbank Care Limited,1445.5, 20-Sep-2012
1774,Revenue,CCHD,Supported Living - KD,Private & Voluntary Home Care,Willowbank Care Limited,4643.5, 10-Sep-2012
1775,Revenue,CCHD,Purchase of Non-Res Care - KD,Private & Voluntary Day Care,Willowbank Care Limited,4643.5, 20-Sep-2012
1776,Revenue,CCHD,Supported Living - KD,Private & Voluntary Home Care,Willowbank Care Limited,1949.5, 10-Sep-2012
1777,Revenue,CCHD,Supported Living - KD,Private & Voluntary Home Care,Willowbank Care Limited,1949.5, 26-Sep-2012
1778,Revenue,CCHD,Supported Living - KD,Private & Voluntary Home Care,Willowbank Care Limited,2598.1, 10-Sep-2012
1779,Revenue,CCHD,Supported Living - KD,Private & Voluntary Home Care,Willowbank Care Limited,2598.1, 26-Sep-2012
1780,Revenue,CCHD,Supported Living (S28a) North,Private & Voluntary Home Care,Willowbank Care Limited,4066, 13-Sep-2012
1781,Revenue,CCHD,Supported Living (S28a) North,Private & Voluntary Home Care,Willowbank Care Limited,4066, 21-Sep-2012
1782,Revenue,CCHD,Supported Living (S28a) North,Private & Voluntary Home Care,Willowbank Care Limited,4620, 13-Sep-2012
1783,Revenue,CCHD,Supported Living (S28a) North,Private & Voluntary Home Care,Willowbank Care Limited,4620, 13-Sep-2012
1784,Revenue,CCHD,Supported Living - KD,Private & Voluntary Home Care,Willowbank Care Limited,2829.1, 10-Sep-2012
1785,Revenue,CCHD,Supported Living - KD,Private & Voluntary Home Care,Willowbank Care Limited,2829.1, 20-Sep-2012
1786,Revenue,CCHD,Supported Living - KD,Private & Voluntary Home Care,Willowbank Care Limited,3211, 10-Sep-2012
1787,Revenue,CCHD,Supported Living - KD,Private & Voluntary Home Care,Willowbank Care Limited,3211, 26-Sep-2012
1788,Revenue,CCHD,Supported Living - KD,Private & Voluntary Home Care,Willowbank Care Limited,2235.8, 10-Sep-2012
1789,Revenue,CCHD,Supported Living - KD,Private & Voluntary Home Care,Willowbank Care Limited,2235.8, 26-Sep-2012
1790,Revenue,CCHD,Supported Living - KD,Private & Voluntary Home Care,Willowbank Care Limited,2930.5, 10-Sep-2012
1791,Revenue,CCHD,Bed Purchasing - Elderly - North,Residential Homes,Windmill House,1117.48, 04-Sep-2012
